Workbook

Sheet Version Information
A12: Version Number | B12: Notes | C12: Date
A13: 1 | B13: Initial version | C13: 2017-03-01
A14: 1.1 | B14: Instructions updated with new NETL Logo | C14: 2017-10-31
A15: 2 | B15: Coal Basins map updated | C15: 2018-08-03

Sheet Overview and Explanations
B1: Overview
B2: All results recorded in this template will be made publically available on NETL's database exchange web portal (https://edx.netl.doe.gov/ree). The focus is to characterize the bulk elemental concentration and mineralogy of rare earth elements in coal and coal by-product material during the initial field sampling in order to provide data needed to determine the best path forward. The Attributes tab contains definitions and examples to assist in determining the correct dropdown item/s to select in both of the Field Samples tabs. The Instructions tab contains an embedded PDF that gives step by step information on how to fill out each column within the three sample analysis tabs below. In order to maintain the NETL database's integrity, researcher's should do their best to accurately and precisely describe all information about the samples that is publically releasable. Please send all email user questions to NETLREEGROUP@Netl.doe.gov or contact your Federal Project Manager.
B3: Coal Basins | E3: Researcher Analytical Technique Notes
E4: ICP-MS | F4: Inductively Coupled Plasma Mass Spectrometry
E5: ICP-OES | F5: Inductively Coupled Plasma Optical Emission Spectrometry
E6: EPA methods 6010, 6020, and 7000 were followed for analysis of samples by ICP-MS and ICP-OES
E7: BDL = Below Detection limit
E8: NETL Digestion Procedure for Bulk Elemental Analysis of Solids
E9: There are many digestion procedures that can be employed for inductively coupled plasma mass spectrometry (ICP-MS) or inductively coupled plasma optical emission spectrometry (ICP-OES) analysis (bulk elemental analysis) of solid coal by-products. One method employed by NETL-RIC is described below. Note that it is also critical for the lab to determine the percent recoveries of the rare earths and other elements from certified reference materials. This serves as a check on the digestion procedure, as well as the analytical procedure. Also note that ICP-OES has inferior detection limits for the rare earths as compared to ICP-MS. In the NETL digestion procedure, solid samples were prepared by mixing pulverized sample with calcined LiBO2 (lithium metaborate) at a ratio of 1:8. Prior to fusion, samples were mixed by stirring with a platinum rod in a 99.95% platinum crucible. The open crucibles were heated to 1100°C for five minutes in a Phoenix microwave muffle furnace (CEM). After 5 minutes, the melt was removed from the oven and allowed to cool to a homogeneous glass. The glass was digested in 5% HNO3 on low heat with stirring. To ensure that the sample glass was completely digested, the platinum crucibles were rinsed 3x with 5% HNO3 and the sample was diluted to a final volume of 100 ml. These samples were further diluted in 2% HNO3 before analysis to determine the optimal balance between internal standard recovery and limit of detection. For solid samples containing significant carbon content, samples were dried and ashed in a Leco Thermogravimetric Analyzer (TGA701) for one hour under nitrogen at 107°C for drying and then for five hours under air at 550°C for ashing. Reference "Analysis of Rare Earth Elements in Geologic Samples using Inductively Coupled Plasma Mass Spectrometry" Tracy Bank, Elliot Roth, Phillip Tinker, Evan Granite, DOE Topical Report, available on the NETL Rare Earth website - http://netl.doe.gov/research/coal/rare-earth-elements/publications

Sheet Attributes
D1: Level 1 Attribute | E1: Level 2 Attribute | F1: Level 3 Attribute
D2: Resource Production | E2: Coal Reserve | F2: Coal
D3: Processing | E3: Coal Mining | F3: Clean Coal
D4: Utilization | E4: Coal Separations | F4: Bottom Ash
E5: Feed Coal | F5: Fly Ash
E6: Energy Conversion Processes | F6: Ash
E7: Other | F7: Refuse
F8: Fine Coal By-Product
F9: Coarse Refuse
F10: Disposed Combustion By-Products
F11: Coal Mine Drainage
F12: Acid Mine Drainage
F13: Acid Mine Drainage - Sludge
F14: Aqueous
F15: N/A
D17: Level 1 Attributes: Based on the preparation point of collection, the three level 1 attributes refer to the point of recovery in the coal value process chain on the highest trichotomy level.
D18: Resource Production
D19: Data in Resource Production reflect characterization of the REEs in resources as they exist in their natural environment, and materials that are produced during mining operations. These data include core samples, road cuts, outcrops, raw coal grab samples, and aqueous by-products.
D20: Processing
D21: These data reflect REE characterization results for “as received” or run-of mine material from a number of coal preparation plants, in-plant streams, product streams (refuse, fine coal, and clean coal), and aqueous by-products.
D22: Utilization
D23: These data reflect REE characterization results of feed coals as they arrive at the power plant, refuse and coal by-products (fly ash and bottom ash), and aqueous by-products generated at the plant. These materials include grab samples taken at several by-product storage/disposal sites. Samples can include aqueous effluents from processing facilities, material found in ash ponds, coal mine drainage, and runoff from storage piles.
A25: Figure 1. Coal Value Chain Opportunities for REE Recovery. | D25: Level 2 Attributes: Based on the preparation point of collection, level 2 attributes refer to more specific points of recovery in the coal value process chain from Resource Production through Processing and Utilization.
D26: Coal Reserve
D27: Underground and surface coal not yet mined within the United States (e.g., Basin A coal)
D28: Coal Mining
D29: Coal that has been extracted from the earth through production processes (e.g., Mine A - run of mine)
D30: Coal Separations
D31: Coal that has undergone washing, dewatering, crushing, and sieving (and or other classifying steps) resulting in clean coal for utilization and by-products such as slurries, refuse, and out-of-spec sized product (e.g., Mine A - midlings refuse)
D32: Feed Coal
D33: Clean Coal that has been approved for utilization and has been pulverized to plant specs (Power plant A - clean coal pulverized rejects)
D34: Energy Conversion Processes
D35: Coal that has been utilized and converted into energy through the power production process (Power Plant A - Fly Ash)
D36: Other
D37: Coal that does not fall into the above categories
D39: Level 3 Attributes
D40: Self Evident

Sheet Instructions
A1: This Instruction booklet will help to guide the user through updating the data in each column of the data tabs below. To open, double click on the embedded pdf below.

Sheet Phase 1 Field Samples DMB
A1: Dry Mass Basis - Field Site Sampling Material Identification and Characterization
F4: Researcher Field Sampling Data Inputs | AJ4: Primary Elemental Identification Technique | CU4: Secondary Elemental Identification Technique (If Measured) | DO4: XRD, Phase Identification (If measured) | DS4: SEM-EDX (If measured)
D5: Sample Reference # for Analyses on Sample Source | F5: Origin of the Sample and Description | O5: Location of Sampling Site | V5: Proximate Analysis (Wt%) | AA5: Ultimate Analysis (%) | AF5: CHNS Analysis (%) | AJ5: Analysis Description/Method | AM5: Elements (ppm) | BY5: Lanthanides (ppm) | CM5: Other Metals (ppm) | CP5: Actinides (ppm) | CR5: Total REE (ppm) | CS5: Total REE+Y (ppm) | CU5: Analysis Description Method | CX5: Results (ppm)
A6: Sample Reference # (# required to enable calculations) | B6: Sample Type | C6: Description | D6: Furthest Upstream Sample Ref # | E6: Previous Upstream Sample Ref # | F6: Level 1 Attribute | G6: Level 2 Attribute | H6: Level 3 Attribute | I6: Coal Basin | J6: Geological Group | K6: Associated Coal Bed/Zone/Seam | L6: State | M6: County | N6: Site | O6: State2 | P6: County2 | Q6: Site2 | R6: Location2 | S6: Size Fraction Analyzed (µm) | T6: % Moisture, As-Received | U6: %Ash, Dry | V6: Sulfur | W6: Moisture | X6: Volatile Matter | Y6: Ash | Z6: Fixed Carbon | AA6: Carbon | AB6: Hydrogen | AC6: Sulfur | AD6: Oxygen | AE6: Nitrogen | AF6: Carbon2 | AG6: H | AH6: N | AI6: S | AJ6: Digestion Method | AK6: Analytical Technique | AL6: Dry Mass Basis | AM6: Be 4 | AN6: Na 11 | AO6: Mg 12 | AP6: Al 13 | AQ6: Si 14 | AR6: P 15 | AS6: K 19 | AT6: Ca 20 | AU6: Sc 21 | AV6: Ti 22 | AW6: V 23 | AX6: Cr 24 | AY6: Mn 25 | AZ6: Fe 26 | BA6: Co 27 | BB6: Ni 28 | BC6: Cu 29 | BD6: Zn 30 | BE6: Ga 31 | BF6: Ge 32 | BG6: As 33 | BH6: Se 34 | BI6: Rb 37 | BJ6: Y 39 | BK6: Zr 40 | BL6: Nb 41 | BM6: Mo 42 | BN6: Ag 47 | BO6: Cd 48 | BP6: Sn 50 | BQ6: Sb 51 | BR6: Cs 55 | BS6: Ba 56 | BT6: Other | BU6: Other2 | BV6: Other3 | BW6: Other4 | BX6: Other5 | BY6: La 57 | BZ6: Ce 58 | CA6: Pr 59 | CB6: Nd 60 | CC6: Sm 62 | CD6: Eu 63 | CE6: Gd 64 | CF6: Tb 65 | CG6: Dy 66 | CH6: Ho 67 | CI6: Er 68 | CJ6: Tm 69 | CK6: Yb 70 | CL6: Lu 71 | CM6: Hf 72 | CN6: Tl 81 | CO6: Pb 82 | CP6: Th 90 | CQ6: U 92 | CR6: Lanthanides | CS6: Lanthanides+Y | CT6: Notes | CU6: Secondary Analytical Technique | CV6: Secondary Digestion Method | CW6: Dry Mass Basis2 | CX6: Al3 13 | CY6: Ca4 20 | CZ6: Fe5 26 | DA6: K6 19 | DB6: Mg7 12 | DC6: Na8 11 | DD6: P2 15 | DE6: Ti2 22 | DF6: SiO2* | DG6: Zr 402 | DH6: Sn 502 | DI6: Other6 | DJ6: Other8 | DK6: Other9 | DL6: Other10 | DM6: Other11 | DN6: Notes3 | DO6: Major Phases | DP6: Minor Phases | DQ6: Trace Phases | DR6: Notes2 | DS6: Mineral/particle/crystal | DT6: Size | DU6: Mineral/particle/crystal2 | DV6: Size3 | DW6: Mineral/particle/crystal3 | DX6: Size4 | DY6: Notes4
A7: INV_NE1 | B7: Field sample | F7: Resource Production | G7: Coal Reserve | H7: Coal | I7: Northern Appalachia | J7: Middle Anthracite Field | K7: Buck Mountain | L7: PA | M7: Luzerne | N7: Eckley North | O7: PA | P7: Luzerne | Q7: Eckley North | R7: Outcrop | U7: 0.9733333333 | AJ7: Acid digestion | AK7: ICP-OES | AN7: 602.7 | AO7: 4029.6 | AP7: 67171.6 | AS7: 30183.9 | AT7: 122 | AU7: 14.3 | AX7: 72 | AY7: 168.6 | AZ7: 19658.5 | BA7: 12.1 | BB7: 25.7 | BC7: 15.5 | BD7: 37.8 | BG7: 0.62 | BH7: 21.3 | BJ7: 29.7 | BM7: 0.9 | BY7: 43.8 | BZ7: 97.6 | CA7: 8.1 | CB7: 41.8 | CC7: 8.5 | CD7: 1.7 | CE7: 11.4 | CF7: 1.9 | CG7: 4.7 | CH7: 7.3 | CI7: 3.4 | CJ7: 0 | CK7: 3.2 | CO7: 34.7 | CR7: =IF(ISBLANK(FieldSampling[[#This Row],[Sample Reference '# ('# required to enable calculations)]]),"",SUM(FieldSampling[[#This Row],[La 57]:[Lu 71]])) -> 233.4 | CS7: =IF(ISBLANK(FieldSampling[[#This Row],[Sample Reference '# ('# required to enable calculations)]]),"", SUM(FieldSampling[Lanthanides]+FieldSampling[Y 39])) -> 263.1
A8: INV_NE2 | B8: Field sample | F8: Resource Production | G8: Coal Reserve | H8: Coal | I8: Northern Appalachia | J8: Middle Anthracite Field | K8: Buck Mountain | L8: PA | M8: Luzerne | N8: Eckley North | O8: PA | P8: Luzerne | Q8: Eckley North | R8: Outcrop | U8: 0.965 | AJ8: Acid digestion | AK8: ICP-OES | AN8: 295.5 | AO8: 3912.1 | AP8: 55598.6 | AS8: 20959.5 | AT8: 167 | AU8: 11.1 | AX8: 68.2 | AY8: 206.1 | AZ8: 19482.5 | BA8: 11.9 | BB8: 33.3 | BC8: 32.2 | BD8: 38.1 | BG8: 0.57 | BH8: 20.9 | BJ8: 23 | BM8: 0.9 | BY8: 50.8 | BZ8: 105.9 | CA8: 8.8 | CB8: 47.2 | CC8: 12.2 | CD8: 1.9 | CE8: 11.3 | CF8: 1.1 | CG8: 3.6 | CH8: 7.8 | CI8: 2.8 | CJ8: 0 | CK8: 2.8 | CO8: 35.8 | CR8: =IF(ISBLANK(FieldSampling[[#This Row],[Sample Reference '# ('# required to enable calculations)]]),"",SUM(FieldSampling[[#This Row],[La 57]:[Lu 71]])) -> 256.2 | CS8: =IF(ISBLANK(FieldSampling[[#This Row],[Sample Reference '# ('# required to enable calculations)]]),"", SUM(FieldSampling[Lanthanides]+FieldSampling[Y 39])) -> 279.2
A9: INV_NE3 | B9: Field sample | F9: Resource Production | G9: Coal Reserve | H9: Coal | I9: Northern Appalachia | J9: Middle Anthracite Field | K9: Buck Mountain | L9: PA | M9: Luzerne | N9: Eckley North | O9: PA | P9: Luzerne | Q9: Eckley North | R9: Outcrop | U9: 0.9666666667 | AJ9: Acid digestion | AK9: ICP-OES | AN9: 185.8 | AO9: 2748.4 | AP9: 48152.9 | AS9: 16787.1 | AT9: 189.8 | AU9: 10.4 | AX9: 59.1 | AY9: 158.9 | AZ9: 17461.7 | BA9: 11.6 | BB9: 34.1 | BC9: 48.9 | BD9: 39.1 | BG9: 0.83 | BH9: 8.6 | BJ9: 23.4 | BM9: 2.8 | BY9: 48.6 | BZ9: 104.5 | CA9: 9.7 | CB9: 48.7 | CC9: 12.4 | CD9: 2.3 | CE9: 11.3 | CF9: 1.3 | CG9: 4.6 | CH9: 7.7 | CI9: 3.2 | CJ9: 0 | CK9: 3.1 | CO9: 26.7 | CR9: =IF(ISBLANK(FieldSampling[[#This Row],[Sample Reference '# ('# required to enable calculations)]]),"",SUM(FieldSampling[[#This Row],[La 57]:[Lu 71]])) -> 257.4 | CS9: =IF(ISBLANK(FieldSampling[[#This Row],[Sample Reference '# ('# required to enable calculations)]]),"", SUM(FieldSampling[Lanthanides]+FieldSampling[Y 39])) -> 280.8
A10: INV_NE4 | B10: Field sample | F10: Resource Production | G10: Coal Reserve | H10: Coal | I10: Northern Appalachia | J10: Middle Anthracite Field | K10: Buck Mountain | L10: PA | M10: Luzerne | N10: Eckley North | O10: PA | P10: Luzerne | Q10: Eckley North | R10: Outcrop | U10: 0.9716666667 | AJ10: Acid digestion | AK10: ICP-OES | AN10: 387.8 | AO10: 2277.9 | AP10: 11282.6 | AS10: 4675.4 | AT10: 107 | AU10: 2.6 | AX10: 20.5 | AY10: 244 | AZ10: 35367 | BA10: 21.3 | BB10: 25.7 | BC10: 108.8 | BD10: 47.7 | BG10: 0.55 | BH10: 8.7 | BJ10: 6.4 | BM10: 1.1 | BY10: 28.2 | BZ10: 62.2 | CA10: 6.2 | CB10: 29.8 | CC10: 5.7 | CD10: 1 | CE10: 10.3 | CF10: 0.8 | CG10: 0.8 | CH10: 6.5 | CI10: 0.9 | CJ10: 0 | CK10: 1.2 | CO10: 30.6 | CR10: =IF(ISBLANK(FieldSampling[[#This Row],[Sample Reference '# ('# required to enable calculations)]]),"",SUM(FieldSampling[[#This Row],[La 57]:[Lu 71]])) -> 153.6 | CS10: =IF(ISBLANK(FieldSampling[[#This Row],[Sample Reference '# ('# required to enable calculations)]]),"", SUM(FieldSampling[Lanthanides]+FieldSampling[Y 39])) -> 160
A11: INV_NE5 | B11: Field sample | F11: Resource Production | G11: Coal Reserve | H11: Coal | I11: Northern Appalachia | J11: Middle Anthracite Field | K11: Buck Mountain | L11: PA | M11: Luzerne | N11: Eckley North | O11: PA | P11: Luzerne | Q11: Eckley North | R11: Outcrop | U11: 0.9866666667 | AJ11: Acid digestion | AK11: ICP-OES | AN11: 288.5 | AO11: 3215.5 | AP11: 38502.6 | AS11: 15764.6 | AT11: 85.5 | AU11: 7.5 | AX11: 40.8 | AY11: 180.4 | AZ11: 14218.5 | BA11: 9.9 | BB11: 23.3 | BC11: 19.2 | BD11: 29 | BG11: 0.25 | BH11: 17.5 | BJ11: 14 | BM11: 1.4 | BY11: 34.4 | BZ11: 71.4 | CA11: 8.4 | CB11: 35.2 | CC11: 7.9 | CD11: 1.8 | CE11: 7.5 | CF11: 0.4 | CG11: 2 | CH11: 5.5 | CI11: 1.8 | CJ11: 0 | CK11: 1.6 | CO11: 8.9 | CR11: =IF(ISBLANK(FieldSampling[[#This Row],[Sample Reference '# ('# required to enable calculations)]]),"",SUM(FieldSampling[[#This Row],[La 57]:[Lu 71]])) -> 177.9 | CS11: =IF(ISBLANK(FieldSampling[[#This Row],[Sample Reference '# ('# required to enable calculations)]]),"", SUM(FieldSampling[Lanthanides]+FieldSampling[Y 39])) -> 191.9
A12: INV_NE6 | B12: Field sample | F12: Resource Production | G12: Coal Reserve | H12: Coal | I12: Northern Appalachia | J12: Middle Anthracite Field | K12: Buck Mountain | L12: PA | M12: Luzerne | N12: Eckley North | O12: PA | P12: Luzerne | Q12: Eckley North | R12: Outcrop | U12: 0.76 | AJ12: Acid digestion | AK12: ICP-OES | AN12: 1014.6 | AO12: 1884.9 | AP12: 70615.2 | AS12: 27356.2 | AT12: 176.5 | AU12: 14.2 | AX12: 71 | AY12: 23 | AZ12: 7279.7 | BA12: 4.6 | BB12: 19.2 | BC12: 28.4 | BD12: 28.4 | BG12: 0.87 | BH12: 12.3 | BJ12: 23.9 | BM12: 4.1 | BY12: 32.5 | BZ12: 60.9 | CA12: 6.5 | CB12: 27.5 | CC12: 6.9 | CD12: 1.7 | CE12: 6.2 | CF12: 1 | CG12: 4.3 | CH12: 3.7 | CI12: 3.3 | CJ12: 0 | CK12: 2.7 | CO12: 62.8 | CR12: =IF(ISBLANK(FieldSampling[[#This Row],[Sample Reference '# ('# required to enable calculations)]]),"",SUM(FieldSampling[[#This Row],[La 57]:[Lu 71]])) -> 157.2 | CS12: =IF(ISBLANK(FieldSampling[[#This Row],[Sample Reference '# ('# required to enable calculations)]]),"", SUM(FieldSampling[Lanthanides]+FieldSampling[Y 39])) -> 181.1
A13: INV_NE7 | B13: Field sample | F13: Resource Production | G13: Coal Reserve | H13: Coal | I13: Northern Appalachia | J13: Middle Anthracite Field | K13: Buck Mountain | L13: PA | M13: Luzerne | N13: Eckley North | O13: PA | P13: Luzerne | Q13: Eckley North | R13: Outcrop | U13: 0.7433333333 | AJ13: Acid digestion | AK13: ICP-OES | AN13: 471.2 | AO13: 1091.9 | AP13: 42239.3 | AS13: 11927.1 | AT13: 187.8 | AU13: 9.9 | AX13: 48.6 | AY13: 19.3 | AZ13: 7914.8 | BA13: 6.8 | BB13: 29.4 | BC13: 31.4 | BD13: 28.2 | BG13: 2.61 | BH13: 16.2 | BJ13: 16.8 | BM13: 5.8 | BY13: 29.2 | BZ13: 55 | CA13: 5.4 | CB13: 23.2 | CC13: 5.9 | CD13: 1.6 | CE13: 5.5 | CF13: 0 | CG13: 3.1 | CH13: 4.1 | CI13: 1.7 | CJ13: 0 | CK13: 2 | CO13: 65.8 | CR13: =IF(ISBLANK(FieldSampling[[#This Row],[Sample Reference '# ('# required to enable calculations)]]),"",SUM(FieldSampling[[#This Row],[La 57]:[Lu 71]])) -> 136.7 | CS13: =IF(ISBLANK(FieldSampling[[#This Row],[Sample Reference '# ('# required to enable calculations)]]),"", SUM(FieldSampling[Lanthanides]+FieldSampling[Y 39])) -> 153.5
A14: INV_NE8 | B14: Field sample | F14: Resource Production | G14: Coal Reserve | H14: Coal | I14: Northern Appalachia | J14: Middle Anthracite Field | K14: Buck Mountain | L14: PA | M14: Luzerne | N14: Eckley North | O14: PA | P14: Luzerne | Q14: Eckley North | R14: Outcrop | U14: 0.9516666667 | AJ14: Acid digestion | AK14: ICP-OES | AN14: 772.9 | AO14: 1540.1 | AP14: 57001.2 | AS14: 20158.1 | AT14: 164.6 | AU14: 10.5 | AX14: 34.6 | AY14: 22.9 | AZ14: 3895.9 | BA14: 2.7 | BB14: 12 | BC14: 5.2 | BD14: 7.4 | BG14: 0.14 | BH14: 4.3 | BJ14: 16.5 | BM14: 2.9 | BY14: 31.4 | BZ14: 62.6 | CA14: 5.4 | CB14: 21.6 | CC14: 5 | CD14: 0.9 | CE14: 4.8 | CF14: 0 | CG14: 1.9 | CH14: 3.1 | CI14: 1.9 | CJ14: 0 | CK14: 1.7 | CO14: 10.8 | CR14: =IF(ISBLANK(FieldSampling[[#This Row],[Sample Reference '# ('# required to enable calculations)]]),"",SUM(FieldSampling[[#This Row],[La 57]:[Lu 71]])) -> 140.3 | CS14: =IF(ISBLANK(FieldSampling[[#This Row],[Sample Reference '# ('# required to enable calculations)]]),"", SUM(FieldSampling[Lanthanides]+FieldSampling[Y 39])) -> 156.8
A15: INV_NE10 | B15: Field sample | F15: Resource Production | G15: Coal Reserve | H15: Coal | I15: Northern Appalachia | J15: Middle Anthracite Field | K15: Buck Mountain | L15: PA | M15: Luzerne | N15: Eckley North | O15: PA | P15: Luzerne | Q15: Eckley North | R15: Outcrop | U15: 0.9666666667 | AJ15: Acid digestion | AK15: ICP-OES | AN15: 915.5 | AO15: 9187.7 | AP15: 100887.9 | AS15: 32626 | AT15: 247.7 | AU15: 24.9 | AX15: 99.5 | AY15: 409 | AZ15: 43002.2 | BA15: 18.8 | BB15: 40.8 | BC15: 61.7 | BD15: 47.6 | BG15: 0.14 | BH15: 8.3 | BJ15: 36.4 | BM15: 1 | BY15: 55.2 | BZ15: 115.4 | CA15: 9 | CB15: 54.3 | CC15: 12.8 | CD15: 2.5 | CE15: 17 | CF15: 2.6 | CG15: 6.6 | CH15: 9.3 | CI15: 4.3 | CJ15: 0 | CK15: 4.5 | CO15: 109.1 | CR15: =IF(ISBLANK(FieldSampling[[#This Row],[Sample Reference '# ('# required to enable calculations)]]),"",SUM(FieldSampling[[#This Row],[La 57]:[Lu 71]])) -> 293.5 | CS15: =IF(ISBLANK(FieldSampling[[#This Row],[Sample Reference '# ('# required to enable calculations)]]),"", SUM(FieldSampling[Lanthanides]+FieldSampling[Y 39])) -> 329.9
A16: INV_NE11 | B16: Field sample | F16: Resource Production | G16: Coal Reserve | H16: Coal | I16: Northern Appalachia | J16: Middle Anthracite Field | K16: Buck Mountain | L16: PA | M16: Luzerne | N16: Eckley North | O16: PA | P16: Luzerne | Q16: Eckley North | R16: Outcrop | U16: 0.83 | AJ16: Acid digestion | AK16: ICP-OES | AN16: 1344.3 | AO16: 3947.3 | AP16: 126486.7 | AS16: 34333.3 | AT16: 148.7 | AU16: 21.3 | AX16: 84.4 | AY16: 132.2 | AZ16: 40454.9 | BA16: 8.9 | BB16: 39.4 | BC16: 147.1 | BD16: 43.4 | BG16: 1.47 | BH16: 23.4 | BJ16: 50.5 | BM16: 1.6 | BY16: 41.3 | BZ16: 128.2 | CA16: 12.3 | CB16: 75.2 | CC16: 19.3 | CD16: 3.9 | CE16: 21.8 | CF16: 3.1 | CG16: 10.1 | CH16: 12 | CI16: 7 | CJ16: 0 | CK16: 7.3 | CO16: 90.7 | CR16: =IF(ISBLANK(FieldSampling[[#This Row],[Sample Reference '# ('# required to enable calculations)]]),"",SUM(FieldSampling[[#This Row],[La 57]:[Lu 71]])) -> 341.5 | CS16: =IF(ISBLANK(FieldSampling[[#This Row],[Sample Reference '# ('# required to enable calculations)]]),"", SUM(FieldSampling[Lanthanides]+FieldSampling[Y 39])) -> 392
A17: INV_NE12 | B17: Field sample | F17: Resource Production | G17: Coal Reserve | H17: Coal | I17: Northern Appalachia | J17: Middle Anthracite Field | K17: Buck Mountain | L17: PA | M17: Luzerne | N17: Eckley North | O17: PA | P17: Luzerne | Q17: Eckley North | R17: Outcrop | U17: 0.7783333333 | AJ17: Acid digestion | AK17: ICP-OES | AN17: 927.6 | AO17: 1829.2 | AP17: 51525 | AS17: 14189.4 | AT17: 144.6 | AU17: 13.7 | AX17: 67.3 | AY17: 22.9 | AZ17: 13019.7 | BA17: 5 | BB17: 23.4 | BC17: 35.2 | BD17: 19 | BG17: 1.59 | BH17: 15.9 | BJ17: 22 | BM17: 8.3 | BY17: 33.3 | BZ17: 61.8 | CA17: 5.2 | CB17: 23.7 | CC17: 6.5 | CD17: 1.6 | CE17: 8 | CF17: 0.5 | CG17: 4.2 | CH17: 3.2 | CI17: 2.2 | CJ17: 0 | CK17: 2.5 | CO17: 62.7 | CR17: =IF(ISBLANK(FieldSampling[[#This Row],[Sample Reference '# ('# required to enable calculations)]]),"",SUM(FieldSampling[[#This Row],[La 57]:[Lu 71]])) -> 152.7 | CS17: =IF(ISBLANK(FieldSampling[[#This Row],[Sample Reference '# ('# required to enable calculations)]]),"", SUM(FieldSampling[Lanthanides]+FieldSampling[Y 39])) -> 174.7
A18: INV_NE13 | B18: Field sample | F18: Resource Production | G18: Coal Reserve | H18: Coal | I18: Northern Appalachia | J18: Middle Anthracite Field | K18: Buck Mountain | L18: PA | M18: Luzerne | N18: Eckley North | O18: PA | P18: Luzerne | Q18: Eckley North | R18: Outcrop | U18: 0.975 | AJ18: Acid digestion | AK18: ICP-OES | AN18: 288.4 | AO18: 953.5 | AP18: 37651.2 | AS18: 12257.4 | AT18: 122.9 | AU18: 13 | AX18: 41.8 | AY18: 6.2 | AZ18: 2851.6 | BA18: 3 | BB18: 26.5 | BC18: 2.7 | BD18: 5.7 | BG18: 1 | BH18: 13.1 | BJ18: 28.6 | BM18: 7.2 | BY18: 75.2 | BZ18: 136.7 | CA18: 12.7 | CB18: 45.8 | CC18: 10.4 | CD18: 2 | CE18: 7.9 | CF18: 1 | CG18: 5.1 | CH18: 7.5 | CI18: 3.5 | CJ18: 0 | CK18: 3.2 | CO18: 57 | CR18: =IF(ISBLANK(FieldSampling[[#This Row],[Sample Reference '# ('# required to enable calculations)]]),"",SUM(FieldSampling[[#This Row],[La 57]:[Lu 71]])) -> 311 | CS18: =IF(ISBLANK(FieldSampling[[#This Row],[Sample Reference '# ('# required to enable calculations)]]),"", SUM(FieldSampling[Lanthanides]+FieldSampling[Y 39])) -> 339.6
A19: INV_NE15 | B19: Field sample | F19: Resource Production | G19: Coal Reserve | H19: Coal | I19: Northern Appalachia | J19: Middle Anthracite Field | K19: Buck Mountain | L19: PA | M19: Luzerne | N19: Eckley North | O19: PA | P19: Luzerne | Q19: Eckley North | R19: Outcrop | U19: 0.9583333333 | AJ19: Acid digestion | AK19: ICP-OES | AN19: 668.1 | AO19: 4360.5 | AP19: 72632.5 | AS19: 24574.9 | AT19: 151.9 | AU19: 14 | AX19: 62.8 | AY19: 130.8 | AZ19: 12858.4 | BA19: 9.8 | BB19: 39.7 | BC19: 19.7 | BD19: 33 | BG19: 1.04 | BH19: 10 | BJ19: 25.8 | BM19: 1.1 | BY19: 45.7 | BZ19: 95 | CA19: 8.5 | CB19: 40.5 | CC19: 8.7 | CD19: 1.9 | CE19: 9.9 | CF19: 0.9 | CG19: 4.5 | CH19: 7.7 | CI19: 3.5 | CJ19: 0 | CK19: 2.8 | CO19: 54.8 | CR19: =IF(ISBLANK(FieldSampling[[#This Row],[Sample Reference '# ('# required to enable calculations)]]),"",SUM(FieldSampling[[#This Row],[La 57]:[Lu 71]])) -> 229.6 | CS19: =IF(ISBLANK(FieldSampling[[#This Row],[Sample Reference '# ('# required to enable calculations)]]),"", SUM(FieldSampling[Lanthanides]+FieldSampling[Y 39])) -> 255.4
A20: INV_NE16 | B20: Field sample | F20: Resource Production | G20: Coal Reserve | H20: Coal | I20: Northern Appalachia | J20: Middle Anthracite Field | K20: Buck Mountain | L20: PA | M20: Luzerne | N20: Eckley North | O20: PA | P20: Luzerne | Q20: Eckley North | R20: Outcrop | U20: 0.9033333333 | AJ20: Acid digestion | AK20: ICP-OES | AN20: 724.3 | AO20: 2404 | AP20: 57319.4 | AS20: 18385.2 | AT20: 133.1 | AU20: 12.5 | AX20: 55.5 | AY20: 48.7 | AZ20: 12105 | BA20: 7.5 | BB20: 32.3 | BC20: 22.7 | BD20: 24.7 | BG20: 3.19 | BH20: 21.8 | BJ20: 24.6 | BM20: 5.7 | BY20: 41.6 | BZ20: 85.1 | CA20: 8.4 | CB20: 37.7 | CC20: 9.7 | CD20: 1.6 | CE20: 8.8 | CF20: 1.4 | CG20: 4.7 | CH20: 5.3 | CI20: 3.2 | CJ20: 0 | CK20: 2.7 | CO20: 47.3 | CR20: =IF(ISBLANK(FieldSampling[[#This Row],[Sample Reference '# ('# required to enable calculations)]]),"",SUM(FieldSampling[[#This Row],[La 57]:[Lu 71]])) -> 210.2 | CS20: =IF(ISBLANK(FieldSampling[[#This Row],[Sample Reference '# ('# required to enable calculations)]]),"", SUM(FieldSampling[Lanthanides]+FieldSampling[Y 39])) -> 234.8
A21: INV_NE18 | B21: Field sample | F21: Resource Production | G21: Coal Reserve | H21: Coal | I21: Northern Appalachia | J21: Middle Anthracite Field | K21: Buck Mountain | L21: PA | M21: Luzerne | N21: Eckley North | O21: PA | P21: Luzerne | Q21: Eckley North | R21: Outcrop | U21: 0.9366666667 | AJ21: Acid digestion | AK21: ICP-OES | AN21: 751.1 | AO21: 2971.6 | AP21: 79669.1 | AS21: 26251.1 | AT21: 98.5 | AU21: 14.5 | AX21: 64.3 | AY21: 51.1 | AZ21: 8986.2 | BA21: 6 | BB21: 30.4 | BC21: 17.6 | BD21: 17 | BG21: 0.33 | BH21: 8.9 | BJ21: 25.4 | BM21: 1.7 | BY21: 46.7 | BZ21: 97.1 | CA21: 8.9 | CB21: 40.4 | CC21: 9.4 | CD21: 1.8 | CE21: 8.4 | CF21: 2.1 | CG21: 4.5 | CH21: 6.3 | CI21: 3.1 | CJ21: 0 | CK21: 2.7 | CO21: 50.5 | CR21: =IF(ISBLANK(FieldSampling[[#This Row],[Sample Reference '# ('# required to enable calculations)]]),"",SUM(FieldSampling[[#This Row],[La 57]:[Lu 71]])) -> 231.4 | CS21: =IF(ISBLANK(FieldSampling[[#This Row],[Sample Reference '# ('# required to enable calculations)]]),"", SUM(FieldSampling[Lanthanides]+FieldSampling[Y 39])) -> 256.8
A22: INV_NE20 | B22: Field sample | F22: Resource Production | G22: Coal Reserve | H22: Coal | I22: Northern Appalachia | J22: Middle Anthracite Field | K22: Buck Mountain | L22: PA | M22: Luzerne | N22: Eckley North | O22: PA | P22: Luzerne | Q22: Eckley North | R22: Outcrop | U22: 0.9233333333 | AJ22: Acid digestion | AK22: ICP-OES | AN22: 512.7 | AO22: 1467.5 | AP22: 26092.2 | AS22: 7618.4 | AT22: 117.2 | AU22: 5 | AX22: 23.1 | AY22: 52 | AZ22: 8434.7 | BA22: 2.3 | BB22: 10.1 | BC22: 23.6 | BD22: 14.4 | BG22: 0.62 | BH22: 17.2 | BJ22: 17.6 | BM22: 1.3 | BY22: 21 | BZ22: 37.8 | CA22: 3.9 | CB22: 16 | CC22: 4.5 | CD22: 0.6 | CE22: 4.8 | CF22: 0.1 | CG22: 2.6 | CH22: 2.4 | CI22: 2.3 | CJ22: 0 | CK22: 2 | CO22: 32.1 | CR22: =IF(ISBLANK(FieldSampling[[#This Row],[Sample Reference '# ('# required to enable calculations)]]),"",SUM(FieldSampling[[#This Row],[La 57]:[Lu 71]])) -> 98 | CS22: =IF(ISBLANK(FieldSampling[[#This Row],[Sample Reference '# ('# required to enable calculations)]]),"", SUM(FieldSampling[Lanthanides]+FieldSampling[Y 39])) -> 115.6
A23: INV_NE21 | B23: Field sample | F23: Resource Production | G23: Coal Reserve | H23: Coal | I23: Northern Appalachia | J23: Middle Anthracite Field | K23: Buck Mountain | L23: PA | M23: Luzerne | N23: Eckley North | O23: PA | P23: Luzerne | Q23: Eckley North | R23: Outcrop | U23: 0.9933333333 | AJ23: Acid digestion | AK23: ICP-OES | AN23: 383 | AO23: 221.3 | AP23: 7593.1 | AS23: 3614.9 | AT23: 38.7 | AU23: 0.7 | AX23: 43.5 | AY23: 8.1 | AZ23: 2004.6 | BA23: 0 | BB23: 1.9 | BC23: 2.1 | BD23: 3.5 | BG23: 0.08 | BH23: 3.2 | BJ23: 3.4 | BM23: 0.2 | BY23: 6.7 | BZ23: 11.8 | CA23: 2.9 | CB23: 5.6 | CC23: 2.2 | CD23: 0.2 | CE23: 1.3 | CF23: 0 | CG23: 0 | CH23: 0.6 | CI23: 0 | CJ23: 0 | CK23: 0.3 | CO23: 0 | CR23: =IF(ISBLANK(FieldSampling[[#This Row],[Sample Reference '# ('# required to enable calculations)]]),"",SUM(FieldSampling[[#This Row],[La 57]:[Lu 71]])) -> 31.6 | CS23: =IF(ISBLANK(FieldSampling[[#This Row],[Sample Reference '# ('# required to enable calculations)]]),"", SUM(FieldSampling[Lanthanides]+FieldSampling[Y 39])) -> 35
A24: HS1 | B24: Field sample | F24: Resource Production | G24: Coal Reserve | H24: Coal | I24: Northern Appalachia | J24: Middle Anthracite Field | K24: Gamma | L24: PA | M24: Luzerne | N24: Highland | O24: PA | P24: Luzerne | Q24: Highland | R24: Outcrop | U24: 0.93 | AJ24: Acid digestion | AK24: ICP-OES | AN24: 1227.4 | AO24: 1987.8 | AP24: 65540.6 | AS24: 25157.6 | AT24: 77.3 | AU24: 12.1 | AX24: 66.8 | AY24: 27.9 | AZ24: 6780.4 | BA24: 10.3 | BB24: 42.9 | BD24: 18.7 | BG24: 21.5 | BH24: 6.1 | BJ24: 21.7 | BM24: 3.6 | BY24: 57.8 | BZ24: 124.1 | CA24: 12.6 | CB24: 51.1 | CC24: 12.3 | CD24: 2.2 | CE24: 9.7 | CF24: 1.2 | CG24: 4 | CH24: 8.1 | CI24: 2.7 | CJ24: 0 | CK24: 2.7 | CO24: 42 | CR24: =IF(ISBLANK(FieldSampling[[#This Row],[Sample Reference '# ('# required to enable calculations)]]),"",SUM(FieldSampling[[#This Row],[La 57]:[Lu 71]])) -> 288.5 | CS24: =IF(ISBLANK(FieldSampling[[#This Row],[Sample Reference '# ('# required to enable calculations)]]),"", SUM(FieldSampling[Lanthanides]+FieldSampling[Y 39])) -> 310.2
A25: HS2 | B25: Field sample | F25: Resource Production | G25: Coal Reserve | H25: Coal | I25: Northern Appalachia | J25: Middle Anthracite Field | K25: Gamma | L25: PA | M25: Luzerne | N25: Highland | O25: PA | P25: Luzerne | Q25: Highland | R25: Outcrop | U25: 0.9675 | AJ25: Acid digestion | AK25: ICP-OES | AN25: 676.4 | AO25: 2167.1 | AP25: 50885.1 | AS25: 19981.7 | AT25: 53.6 | AU25: 9.9 | AX25: 55.1 | AY25: 58.4 | AZ25: 9900.8 | BA25: 7.3 | BB25: 33.9 | BD25: 17.6 | BG25: 3 | BH25: 19.9 | BJ25: 24.8 | BM25: 2.9 | BY25: 52.6 | BZ25: 112.8 | CA25: 14.1 | CB25: 49.4 | CC25: 11.2 | CD25: 2 | CE25: 10.4 | CF25: 1.2 | CG25: 5.4 | CH25: 7.2 | CI25: 3 | CJ25: 0 | CK25: 2.6 | CO25: 86.8 | CR25: =IF(ISBLANK(FieldSampling[[#This Row],[Sample Reference '# ('# required to enable calculations)]]),"",SUM(FieldSampling[[#This Row],[La 57]:[Lu 71]])) -> 271.9 | CS25: =IF(ISBLANK(FieldSampling[[#This Row],[Sample Reference '# ('# required to enable calculations)]]),"", SUM(FieldSampling[Lanthanides]+FieldSampling[Y 39])) -> 296.7
A26: HS3 | B26: Field sample | F26: Resource Production | G26: Coal Reserve | H26: Coal | I26: Northern Appalachia | J26: Middle Anthracite Field | K26: Gamma | L26: PA | M26: Luzerne | N26: Highland | O26: PA | P26: Luzerne | Q26: Highland | R26: Outcrop | U26: 0.855 | AJ26: Acid digestion | AK26: ICP-OES | AN26: 2202.4 | AO26: 3588.8 | AP26: 119082.4 | AS26: 48191.6 | AT26: 138 | AU26: 20.5 | AX26: 102.7 | AY26: 36.2 | AZ26: 10071.7 | BA26: 7 | BB26: 38.9 | BD26: 27.6 | BG26: 25.5 | BH26: 12.8 | BJ26: 31.1 | BM26: 7.1 | BY26: 61.4 | BZ26: 129.7 | CA26: 13.9 | CB26: 55.3 | CC26: 12.6 | CD26: 3 | CE26: 11.6 | CF26: 1.8 | CG26: 6.1 | CH26: 8.3 | CI26: 4.7 | CJ26: 0 | CK26: 3.7 | CO26: 165.6 | CR26: =IF(ISBLANK(FieldSampling[[#This Row],[Sample Reference '# ('# required to enable calculations)]]),"",SUM(FieldSampling[[#This Row],[La 57]:[Lu 71]])) -> 312.1 | CS26: =IF(ISBLANK(FieldSampling[[#This Row],[Sample Reference '# ('# required to enable calculations)]]),"", SUM(FieldSampling[Lanthanides]+FieldSampling[Y 39])) -> 343.2
A27: HS4 | B27: Field sample | F27: Resource Production | G27: Coal Reserve | H27: Coal | I27: Northern Appalachia | J27: Middle Anthracite Field | K27: Gamma | L27: PA | M27: Luzerne | N27: Highland | O27: PA | P27: Luzerne | Q27: Highland | R27: Outcrop | U27: 0.955 | AJ27: Acid digestion | AK27: ICP-OES | AN27: 470.2 | AO27: 284.4 | AP27: 13187.2 | AS27: 5683.7 | AT27: 43.6 | AU27: 1.7 | AX27: 13.4 | AY27: 29.6 | AZ27: 8860.5 | BA27: 0.6 | BB27: 0.7 | BD27: 7 | BG27: 0.5 | BH27: 6.7 | BJ27: 3.5 | BM27: 1 | BY27: 10.4 | BZ27: 27.8 | CA27: 4.4 | CB27: 12.6 | CC27: 2.7 | CD27: 0.3 | CE27: 2.7 | CF27: 0 | CG27: 0.4 | CH27: 1.3 | CI27: 0.4 | CJ27: 0 | CK27: 0.5 | CO27: 9.2 | CR27: =IF(ISBLANK(FieldSampling[[#This Row],[Sample Reference '# ('# required to enable calculations)]]),"",SUM(FieldSampling[[#This Row],[La 57]:[Lu 71]])) -> 63.5 | CS27: =IF(ISBLANK(FieldSampling[[#This Row],[Sample Reference '# ('# required to enable calculations)]]),"", SUM(FieldSampling[Lanthanides]+FieldSampling[Y 39])) -> 67
A28: HS5 | B28: Field sample | F28: Resource Production | G28: Coal Reserve | H28: Coal | I28: Northern Appalachia | J28: Middle Anthracite Field | K28: Gamma | L28: PA | M28: Luzerne | N28: Highland | O28: PA | P28: Luzerne | Q28: Highland | R28: Outcrop | U28: 0.9675 | AJ28: Acid digestion | AK28: ICP-OES | AN28: 300.4 | AO28: 561 | AP28: 30051.6 | AS28: 16379.5 | AT28: 43.8 | AU28: 3.9 | AX28: 37.2 | AY28: 27.5 | AZ28: 13564.5 | BA28: 0.7 | BB28: 0 | BD28: 25.8 | BG28: 5.1 | BH28: 4.1 | BJ28: 6.1 | BM28: 2.9 | BY28: 13.6 | BZ28: 31 | CA28: 2.4 | CB28: 15.3 | CC28: 3.6 | CD28: 0.6 | CE28: 4.2 | CF28: 0.5 | CG28: 0.6 | CH28: 1.7 | CI28: 1 | CJ28: 0 | CK28: 0.8 | CO28: 71.7 | CR28: =IF(ISBLANK(FieldSampling[[#This Row],[Sample Reference '# ('# required to enable calculations)]]),"",SUM(FieldSampling[[#This Row],[La 57]:[Lu 71]])) -> 75.3 | CS28: =IF(ISBLANK(FieldSampling[[#This Row],[Sample Reference '# ('# required to enable calculations)]]),"", SUM(FieldSampling[Lanthanides]+FieldSampling[Y 39])) -> 81.4
A29: HS6 | B29: Field sample | F29: Resource Production | G29: Coal Reserve | H29: Coal | I29: Northern Appalachia | J29: Middle Anthracite Field | K29: Gamma | L29: PA | M29: Luzerne | N29: Highland | O29: PA | P29: Luzerne | Q29: Highland | R29: Outcrop | U29: 0.9575 | AJ29: Acid digestion | AK29: ICP-OES | AN29: 434.1 | AO29: 967 | AP29: 42804.3 | AS29: 17083.1 | AT29: 37.8 | AU29: 5.2 | AX29: 47.7 | AY29: 228 | AZ29: 18893.8 | BA29: 5.1 | BB29: 10.2 | BD29: 26.2 | BG29: 4.9 | BH29: 12.1 | BJ29: 8.4 | BM29: 2.3 | BY29: 14 | BZ29: 32.3 | CA29: 4.3 | CB29: 13.2 | CC29: 3.3 | CD29: 0.7 | CE29: 5.6 | CF29: 0 | CG29: 0.3 | CH29: 2.3 | CI29: 0.6 | CJ29: 0 | CK29: 1.2 | CO29: 44.8 | CR29: =IF(ISBLANK(FieldSampling[[#This Row],[Sample Reference '# ('# required to enable calculations)]]),"",SUM(FieldSampling[[#This Row],[La 57]:[Lu 71]])) -> 77.8 | CS29: =IF(ISBLANK(FieldSampling[[#This Row],[Sample Reference '# ('# required to enable calculations)]]),"", SUM(FieldSampling[Lanthanides]+FieldSampling[Y 39])) -> 86.2
A30: HS7 | B30: Field sample | F30: Resource Production | G30: Coal Reserve | H30: Coal | I30: Northern Appalachia | J30: Middle Anthracite Field | K30: Gamma | L30: PA | M30: Luzerne | N30: Highland | O30: PA | P30: Luzerne | Q30: Highland | R30: Outcrop | U30: 0.985 | AJ30: Acid digestion | AK30: ICP-OES | AN30: 315.1 | AO30: 679.8 | AP30: 33336.8 | AS30: 11851.7 | AT30: 39.6 | AU30: 4.2 | AX30: 78.7 | AY30: 25 | AZ30: 10194.8 | BA30: 2.2 | BB30: 11.3 | BD30: 21.6 | BG30: 9.6 | BH30: 17.1 | BJ30: 6.6 | BM30: 2.9 | BY30: 8.3 | BZ30: 23.6 | CA30: 3.4 | CB30: 10 | CC30: 2.3 | CD30: 0.5 | CE30: 3.5 | CF30: 0 | CG30: 0.5 | CH30: 1.7 | CI30: 0.9 | CJ30: 0 | CK30: 0.9 | CO30: 48.9 | CR30: =IF(ISBLANK(FieldSampling[[#This Row],[Sample Reference '# ('# required to enable calculations)]]),"",SUM(FieldSampling[[#This Row],[La 57]:[Lu 71]])) -> 55.6 | CS30: =IF(ISBLANK(FieldSampling[[#This Row],[Sample Reference '# ('# required to enable calculations)]]),"", SUM(FieldSampling[Lanthanides]+FieldSampling[Y 39])) -> 62.2
A31: HS8 | B31: Field sample | F31: Resource Production | G31: Coal Reserve | H31: Coal | I31: Northern Appalachia | J31: Middle Anthracite Field | K31: Gamma | L31: PA | M31: Luzerne | N31: Highland | O31: PA | P31: Luzerne | Q31: Highland | R31: Outcrop | U31: 0.9875 | AJ31: Acid digestion | AK31: ICP-OES | AN31: 270.3 | AO31: 858.6 | AP31: 42834.3 | AS31: 19838 | AT31: 30.5 | AU31: 4.1 | AX31: 41.8 | AY31: 31.6 | AZ31: 9551.2 | BA31: 5.9 | BB31: 13.8 | BD31: 37.1 | BG31: 1.6 | BH31: 8.3 | BJ31: 8 | BM31: 1.7 | BY31: 17.9 | BZ31: 35.2 | CA31: 2.6 | CB31: 14.7 | CC31: 3.5 | CD31: 0.7 | CE31: 3.9 | CF31: 0.9 | CG31: 1.3 | CH31: 2.3 | CI31: 1 | CJ31: 0 | CK31: 1 | CO31: 30 | CR31: =IF(ISBLANK(FieldSampling[[#This Row],[Sample Reference '# ('# required to enable calculations)]]),"",SUM(FieldSampling[[#This Row],[La 57]:[Lu 71]])) -> 85 | CS31: =IF(ISBLANK(FieldSampling[[#This Row],[Sample Reference '# ('# required to enable calculations)]]),"", SUM(FieldSampling[Lanthanides]+FieldSampling[Y 39])) -> 93
A32: HN1 | B32: Field sample | F32: Resource Production | G32: Coal Reserve | H32: Coal | I32: Northern Appalachia | J32: Middle Anthracite Field | K32: Gamma | L32: PA | M32: Luzerne | N32: Highland | O32: PA | P32: Luzerne | Q32: Highland | R32: Outcrop | U32: 0.97 | AJ32: Acid digestion | AK32: ICP-OES | AN32: 675 | AO32: 246.7 | AP32: 7592.5 | AS32: 4490.1 | AT32: 41.6 | AU32: 0.7 | AX32: 28.1 | AY32: 11 | AZ32: 1913.5 | BA32: 0 | BB32: 3.1 | BD32: 4.7 | BG32: 1.1 | BH32: 17.7 | BJ32: 1.2 | BM32: 1.4 | BY32: 4.1 | BZ32: 7.3 | CA32: 0.4 | CB32: 3.1 | CC32: 1 | CD32: 0.2 | CE32: 0.9 | CF32: 0 | CG32: 0 | CH32: 0.3 | CI32: 0 | CJ32: 0 | CK32: 0.1 | CO32: 36.8 | CR32: =IF(ISBLANK(FieldSampling[[#This Row],[Sample Reference '# ('# required to enable calculations)]]),"",SUM(FieldSampling[[#This Row],[La 57]:[Lu 71]])) -> 17.4 | CS32: =IF(ISBLANK(FieldSampling[[#This Row],[Sample Reference '# ('# required to enable calculations)]]),"", SUM(FieldSampling[Lanthanides]+FieldSampling[Y 39])) -> 18.6
A33: HN2 | B33: Field sample | F33: Resource Production | G33: Coal Reserve | H33: Coal | I33: Northern Appalachia | J33: Middle Anthracite Field | K33: Gamma | L33: PA | M33: Luzerne | N33: Highland | O33: PA | P33: Luzerne | Q33: Highland | R33: Outcrop | U33: 0.965 | AJ33: Acid digestion | AK33: ICP-OES | AN33: 501 | AO33: 2130.1 | AP33: 31875.2 | AS33: 12111 | AT33: 127.3 | AU33: 5.2 | AX33: 36.7 | AY33: 112.6 | AZ33: 16167.6 | BA33: 6.4 | BB33: 23.5 | BD33: 51.4 | BG33: 0.6 | BH33: 8.2 | BJ33: 9.4 | BM33: 0.3 | BY33: 30.1 | BZ33: 63.8 | CA33: 6.6 | CB33: 31.1 | CC33: 7.3 | CD33: 1 | CE33: 7.4 | CF33: 0.8 | CG33: 1.2 | CH33: 5.1 | CI33: 0.9 | CJ33: 0 | CK33: 1.4 | CO33: 16.4 | CR33: =IF(ISBLANK(FieldSampling[[#This Row],[Sample Reference '# ('# required to enable calculations)]]),"",SUM(FieldSampling[[#This Row],[La 57]:[Lu 71]])) -> 156.7 | CS33: =IF(ISBLANK(FieldSampling[[#This Row],[Sample Reference '# ('# required to enable calculations)]]),"", SUM(FieldSampling[Lanthanides]+FieldSampling[Y 39])) -> 166.1
A34: HN3 | B34: Field sample | F34: Resource Production | G34: Coal Reserve | H34: Coal | I34: Northern Appalachia | J34: Middle Anthracite Field | K34: Gamma | L34: PA | M34: Luzerne | N34: Highland | O34: PA | P34: Luzerne | Q34: Highland | R34: Outcrop | U34: 0.9675 | AJ34: Acid digestion | AK34: ICP-OES | AN34: 871.7 | AO34: 3009.2 | AP34: 70181.9 | AS34: 27815.5 | AT34: 89.5 | AU34: 11.8 | AX34: 66.5 | AY34: 69 | AZ34: 20644.2 | BA34: 5.7 | BB34: 21.2 | BD34: 37.2 | BG34: 3 | BH34: 19.1 | BJ34: 16.2 | BM34: 3.2 | BY34: 38 | BZ34: 78.5 | CA34: 7.4 | CB34: 34.7 | CC34: 7.4 | CD34: 1.4 | CE34: 8.4 | CF34: 0.9 | CG34: 2.2 | CH34: 5.2 | CI34: 2.2 | CJ34: 0 | CK34: 2.2 | CO34: 7.8 | CR34: =IF(ISBLANK(FieldSampling[[#This Row],[Sample Reference '# ('# required to enable calculations)]]),"",SUM(FieldSampling[[#This Row],[La 57]:[Lu 71]])) -> 188.5 | CS34: =IF(ISBLANK(FieldSampling[[#This Row],[Sample Reference '# ('# required to enable calculations)]]),"", SUM(FieldSampling[Lanthanides]+FieldSampling[Y 39])) -> 204.7
A35: HN4 | B35: Field sample | F35: Resource Production | G35: Coal Reserve | H35: Coal | I35: Northern Appalachia | J35: Middle Anthracite Field | K35: Gamma | L35: PA | M35: Luzerne | N35: Highland | O35: PA | P35: Luzerne | Q35: Highland | R35: Outcrop | U35: 0.99 | AJ35: Acid digestion | AK35: ICP-OES | AN35: 0 | AO35: 1050.7 | AP35: 17512.3 | AS35: 6755.3 | AT35: 49.6 | AU35: 2.6 | AX35: 140.4 | AY35: 34 | AZ35: 9766.2 | BA35: 2.2 | BB35: 4.5 | BD35: 17.8 | BG35: 4.1 | BH35: 24.8 | BJ35: 5.1 | BM35: 1.6 | BY35: 8 | BZ35: 15.3 | CA35: 1.8 | CB35: 7.8 | CC35: 1.9 | CD35: 0.3 | CE35: 3.1 | CF35: 0 | CG35: 0.4 | CH35: 1.3 | CI35: 0.6 | CJ35: 0 | CK35: 0.7 | CO35: 8.3 | CR35: =IF(ISBLANK(FieldSampling[[#This Row],[Sample Reference '# ('# required to enable calculations)]]),"",SUM(FieldSampling[[#This Row],[La 57]:[Lu 71]])) -> 41.2 | CS35: =IF(ISBLANK(FieldSampling[[#This Row],[Sample Reference '# ('# required to enable calculations)]]),"", SUM(FieldSampling[Lanthanides]+FieldSampling[Y 39])) -> 46.3
A36: HN5 | B36: Field sample | F36: Resource Production | G36: Coal Reserve | H36: Coal | I36: Northern Appalachia | J36: Middle Anthracite Field | K36: Gamma | L36: PA | M36: Luzerne | N36: Highland | O36: PA | P36: Luzerne | Q36: Highland | R36: Outcrop | U36: 0.9775 | AJ36: Acid digestion | AK36: ICP-OES | AN36: 751.9 | AO36: 966.2 | AP36: 27231.2 | AS36: 13430.8 | AT36: 51.3 | AU36: 4.9 | AX36: 48.4 | AY36: 12.7 | AZ36: 13786.5 | BA36: 1.8 | BB36: 16.2 | BD36: 23.6 | BG36: 3.1 | BH36: 7.7 | BJ36: 6.5 | BM36: 2.4 | BY36: 10.4 | BZ36: 28.1 | CA36: 2.8 | CB36: 12.8 | CC36: 3.5 | CD36: 0.6 | CE36: 4.8 | CF36: 1 | CG36: 0.8 | CH36: 2.8 | CI36: 0.5 | CJ36: 0 | CK36: 0.9 | CO36: 46.1 | CR36: =IF(ISBLANK(FieldSampling[[#This Row],[Sample Reference '# ('# required to enable calculations)]]),"",SUM(FieldSampling[[#This Row],[La 57]:[Lu 71]])) -> 69 | CS36: =IF(ISBLANK(FieldSampling[[#This Row],[Sample Reference '# ('# required to enable calculations)]]),"", SUM(FieldSampling[Lanthanides]+FieldSampling[Y 39])) -> 75.5
CR37: =IF(ISBLANK(FieldSampling[[#This Row],[Sample Reference '# ('# required to enable calculations)]]),"",SUM(FieldSampling[[#This Row],[La 57]:[Lu 71]])) ->  | CS37: =IF(ISBLANK(FieldSampling[[#This Row],[Sample Reference '# ('# required to enable calculations)]]),"", SUM(FieldSampling[Lanthanides]+FieldSampling[Y 39])) -> 
CR38: =IF(ISBLANK(FieldSampling[[#This Row],[Sample Reference '# ('# required to enable calculations)]]),"",SUM(FieldSampling[[#This Row],[La 57]:[Lu 71]])) ->  | CS38: =IF(ISBLANK(FieldSampling[[#This Row],[Sample Reference '# ('# required to enable calculations)]]),"", SUM(FieldSampling[Lanthanides]+FieldSampling[Y 39])) -> 
CR39: =IF(ISBLANK(FieldSampling[[#This Row],[Sample Reference '# ('# required to enable calculations)]]),"",SUM(FieldSampling[[#This Row],[La 57]:[Lu 71]])) ->  | CS39: =IF(ISBLANK(FieldSampling[[#This Row],[Sample Reference '# ('# required to enable calculations)]]),"", SUM(FieldSampling[Lanthanides]+FieldSampling[Y 39])) -> 
CR40: =IF(ISBLANK(FieldSampling[[#This Row],[Sample Reference '# ('# required to enable calculations)]]),"",SUM(FieldSampling[[#This Row],[La 57]:[Lu 71]])) ->  | CS40: =IF(ISBLANK(FieldSampling[[#This Row],[Sample Reference '# ('# required to enable calculations)]]),"", SUM(FieldSampling[Lanthanides]+FieldSampling[Y 39])) -> 
CR41: =IF(ISBLANK(FieldSampling[[#This Row],[Sample Reference '# ('# required to enable calculations)]]),"",SUM(FieldSampling[[#This Row],[La 57]:[Lu 71]])) ->  | CS41: =IF(ISBLANK(FieldSampling[[#This Row],[Sample Reference '# ('# required to enable calculations)]]),"", SUM(FieldSampling[Lanthanides]+FieldSampling[Y 39])) -> 
CR42: =IF(ISBLANK(FieldSampling[[#This Row],[Sample Reference '# ('# required to enable calculations)]]),"",SUM(FieldSampling[[#This Row],[La 57]:[Lu 71]])) ->  | CS42: =IF(ISBLANK(FieldSampling[[#This Row],[Sample Reference '# ('# required to enable calculations)]]),"", SUM(FieldSampling[Lanthanides]+FieldSampling[Y 39])) -> 
CR43: =IF(ISBLANK(FieldSampling[[#This Row],[Sample Reference '# ('# required to enable calculations)]]),"",SUM(FieldSampling[[#This Row],[La 57]:[Lu 71]])) ->  | CS43: =IF(ISBLANK(FieldSampling[[#This Row],[Sample Reference '# ('# required to enable calculations)]]),"", SUM(FieldSampling[Lanthanides]+FieldSampling[Y 39])) -> 
CR44: =IF(ISBLANK(FieldSampling[[#This Row],[Sample Reference '# ('# required to enable calculations)]]),"",SUM(FieldSampling[[#This Row],[La 57]:[Lu 71]])) ->  | CS44: =IF(ISBLANK(FieldSampling[[#This Row],[Sample Reference '# ('# required to enable calculations)]]),"", SUM(FieldSampling[Lanthanides]+FieldSampling[Y 39])) -> 
CR45: =IF(ISBLANK(FieldSampling[[#This Row],[Sample Reference '# ('# required to enable calculations)]]),"",SUM(FieldSampling[[#This Row],[La 57]:[Lu 71]])) ->  | CS45: =IF(ISBLANK(FieldSampling[[#This Row],[Sample Reference '# ('# required to enable calculations)]]),"", SUM(FieldSampling[Lanthanides]+FieldSampling[Y 39])) -> 
CR46: =IF(ISBLANK(FieldSampling[[#This Row],[Sample Reference '# ('# required to enable calculations)]]),"",SUM(FieldSampling[[#This Row],[La 57]:[Lu 71]])) ->  | CS46: =IF(ISBLANK(FieldSampling[[#This Row],[Sample Reference '# ('# required to enable calculations)]]),"", SUM(FieldSampling[Lanthanides]+FieldSampling[Y 39])) -> 
CR47: =IF(ISBLANK(FieldSampling[[#This Row],[Sample Reference '# ('# required to enable calculations)]]),"",SUM(FieldSampling[[#This Row],[La 57]:[Lu 71]])) ->  | CS47: =IF(ISBLANK(FieldSampling[[#This Row],[Sample Reference '# ('# required to enable calculations)]]),"", SUM(FieldSampling[Lanthanides]+FieldSampling[Y 39])) -> 
CR48: =IF(ISBLANK(FieldSampling[[#This Row],[Sample Reference '# ('# required to enable calculations)]]),"",SUM(FieldSampling[[#This Row],[La 57]:[Lu 71]])) ->  | CS48: =IF(ISBLANK(FieldSampling[[#This Row],[Sample Reference '# ('# required to enable calculations)]]),"", SUM(FieldSampling[Lanthanides]+FieldSampling[Y 39])) -> 
CR49: =IF(ISBLANK(FieldSampling[[#This Row],[Sample Reference '# ('# required to enable calculations)]]),"",SUM(FieldSampling[[#This Row],[La 57]:[Lu 71]])) ->  | CS49: =IF(ISBLANK(FieldSampling[[#This Row],[Sample Reference '# ('# required to enable calculations)]]),"", SUM(FieldSampling[Lanthanides]+FieldSampling[Y 39])) -> 
CR50: =IF(ISBLANK(FieldSampling[[#This Row],[Sample Reference '# ('# required to enable calculations)]]),"",SUM(FieldSampling[[#This Row],[La 57]:[Lu 71]])) ->  | CS50: =IF(ISBLANK(FieldSampling[[#This Row],[Sample Reference '# ('# required to enable calculations)]]),"", SUM(FieldSampling[Lanthanides]+FieldSampling[Y 39])) -> 
CR51: =IF(ISBLANK(FieldSampling[[#This Row],[Sample Reference '# ('# required to enable calculations)]]),"",SUM(FieldSampling[[#This Row],[La 57]:[Lu 71]])) ->  | CS51: =IF(ISBLANK(FieldSampling[[#This Row],[Sample Reference '# ('# required to enable calculations)]]),"", SUM(FieldSampling[Lanthanides]+FieldSampling[Y 39])) -> 
CR52: =IF(ISBLANK(FieldSampling[[#This Row],[Sample Reference '# ('# required to enable calculations)]]),"",SUM(FieldSampling[[#This Row],[La 57]:[Lu 71]])) ->  | CS52: =IF(ISBLANK(FieldSampling[[#This Row],[Sample Reference '# ('# required to enable calculations)]]),"", SUM(FieldSampling[Lanthanides]+FieldSampling[Y 39])) -> 
CR53: =IF(ISBLANK(FieldSampling[[#This Row],[Sample Reference '# ('# required to enable calculations)]]),"",SUM(FieldSampling[[#This Row],[La 57]:[Lu 71]])) ->  | CS53: =IF(ISBLANK(FieldSampling[[#This Row],[Sample Reference '# ('# required to enable calculations)]]),"", SUM(FieldSampling[Lanthanides]+FieldSampling[Y 39])) -> 
CR54: =IF(ISBLANK(FieldSampling[[#This Row],[Sample Reference '# ('# required to enable calculations)]]),"",SUM(FieldSampling[[#This Row],[La 57]:[Lu 71]])) ->  | CS54: =IF(ISBLANK(FieldSampling[[#This Row],[Sample Reference '# ('# required to enable calculations)]]),"", SUM(FieldSampling[Lanthanides]+FieldSampling[Y 39])) -> 
CR55: =IF(ISBLANK(FieldSampling[[#This Row],[Sample Reference '# ('# required to enable calculations)]]),"",SUM(FieldSampling[[#This Row],[La 57]:[Lu 71]])) ->  | CS55: =IF(ISBLANK(FieldSampling[[#This Row],[Sample Reference '# ('# required to enable calculations)]]),"", SUM(FieldSampling[Lanthanides]+FieldSampling[Y 39])) -> 
CJ56: 0+CJ13:CJ+[@[Tm 69]]360 | CR56: =IF(ISBLANK(FieldSampling[[#This Row],[Sample Reference '# ('# required to enable calculations)]]),"",SUM(FieldSampling[[#This Row],[La 57]:[Lu 71]])) ->  | CS56: =IF(ISBLANK(FieldSampling[[#This Row],[Sample Reference '# ('# required to enable calculations)]]),"", SUM(FieldSampling[Lanthanides]+FieldSampling[Y 39])) -> 
CR57: =IF(ISBLANK(FieldSampling[[#This Row],[Sample Reference '# ('# required to enable calculations)]]),"",SUM(FieldSampling[[#This Row],[La 57]:[Lu 71]])) ->  | CS57: =IF(ISBLANK(FieldSampling[[#This Row],[Sample Reference '# ('# required to enable calculations)]]),"", SUM(FieldSampling[Lanthanides]+FieldSampling[Y 39])) -> 
CR58: =IF(ISBLANK(FieldSampling[[#This Row],[Sample Reference '# ('# required to enable calculations)]]),"",SUM(FieldSampling[[#This Row],[La 57]:[Lu 71]])) ->  | CS58: =IF(ISBLANK(FieldSampling[[#This Row],[Sample Reference '# ('# required to enable calculations)]]),"", SUM(FieldSampling[Lanthanides]+FieldSampling[Y 39])) -> 
CR59: =IF(ISBLANK(FieldSampling[[#This Row],[Sample Reference '# ('# required to enable calculations)]]),"",SUM(FieldSampling[[#This Row],[La 57]:[Lu 71]])) ->  | CS59: =IF(ISBLANK(FieldSampling[[#This Row],[Sample Reference '# ('# required to enable calculations)]]),"", SUM(FieldSampling[Lanthanides]+FieldSampling[Y 39])) -> 
CR60: =IF(ISBLANK(FieldSampling[[#This Row],[Sample Reference '# ('# required to enable calculations)]]),"",SUM(FieldSampling[[#This Row],[La 57]:[Lu 71]])) ->  | CS60: =IF(ISBLANK(FieldSampling[[#This Row],[Sample Reference '# ('# required to enable calculations)]]),"", SUM(FieldSampling[Lanthanides]+FieldSampling[Y 39])) -> 
CR61: =IF(ISBLANK(FieldSampling[[#This Row],[Sample Reference '# ('# required to enable calculations)]]),"",SUM(FieldSampling[[#This Row],[La 57]:[Lu 71]])) ->  | CS61: =IF(ISBLANK(FieldSampling[[#This Row],[Sample Reference '# ('# required to enable calculations)]]),"", SUM(FieldSampling[Lanthanides]+FieldSampling[Y 39])) -> 
CR62: =IF(ISBLANK(FieldSampling[[#This Row],[Sample Reference '# ('# required to enable calculations)]]),"",SUM(FieldSampling[[#This Row],[La 57]:[Lu 71]])) ->  | CS62: =IF(ISBLANK(FieldSampling[[#This Row],[Sample Reference '# ('# required to enable calculations)]]),"", SUM(FieldSampling[Lanthanides]+FieldSampling[Y 39])) -> 
CR63: =IF(ISBLANK(FieldSampling[[#This Row],[Sample Reference '# ('# required to enable calculations)]]),"",SUM(FieldSampling[[#This Row],[La 57]:[Lu 71]])) ->  | CS63: =IF(ISBLANK(FieldSampling[[#This Row],[Sample Reference '# ('# required to enable calculations)]]),"", SUM(FieldSampling[Lanthanides]+FieldSampling[Y 39])) -> 
CR64: =IF(ISBLANK(FieldSampling[[#This Row],[Sample Reference '# ('# required to enable calculations)]]),"",SUM(FieldSampling[[#This Row],[La 57]:[Lu 71]])) ->  | CS64: =IF(ISBLANK(FieldSampling[[#This Row],[Sample Reference '# ('# required to enable calculations)]]),"", SUM(FieldSampling[Lanthanides]+FieldSampling[Y 39])) -> 
CR65: =IF(ISBLANK(FieldSampling[[#This Row],[Sample Reference '# ('# required to enable calculations)]]),"",SUM(FieldSampling[[#This Row],[La 57]:[Lu 71]])) ->  | CS65: =IF(ISBLANK(FieldSampling[[#This Row],[Sample Reference '# ('# required to enable calculations)]]),"", SUM(FieldSampling[Lanthanides]+FieldSampling[Y 39])) -> 
CR66: =IF(ISBLANK(FieldSampling[[#This Row],[Sample Reference '# ('# required to enable calculations)]]),"",SUM(FieldSampling[[#This Row],[La 57]:[Lu 71]])) ->  | CS66: =IF(ISBLANK(FieldSampling[[#This Row],[Sample Reference '# ('# required to enable calculations)]]),"", SUM(FieldSampling[Lanthanides]+FieldSampling[Y 39])) -> 
CR67: =IF(ISBLANK(FieldSampling[[#This Row],[Sample Reference '# ('# required to enable calculations)]]),"",SUM(FieldSampling[[#This Row],[La 57]:[Lu 71]])) ->  | CS67: =IF(ISBLANK(FieldSampling[[#This Row],[Sample Reference '# ('# required to enable calculations)]]),"", SUM(FieldSampling[Lanthanides]+FieldSampling[Y 39])) -> 
CR68: =IF(ISBLANK(FieldSampling[[#This Row],[Sample Reference '# ('# required to enable calculations)]]),"",SUM(FieldSampling[[#This Row],[La 57]:[Lu 71]])) ->  | CS68: =IF(ISBLANK(FieldSampling[[#This Row],[Sample Reference '# ('# required to enable calculations)]]),"", SUM(FieldSampling[Lanthanides]+FieldSampling[Y 39])) -> 
CR69: =IF(ISBLANK(FieldSampling[[#This Row],[Sample Reference '# ('# required to enable calculations)]]),"",SUM(FieldSampling[[#This Row],[La 57]:[Lu 71]])) ->  | CS69: =IF(ISBLANK(FieldSampling[[#This Row],[Sample Reference '# ('# required to enable calculations)]]),"", SUM(FieldSampling[Lanthanides]+FieldSampling[Y 39])) -> 
CR70: =IF(ISBLANK(FieldSampling[[#This Row],[Sample Reference '# ('# required to enable calculations)]]),"",SUM(FieldSampling[[#This Row],[La 57]:[Lu 71]])) ->  | CS70: =IF(ISBLANK(FieldSampling[[#This Row],[Sample Reference '# ('# required to enable calculations)]]),"", SUM(FieldSampling[Lanthanides]+FieldSampling[Y 39])) -> 
CR71: =IF(ISBLANK(FieldSampling[[#This Row],[Sample Reference '# ('# required to enable calculations)]]),"",SUM(FieldSampling[[#This Row],[La 57]:[Lu 71]])) ->  | CS71: =IF(ISBLANK(FieldSampling[[#This Row],[Sample Reference '# ('# required to enable calculations)]]),"", SUM(FieldSampling[Lanthanides]+FieldSampling[Y 39])) -> 
CR72: =IF(ISBLANK(FieldSampling[[#This Row],[Sample Reference '# ('# required to enable calculations)]]),"",SUM(FieldSampling[[#This Row],[La 57]:[Lu 71]])) ->  | CS72: =IF(ISBLANK(FieldSampling[[#This Row],[Sample Reference '# ('# required to enable calculations)]]),"", SUM(FieldSampling[Lanthanides]+FieldSampling[Y 39])) -> 
CR73: =IF(ISBLANK(FieldSampling[[#This Row],[Sample Reference '# ('# required to enable calculations)]]),"",SUM(FieldSampling[[#This Row],[La 57]:[Lu 71]])) ->  | CS73: =IF(ISBLANK(FieldSampling[[#This Row],[Sample Reference '# ('# required to enable calculations)]]),"", SUM(FieldSampling[Lanthanides]+FieldSampling[Y 39])) -> 
CR74: =IF(ISBLANK(FieldSampling[[#This Row],[Sample Reference '# ('# required to enable calculations)]]),"",SUM(FieldSampling[[#This Row],[La 57]:[Lu 71]])) ->  | CS74: =IF(ISBLANK(FieldSampling[[#This Row],[Sample Reference '# ('# required to enable calculations)]]),"", SUM(FieldSampling[Lanthanides]+FieldSampling[Y 39])) -> 
CR75: =IF(ISBLANK(FieldSampling[[#This Row],[Sample Reference '# ('# required to enable calculations)]]),"",SUM(FieldSampling[[#This Row],[La 57]:[Lu 71]])) ->  | CS75: =IF(ISBLANK(FieldSampling[[#This Row],[Sample Reference '# ('# required to enable calculations)]]),"", SUM(FieldSampling[Lanthanides]+FieldSampling[Y 39])) -> 
CR76: =IF(ISBLANK(FieldSampling[[#This Row],[Sample Reference '# ('# required to enable calculations)]]),"",SUM(FieldSampling[[#This Row],[La 57]:[Lu 71]])) ->  | CS76: =IF(ISBLANK(FieldSampling[[#This Row],[Sample Reference '# ('# required to enable calculations)]]),"", SUM(FieldSampling[Lanthanides]+FieldSampling[Y 39])) -> 
CR77: =IF(ISBLANK(FieldSampling[[#This Row],[Sample Reference '# ('# required to enable calculations)]]),"",SUM(FieldSampling[[#This Row],[La 57]:[Lu 71]])) ->  | CS77: =IF(ISBLANK(FieldSampling[[#This Row],[Sample Reference '# ('# required to enable calculations)]]),"", SUM(FieldSampling[Lanthanides]+FieldSampling[Y 39])) -> 
CR78: =IF(ISBLANK(FieldSampling[[#This Row],[Sample Reference '# ('# required to enable calculations)]]),"",SUM(FieldSampling[[#This Row],[La 57]:[Lu 71]])) ->  | CS78: =IF(ISBLANK(FieldSampling[[#This Row],[Sample Reference '# ('# required to enable calculations)]]),"", SUM(FieldSampling[Lanthanides]+FieldSampling[Y 39])) -> 
CR79: =IF(ISBLANK(FieldSampling[[#This Row],[Sample Reference '# ('# required to enable calculations)]]),"",SUM(FieldSampling[[#This Row],[La 57]:[Lu 71]])) ->  | CS79: =IF(ISBLANK(FieldSampling[[#This Row],[Sample Reference '# ('# required to enable calculations)]]),"", SUM(FieldSampling[Lanthanides]+FieldSampling[Y 39])) -> 
CR80: =IF(ISBLANK(FieldSampling[[#This Row],[Sample Reference '# ('# required to enable calculations)]]),"",SUM(FieldSampling[[#This Row],[La 57]:[Lu 71]])) ->  | CS80: =IF(ISBLANK(FieldSampling[[#This Row],[Sample Reference '# ('# required to enable calculations)]]),"", SUM(FieldSampling[Lanthanides]+FieldSampling[Y 39])) -> 
CR81: =IF(ISBLANK(FieldSampling[[#This Row],[Sample Reference '# ('# required to enable calculations)]]),"",SUM(FieldSampling[[#This Row],[La 57]:[Lu 71]])) ->  | CS81: =IF(ISBLANK(FieldSampling[[#This Row],[Sample Reference '# ('# required to enable calculations)]]),"", SUM(FieldSampling[Lanthanides]+FieldSampling[Y 39])) -> 
CR82: =IF(ISBLANK(FieldSampling[[#This Row],[Sample Reference '# ('# required to enable calculations)]]),"",SUM(FieldSampling[[#This Row],[La 57]:[Lu 71]])) ->  | CS82: =IF(ISBLANK(FieldSampling[[#This Row],[Sample Reference '# ('# required to enable calculations)]]),"", SUM(FieldSampling[Lanthanides]+FieldSampling[Y 39])) -> 
CR83: =IF(ISBLANK(FieldSampling[[#This Row],[Sample Reference '# ('# required to enable calculations)]]),"",SUM(FieldSampling[[#This Row],[La 57]:[Lu 71]])) ->  | CS83: =IF(ISBLANK(FieldSampling[[#This Row],[Sample Reference '# ('# required to enable calculations)]]),"", SUM(FieldSampling[Lanthanides]+FieldSampling[Y 39])) -> 
CR84: =IF(ISBLANK(FieldSampling[[#This Row],[Sample Reference '# ('# required to enable calculations)]]),"",SUM(FieldSampling[[#This Row],[La 57]:[Lu 71]])) ->  | CS84: =IF(ISBLANK(FieldSampling[[#This Row],[Sample Reference '# ('# required to enable calculations)]]),"", SUM(FieldSampling[Lanthanides]+FieldSampling[Y 39])) -> 
CR85: =IF(ISBLANK(FieldSampling[[#This Row],[Sample Reference '# ('# required to enable calculations)]]),"",SUM(FieldSampling[[#This Row],[La 57]:[Lu 71]])) ->  | CS85: =IF(ISBLANK(FieldSampling[[#This Row],[Sample Reference '# ('# required to enable calculations)]]),"", SUM(FieldSampling[Lanthanides]+FieldSampling[Y 39])) -> 
CR86: =IF(ISBLANK(FieldSampling[[#This Row],[Sample Reference '# ('# required to enable calculations)]]),"",SUM(FieldSampling[[#This Row],[La 57]:[Lu 71]])) ->  | CS86: =IF(ISBLANK(FieldSampling[[#This Row],[Sample Reference '# ('# required to enable calculations)]]),"", SUM(FieldSampling[Lanthanides]+FieldSampling[Y 39])) -> 
CR87: =IF(ISBLANK(FieldSampling[[#This Row],[Sample Reference '# ('# required to enable calculations)]]),"",SUM(FieldSampling[[#This Row],[La 57]:[Lu 71]])) ->  | CS87: =IF(ISBLANK(FieldSampling[[#This Row],[Sample Reference '# ('# required to enable calculations)]]),"", SUM(FieldSampling[Lanthanides]+FieldSampling[Y 39])) -> 
CR88: =IF(ISBLANK(FieldSampling[[#This Row],[Sample Reference '# ('# required to enable calculations)]]),"",SUM(FieldSampling[[#This Row],[La 57]:[Lu 71]])) ->  | CS88: =IF(ISBLANK(FieldSampling[[#This Row],[Sample Reference '# ('# required to enable calculations)]]),"", SUM(FieldSampling[Lanthanides]+FieldSampling[Y 39])) -> 
CR89: =IF(ISBLANK(FieldSampling[[#This Row],[Sample Reference '# ('# required to enable calculations)]]),"",SUM(FieldSampling[[#This Row],[La 57]:[Lu 71]])) ->  | CS89: =IF(ISBLANK(FieldSampling[[#This Row],[Sample Reference '# ('# required to enable calculations)]]),"", SUM(FieldSampling[Lanthanides]+FieldSampling[Y 39])) -> 
CR90: =IF(ISBLANK(FieldSampling[[#This Row],[Sample Reference '# ('# required to enable calculations)]]),"",SUM(FieldSampling[[#This Row],[La 57]:[Lu 71]])) ->  | CS90: =IF(ISBLANK(FieldSampling[[#This Row],[Sample Reference '# ('# required to enable calculations)]]),"", SUM(FieldSampling[Lanthanides]+FieldSampling[Y 39])) -> 
CR91: =IF(ISBLANK(FieldSampling[[#This Row],[Sample Reference '# ('# required to enable calculations)]]),"",SUM(FieldSampling[[#This Row],[La 57]:[Lu 71]])) ->  | CS91: =IF(ISBLANK(FieldSampling[[#This Row],[Sample Reference '# ('# required to enable calculations)]]),"", SUM(FieldSampling[Lanthanides]+FieldSampling[Y 39])) -> 
CR92: =IF(ISBLANK(FieldSampling[[#This Row],[Sample Reference '# ('# required to enable calculations)]]),"",SUM(FieldSampling[[#This Row],[La 57]:[Lu 71]])) ->  | CS92: =IF(ISBLANK(FieldSampling[[#This Row],[Sample Reference '# ('# required to enable calculations)]]),"", SUM(FieldSampling[Lanthanides]+FieldSampling[Y 39])) -> 
CR93: =IF(ISBLANK(FieldSampling[[#This Row],[Sample Reference '# ('# required to enable calculations)]]),"",SUM(FieldSampling[[#This Row],[La 57]:[Lu 71]])) ->  | CS93: =IF(ISBLANK(FieldSampling[[#This Row],[Sample Reference '# ('# required to enable calculations)]]),"", SUM(FieldSampling[Lanthanides]+FieldSampling[Y 39])) -> 
CR94: =IF(ISBLANK(FieldSampling[[#This Row],[Sample Reference '# ('# required to enable calculations)]]),"",SUM(FieldSampling[[#This Row],[La 57]:[Lu 71]])) ->  | CS94: =IF(ISBLANK(FieldSampling[[#This Row],[Sample Reference '# ('# required to enable calculations)]]),"", SUM(FieldSampling[Lanthanides]+FieldSampling[Y 39])) -> 
CR95: =IF(ISBLANK(FieldSampling[[#This Row],[Sample Reference '# ('# required to enable calculations)]]),"",SUM(FieldSampling[[#This Row],[La 57]:[Lu 71]])) ->  | CS95: =IF(ISBLANK(FieldSampling[[#This Row],[Sample Reference '# ('# required to enable calculations)]]),"", SUM(FieldSampling[Lanthanides]+FieldSampling[Y 39])) -> 
CR96: =IF(ISBLANK(FieldSampling[[#This Row],[Sample Reference '# ('# required to enable calculations)]]),"",SUM(FieldSampling[[#This Row],[La 57]:[Lu 71]])) ->  | CS96: =IF(ISBLANK(FieldSampling[[#This Row],[Sample Reference '# ('# required to enable calculations)]]),"", SUM(FieldSampling[Lanthanides]+FieldSampling[Y 39])) -> 
CR97: =IF(ISBLANK(FieldSampling[[#This Row],[Sample Reference '# ('# required to enable calculations)]]),"",SUM(FieldSampling[[#This Row],[La 57]:[Lu 71]])) ->  | CS97: =IF(ISBLANK(FieldSampling[[#This Row],[Sample Reference '# ('# required to enable calculations)]]),"", SUM(FieldSampling[Lanthanides]+FieldSampling[Y 39])) -> 
CR98: =IF(ISBLANK(FieldSampling[[#This Row],[Sample Reference '# ('# required to enable calculations)]]),"",SUM(FieldSampling[[#This Row],[La 57]:[Lu 71]])) ->  | CS98: =IF(ISBLANK(FieldSampling[[#This Row],[Sample Reference '# ('# required to enable calculations)]]),"", SUM(FieldSampling[Lanthanides]+FieldSampling[Y 39])) -> 
CR99: =IF(ISBLANK(FieldSampling[[#This Row],[Sample Reference '# ('# required to enable calculations)]]),"",SUM(FieldSampling[[#This Row],[La 57]:[Lu 71]])) ->  | CS99: =IF(ISBLANK(FieldSampling[[#This Row],[Sample Reference '# ('# required to enable calculations)]]),"", SUM(FieldSampling[Lanthanides]+FieldSampling[Y 39])) -> 
CR100: =IF(ISBLANK(FieldSampling[[#This Row],[Sample Reference '# ('# required to enable calculations)]]),"",SUM(FieldSampling[[#This Row],[La 57]:[Lu 71]])) ->  | CS100: =IF(ISBLANK(FieldSampling[[#This Row],[Sample Reference '# ('# required to enable calculations)]]),"", SUM(FieldSampling[Lanthanides]+FieldSampling[Y 39])) -> 
CR101: =IF(ISBLANK(FieldSampling[[#This Row],[Sample Reference '# ('# required to enable calculations)]]),"",SUM(FieldSampling[[#This Row],[La 57]:[Lu 71]])) ->  | CS101: =IF(ISBLANK(FieldSampling[[#This Row],[Sample Reference '# ('# required to enable calculations)]]),"", SUM(FieldSampling[Lanthanides]+FieldSampling[Y 39])) -> 
CR102: =IF(ISBLANK(FieldSampling[[#This Row],[Sample Reference '# ('# required to enable calculations)]]),"",SUM(FieldSampling[[#This Row],[La 57]:[Lu 71]])) ->  | CS102: =IF(ISBLANK(FieldSampling[[#This Row],[Sample Reference '# ('# required to enable calculations)]]),"", SUM(FieldSampling[Lanthanides]+FieldSampling[Y 39])) -> 
CR103: =IF(ISBLANK(FieldSampling[[#This Row],[Sample Reference '# ('# required to enable calculations)]]),"",SUM(FieldSampling[[#This Row],[La 57]:[Lu 71]])) ->  | CS103: =IF(ISBLANK(FieldSampling[[#This Row],[Sample Reference '# ('# required to enable calculations)]]),"", SUM(FieldSampling[Lanthanides]+FieldSampling[Y 39])) -> 
CR104: =IF(ISBLANK(FieldSampling[[#This Row],[Sample Reference '# ('# required to enable calculations)]]),"",SUM(FieldSampling[[#This Row],[La 57]:[Lu 71]])) ->  | CS104: =IF(ISBLANK(FieldSampling[[#This Row],[Sample Reference '# ('# required to enable calculations)]]),"", SUM(FieldSampling[Lanthanides]+FieldSampling[Y 39])) -> 
CR105: =IF(ISBLANK(FieldSampling[[#This Row],[Sample Reference '# ('# required to enable calculations)]]),"",SUM(FieldSampling[[#This Row],[La 57]:[Lu 71]])) ->  | CS105: =IF(ISBLANK(FieldSampling[[#This Row],[Sample Reference '# ('# required to enable calculations)]]),"", SUM(FieldSampling[Lanthanides]+FieldSampling[Y 39])) -> 
CR106: =IF(ISBLANK(FieldSampling[[#This Row],[Sample Reference '# ('# required to enable calculations)]]),"",SUM(FieldSampling[[#This Row],[La 57]:[Lu 71]])) ->  | CS106: =IF(ISBLANK(FieldSampling[[#This Row],[Sample Reference '# ('# required to enable calculations)]]),"", SUM(FieldSampling[Lanthanides]+FieldSampling[Y 39])) -> 
CR107: =IF(ISBLANK(FieldSampling[[#This Row],[Sample Reference '# ('# required to enable calculations)]]),"",SUM(FieldSampling[[#This Row],[La 57]:[Lu 71]])) ->  | CS107: =IF(ISBLANK(FieldSampling[[#This Row],[Sample Reference '# ('# required to enable calculations)]]),"", SUM(FieldSampling[Lanthanides]+FieldSampling[Y 39])) -> 
CR108: =IF(ISBLANK(FieldSampling[[#This Row],[Sample Reference '# ('# required to enable calculations)]]),"",SUM(FieldSampling[[#This Row],[La 57]:[Lu 71]])) ->  | CS108: =IF(ISBLANK(FieldSampling[[#This Row],[Sample Reference '# ('# required to enable calculations)]]),"", SUM(FieldSampling[Lanthanides]+FieldSampling[Y 39])) -> 
CR109: =IF(ISBLANK(FieldSampling[[#This Row],[Sample Reference '# ('# required to enable calculations)]]),"",SUM(FieldSampling[[#This Row],[La 57]:[Lu 71]])) ->  | CS109: =IF(ISBLANK(FieldSampling[[#This Row],[Sample Reference '# ('# required to enable calculations)]]),"", SUM(FieldSampling[Lanthanides]+FieldSampling[Y 39])) -> 
CR110: =IF(ISBLANK(FieldSampling[[#This Row],[Sample Reference '# ('# required to enable calculations)]]),"",SUM(FieldSampling[[#This Row],[La 57]:[Lu 71]])) ->  | CS110: =IF(ISBLANK(FieldSampling[[#This Row],[Sample Reference '# ('# required to enable calculations)]]),"", SUM(FieldSampling[Lanthanides]+FieldSampling[Y 39])) -> 
CR111: =IF(ISBLANK(FieldSampling[[#This Row],[Sample Reference '# ('# required to enable calculations)]]),"",SUM(FieldSampling[[#This Row],[La 57]:[Lu 71]])) ->  | CS111: =IF(ISBLANK(FieldSampling[[#This Row],[Sample Reference '# ('# required to enable calculations)]]),"", SUM(FieldSampling[Lanthanides]+FieldSampling[Y 39])) -> 
CR112: =IF(ISBLANK(FieldSampling[[#This Row],[Sample Reference '# ('# required to enable calculations)]]),"",SUM(FieldSampling[[#This Row],[La 57]:[Lu 71]])) ->  | CS112: =IF(ISBLANK(FieldSampling[[#This Row],[Sample Reference '# ('# required to enable calculations)]]),"", SUM(FieldSampling[Lanthanides]+FieldSampling[Y 39])) -> 
CR113: =IF(ISBLANK(FieldSampling[[#This Row],[Sample Reference '# ('# required to enable calculations)]]),"",SUM(FieldSampling[[#This Row],[La 57]:[Lu 71]])) ->  | CS113: =IF(ISBLANK(FieldSampling[[#This Row],[Sample Reference '# ('# required to enable calculations)]]),"", SUM(FieldSampling[Lanthanides]+FieldSampling[Y 39])) -> 
CR114: =IF(ISBLANK(FieldSampling[[#This Row],[Sample Reference '# ('# required to enable calculations)]]),"",SUM(FieldSampling[[#This Row],[La 57]:[Lu 71]])) ->  | CS114: =IF(ISBLANK(FieldSampling[[#This Row],[Sample Reference '# ('# required to enable calculations)]]),"", SUM(FieldSampling[Lanthanides]+FieldSampling[Y 39])) -> 
CR115: =IF(ISBLANK(FieldSampling[[#This Row],[Sample Reference '# ('# required to enable calculations)]]),"",SUM(FieldSampling[[#This Row],[La 57]:[Lu 71]])) ->  | CS115: =IF(ISBLANK(FieldSampling[[#This Row],[Sample Reference '# ('# required to enable calculations)]]),"", SUM(FieldSampling[Lanthanides]+FieldSampling[Y 39])) -> 
CR116: =IF(ISBLANK(FieldSampling[[#This Row],[Sample Reference '# ('# required to enable calculations)]]),"",SUM(FieldSampling[[#This Row],[La 57]:[Lu 71]])) ->  | CS116: =IF(ISBLANK(FieldSampling[[#This Row],[Sample Reference '# ('# required to enable calculations)]]),"", SUM(FieldSampling[Lanthanides]+FieldSampling[Y 39])) -> 
CR117: =IF(ISBLANK(FieldSampling[[#This Row],[Sample Reference '# ('# required to enable calculations)]]),"",SUM(FieldSampling[[#This Row],[La 57]:[Lu 71]])) ->  | CS117: =IF(ISBLANK(FieldSampling[[#This Row],[Sample Reference '# ('# required to enable calculations)]]),"", SUM(FieldSampling[Lanthanides]+FieldSampling[Y 39])) -> 
CR118: =IF(ISBLANK(FieldSampling[[#This Row],[Sample Reference '# ('# required to enable calculations)]]),"",SUM(FieldSampling[[#This Row],[La 57]:[Lu 71]])) ->  | CS118: =IF(ISBLANK(FieldSampling[[#This Row],[Sample Reference '# ('# required to enable calculations)]]),"", SUM(FieldSampling[Lanthanides]+FieldSampling[Y 39])) -> 
CR119: =IF(ISBLANK(FieldSampling[[#This Row],[Sample Reference '# ('# required to enable calculations)]]),"",SUM(FieldSampling[[#This Row],[La 57]:[Lu 71]])) ->  | CS119: =IF(ISBLANK(FieldSampling[[#This Row],[Sample Reference '# ('# required to enable calculations)]]),"", SUM(FieldSampling[Lanthanides]+FieldSampling[Y 39])) -> 
CR120: =IF(ISBLANK(FieldSampling[[#This Row],[Sample Reference '# ('# required to enable calculations)]]),"",SUM(FieldSampling[[#This Row],[La 57]:[Lu 71]])) ->  | CS120: =IF(ISBLANK(FieldSampling[[#This Row],[Sample Reference '# ('# required to enable calculations)]]),"", SUM(FieldSampling[Lanthanides]+FieldSampling[Y 39])) -> 
CR121: =IF(ISBLANK(FieldSampling[[#This Row],[Sample Reference '# ('# required to enable calculations)]]),"",SUM(FieldSampling[[#This Row],[La 57]:[Lu 71]])) ->  | CS121: =IF(ISBLANK(FieldSampling[[#This Row],[Sample Reference '# ('# required to enable calculations)]]),"", SUM(FieldSampling[Lanthanides]+FieldSampling[Y 39])) -> 
CR122: =IF(ISBLANK(FieldSampling[[#This Row],[Sample Reference '# ('# required to enable calculations)]]),"",SUM(FieldSampling[[#This Row],[La 57]:[Lu 71]])) ->  | CS122: =IF(ISBLANK(FieldSampling[[#This Row],[Sample Reference '# ('# required to enable calculations)]]),"", SUM(FieldSampling[Lanthanides]+FieldSampling[Y 39])) -> 
CR123: =IF(ISBLANK(FieldSampling[[#This Row],[Sample Reference '# ('# required to enable calculations)]]),"",SUM(FieldSampling[[#This Row],[La 57]:[Lu 71]])) ->  | CS123: =IF(ISBLANK(FieldSampling[[#This Row],[Sample Reference '# ('# required to enable calculations)]]),"", SUM(FieldSampling[Lanthanides]+FieldSampling[Y 39])) -> 
CR124: =IF(ISBLANK(FieldSampling[[#This Row],[Sample Reference '# ('# required to enable calculations)]]),"",SUM(FieldSampling[[#This Row],[La 57]:[Lu 71]])) ->  | CS124: =IF(ISBLANK(FieldSampling[[#This Row],[Sample Reference '# ('# required to enable calculations)]]),"", SUM(FieldSampling[Lanthanides]+FieldSampling[Y 39])) -> 
CR125: =IF(ISBLANK(FieldSampling[[#This Row],[Sample Reference '# ('# required to enable calculations)]]),"",SUM(FieldSampling[[#This Row],[La 57]:[Lu 71]])) ->  | CS125: =IF(ISBLANK(FieldSampling[[#This Row],[Sample Reference '# ('# required to enable calculations)]]),"", SUM(FieldSampling[Lanthanides]+FieldSampling[Y 39])) -> 
CR126: =IF(ISBLANK(FieldSampling[[#This Row],[Sample Reference '# ('# required to enable calculations)]]),"",SUM(FieldSampling[[#This Row],[La 57]:[Lu 71]])) ->  | CS126: =IF(ISBLANK(FieldSampling[[#This Row],[Sample Reference '# ('# required to enable calculations)]]),"", SUM(FieldSampling[Lanthanides]+FieldSampling[Y 39])) -> 
CR127: =IF(ISBLANK(FieldSampling[[#This Row],[Sample Reference '# ('# required to enable calculations)]]),"",SUM(FieldSampling[[#This Row],[La 57]:[Lu 71]])) ->  | CS127: =IF(ISBLANK(FieldSampling[[#This Row],[Sample Reference '# ('# required to enable calculations)]]),"", SUM(FieldSampling[Lanthanides]+FieldSampling[Y 39])) -> 
CR128: =IF(ISBLANK(FieldSampling[[#This Row],[Sample Reference '# ('# required to enable calculations)]]),"",SUM(FieldSampling[[#This Row],[La 57]:[Lu 71]])) ->  | CS128: =IF(ISBLANK(FieldSampling[[#This Row],[Sample Reference '# ('# required to enable calculations)]]),"", SUM(FieldSampling[Lanthanides]+FieldSampling[Y 39])) -> 
CR129: =IF(ISBLANK(FieldSampling[[#This Row],[Sample Reference '# ('# required to enable calculations)]]),"",SUM(FieldSampling[[#This Row],[La 57]:[Lu 71]])) ->  | CS129: =IF(ISBLANK(FieldSampling[[#This Row],[Sample Reference '# ('# required to enable calculations)]]),"", SUM(FieldSampling[Lanthanides]+FieldSampling[Y 39])) -> 
CR130: =IF(ISBLANK(FieldSampling[[#This Row],[Sample Reference '# ('# required to enable calculations)]]),"",SUM(FieldSampling[[#This Row],[La 57]:[Lu 71]])) ->  | CS130: =IF(ISBLANK(FieldSampling[[#This Row],[Sample Reference '# ('# required to enable calculations)]]),"", SUM(FieldSampling[Lanthanides]+FieldSampling[Y 39])) -> 
CR131: =IF(ISBLANK(FieldSampling[[#This Row],[Sample Reference '# ('# required to enable calculations)]]),"",SUM(FieldSampling[[#This Row],[La 57]:[Lu 71]])) ->  | CS131: =IF(ISBLANK(FieldSampling[[#This Row],[Sample Reference '# ('# required to enable calculations)]]),"", SUM(FieldSampling[Lanthanides]+FieldSampling[Y 39])) -> 
CR132: =IF(ISBLANK(FieldSampling[[#This Row],[Sample Reference '# ('# required to enable calculations)]]),"",SUM(FieldSampling[[#This Row],[La 57]:[Lu 71]])) ->  | CS132: =IF(ISBLANK(FieldSampling[[#This Row],[Sample Reference '# ('# required to enable calculations)]]),"", SUM(FieldSampling[Lanthanides]+FieldSampling[Y 39])) -> 
CR133: =IF(ISBLANK(FieldSampling[[#This Row],[Sample Reference '# ('# required to enable calculations)]]),"",SUM(FieldSampling[[#This Row],[La 57]:[Lu 71]])) ->  | CS133: =IF(ISBLANK(FieldSampling[[#This Row],[Sample Reference '# ('# required to enable calculations)]]),"", SUM(FieldSampling[Lanthanides]+FieldSampling[Y 39])) -> 
CR134: =IF(ISBLANK(FieldSampling[[#This Row],[Sample Reference '# ('# required to enable calculations)]]),"",SUM(FieldSampling[[#This Row],[La 57]:[Lu 71]])) ->  | CS134: =IF(ISBLANK(FieldSampling[[#This Row],[Sample Reference '# ('# required to enable calculations)]]),"", SUM(FieldSampling[Lanthanides]+FieldSampling[Y 39])) -> 
CR135: =IF(ISBLANK(FieldSampling[[#This Row],[Sample Reference '# ('# required to enable calculations)]]),"",SUM(FieldSampling[[#This Row],[La 57]:[Lu 71]])) ->  | CS135: =IF(ISBLANK(FieldSampling[[#This Row],[Sample Reference '# ('# required to enable calculations)]]),"", SUM(FieldSampling[Lanthanides]+FieldSampling[Y 39])) -> 
CR136: =IF(ISBLANK(FieldSampling[[#This Row],[Sample Reference '# ('# required to enable calculations)]]),"",SUM(FieldSampling[[#This Row],[La 57]:[Lu 71]])) ->  | CS136: =IF(ISBLANK(FieldSampling[[#This Row],[Sample Reference '# ('# required to enable calculations)]]),"", SUM(FieldSampling[Lanthanides]+FieldSampling[Y 39])) -> 
CR137: =IF(ISBLANK(FieldSampling[[#This Row],[Sample Reference '# ('# required to enable calculations)]]),"",SUM(FieldSampling[[#This Row],[La 57]:[Lu 71]])) ->  | CS137: =IF(ISBLANK(FieldSampling[[#This Row],[Sample Reference '# ('# required to enable calculations)]]),"", SUM(FieldSampling[Lanthanides]+FieldSampling[Y 39])) -> 
CR138: =IF(ISBLANK(FieldSampling[[#This Row],[Sample Reference '# ('# required to enable calculations)]]),"",SUM(FieldSampling[[#This Row],[La 57]:[Lu 71]])) ->  | CS138: =IF(ISBLANK(FieldSampling[[#This Row],[Sample Reference '# ('# required to enable calculations)]]),"", SUM(FieldSampling[Lanthanides]+FieldSampling[Y 39])) -> 
CR139: =IF(ISBLANK(FieldSampling[[#This Row],[Sample Reference '# ('# required to enable calculations)]]),"",SUM(FieldSampling[[#This Row],[La 57]:[Lu 71]])) ->  | CS139: =IF(ISBLANK(FieldSampling[[#This Row],[Sample Reference '# ('# required to enable calculations)]]),"", SUM(FieldSampling[Lanthanides]+FieldSampling[Y 39])) -> 
CR140: =IF(ISBLANK(FieldSampling[[#This Row],[Sample Reference '# ('# required to enable calculations)]]),"",SUM(FieldSampling[[#This Row],[La 57]:[Lu 71]])) ->  | CS140: =IF(ISBLANK(FieldSampling[[#This Row],[Sample Reference '# ('# required to enable calculations)]]),"", SUM(FieldSampling[Lanthanides]+FieldSampling[Y 39])) -> 
CR141: =IF(ISBLANK(FieldSampling[[#This Row],[Sample Reference '# ('# required to enable calculations)]]),"",SUM(FieldSampling[[#This Row],[La 57]:[Lu 71]])) ->  | CS141: =IF(ISBLANK(FieldSampling[[#This Row],[Sample Reference '# ('# required to enable calculations)]]),"", SUM(FieldSampling[Lanthanides]+FieldSampling[Y 39])) -> 
CR142: =IF(ISBLANK(FieldSampling[[#This Row],[Sample Reference '# ('# required to enable calculations)]]),"",SUM(FieldSampling[[#This Row],[La 57]:[Lu 71]])) ->  | CS142: =IF(ISBLANK(FieldSampling[[#This Row],[Sample Reference '# ('# required to enable calculations)]]),"", SUM(FieldSampling[Lanthanides]+FieldSampling[Y 39])) -> 
CR143: =IF(ISBLANK(FieldSampling[[#This Row],[Sample Reference '# ('# required to enable calculations)]]),"",SUM(FieldSampling[[#This Row],[La 57]:[Lu 71]])) ->  | CS143: =IF(ISBLANK(FieldSampling[[#This Row],[Sample Reference '# ('# required to enable calculations)]]),"", SUM(FieldSampling[Lanthanides]+FieldSampling[Y 39])) -> 
CR144: =IF(ISBLANK(FieldSampling[[#This Row],[Sample Reference '# ('# required to enable calculations)]]),"",SUM(FieldSampling[[#This Row],[La 57]:[Lu 71]])) ->  | CS144: =IF(ISBLANK(FieldSampling[[#This Row],[Sample Reference '# ('# required to enable calculations)]]),"", SUM(FieldSampling[Lanthanides]+FieldSampling[Y 39])) -> 
CR145: =IF(ISBLANK(FieldSampling[[#This Row],[Sample Reference '# ('# required to enable calculations)]]),"",SUM(FieldSampling[[#This Row],[La 57]:[Lu 71]])) ->  | CS145: =IF(ISBLANK(FieldSampling[[#This Row],[Sample Reference '# ('# required to enable calculations)]]),"", SUM(FieldSampling[Lanthanides]+FieldSampling[Y 39])) -> 
CR146: =IF(ISBLANK(FieldSampling[[#This Row],[Sample Reference '# ('# required to enable calculations)]]),"",SUM(FieldSampling[[#This Row],[La 57]:[Lu 71]])) ->  | CS146: =IF(ISBLANK(FieldSampling[[#This Row],[Sample Reference '# ('# required to enable calculations)]]),"", SUM(FieldSampling[Lanthanides]+FieldSampling[Y 39])) -> 
CR147: =IF(ISBLANK(FieldSampling[[#This Row],[Sample Reference '# ('# required to enable calculations)]]),"",SUM(FieldSampling[[#This Row],[La 57]:[Lu 71]])) ->  | CS147: =IF(ISBLANK(FieldSampling[[#This Row],[Sample Reference '# ('# required to enable calculations)]]),"", SUM(FieldSampling[Lanthanides]+FieldSampling[Y 39])) -> 
CR148: =IF(ISBLANK(FieldSampling[[#This Row],[Sample Reference '# ('# required to enable calculations)]]),"",SUM(FieldSampling[[#This Row],[La 57]:[Lu 71]])) ->  | CS148: =IF(ISBLANK(FieldSampling[[#This Row],[Sample Reference '# ('# required to enable calculations)]]),"", SUM(FieldSampling[Lanthanides]+FieldSampling[Y 39])) -> 
CR149: =IF(ISBLANK(FieldSampling[[#This Row],[Sample Reference '# ('# required to enable calculations)]]),"",SUM(FieldSampling[[#This Row],[La 57]:[Lu 71]])) ->  | CS149: =IF(ISBLANK(FieldSampling[[#This Row],[Sample Reference '# ('# required to enable calculations)]]),"", SUM(FieldSampling[Lanthanides]+FieldSampling[Y 39])) -> 
CR150: =IF(ISBLANK(FieldSampling[[#This Row],[Sample Reference '# ('# required to enable calculations)]]),"",SUM(FieldSampling[[#This Row],[La 57]:[Lu 71]])) ->  | CS150: =IF(ISBLANK(FieldSampling[[#This Row],[Sample Reference '# ('# required to enable calculations)]]),"", SUM(FieldSampling[Lanthanides]+FieldSampling[Y 39])) -> 
CR151: =IF(ISBLANK(FieldSampling[[#This Row],[Sample Reference '# ('# required to enable calculations)]]),"",SUM(FieldSampling[[#This Row],[La 57]:[Lu 71]])) ->  | CS151: =IF(ISBLANK(FieldSampling[[#This Row],[Sample Reference '# ('# required to enable calculations)]]),"", SUM(FieldSampling[Lanthanides]+FieldSampling[Y 39])) -> 
CR152: =IF(ISBLANK(FieldSampling[[#This Row],[Sample Reference '# ('# required to enable calculations)]]),"",SUM(FieldSampling[[#This Row],[La 57]:[Lu 71]])) ->  | CS152: =IF(ISBLANK(FieldSampling[[#This Row],[Sample Reference '# ('# required to enable calculations)]]),"", SUM(FieldSampling[Lanthanides]+FieldSampling[Y 39])) -> 
CR153: =IF(ISBLANK(FieldSampling[[#This Row],[Sample Reference '# ('# required to enable calculations)]]),"",SUM(FieldSampling[[#This Row],[La 57]:[Lu 71]])) ->  | CS153: =IF(ISBLANK(FieldSampling[[#This Row],[Sample Reference '# ('# required to enable calculations)]]),"", SUM(FieldSampling[Lanthanides]+FieldSampling[Y 39])) -> 
CR154: =IF(ISBLANK(FieldSampling[[#This Row],[Sample Reference '# ('# required to enable calculations)]]),"",SUM(FieldSampling[[#This Row],[La 57]:[Lu 71]])) ->  | CS154: =IF(ISBLANK(FieldSampling[[#This Row],[Sample Reference '# ('# required to enable calculations)]]),"", SUM(FieldSampling[Lanthanides]+FieldSampling[Y 39])) -> 
CR155: =IF(ISBLANK(FieldSampling[[#This Row],[Sample Reference '# ('# required to enable calculations)]]),"",SUM(FieldSampling[[#This Row],[La 57]:[Lu 71]])) ->  | CS155: =IF(ISBLANK(FieldSampling[[#This Row],[Sample Reference '# ('# required to enable calculations)]]),"", SUM(FieldSampling[Lanthanides]+FieldSampling[Y 39])) -> 
CR156: =IF(ISBLANK(FieldSampling[[#This Row],[Sample Reference '# ('# required to enable calculations)]]),"",SUM(FieldSampling[[#This Row],[La 57]:[Lu 71]])) ->  | CS156: =IF(ISBLANK(FieldSampling[[#This Row],[Sample Reference '# ('# required to enable calculations)]]),"", SUM(FieldSampling[Lanthanides]+FieldSampling[Y 39])) -> 
CR157: =IF(ISBLANK(FieldSampling[[#This Row],[Sample Reference '# ('# required to enable calculations)]]),"",SUM(FieldSampling[[#This Row],[La 57]:[Lu 71]])) ->  | CS157: =IF(ISBLANK(FieldSampling[[#This Row],[Sample Reference '# ('# required to enable calculations)]]),"", SUM(FieldSampling[Lanthanides]+FieldSampling[Y 39])) -> 
CR158: =IF(ISBLANK(FieldSampling[[#This Row],[Sample Reference '# ('# required to enable calculations)]]),"",SUM(FieldSampling[[#This Row],[La 57]:[Lu 71]])) ->  | CS158: =IF(ISBLANK(FieldSampling[[#This Row],[Sample Reference '# ('# required to enable calculations)]]),"", SUM(FieldSampling[Lanthanides]+FieldSampling[Y 39])) -> 
CR159: =IF(ISBLANK(FieldSampling[[#This Row],[Sample Reference '# ('# required to enable calculations)]]),"",SUM(FieldSampling[[#This Row],[La 57]:[Lu 71]])) ->  | CS159: =IF(ISBLANK(FieldSampling[[#This Row],[Sample Reference '# ('# required to enable calculations)]]),"", SUM(FieldSampling[Lanthanides]+FieldSampling[Y 39])) -> 
CR160: =IF(ISBLANK(FieldSampling[[#This Row],[Sample Reference '# ('# required to enable calculations)]]),"",SUM(FieldSampling[[#This Row],[La 57]:[Lu 71]])) ->  | CS160: =IF(ISBLANK(FieldSampling[[#This Row],[Sample Reference '# ('# required to enable calculations)]]),"", SUM(FieldSampling[Lanthanides]+FieldSampling[Y 39])) -> 
CR161: =IF(ISBLANK(FieldSampling[[#This Row],[Sample Reference '# ('# required to enable calculations)]]),"",SUM(FieldSampling[[#This Row],[La 57]:[Lu 71]])) ->  | CS161: =IF(ISBLANK(FieldSampling[[#This Row],[Sample Reference '# ('# required to enable calculations)]]),"", SUM(FieldSampling[Lanthanides]+FieldSampling[Y 39])) -> 
CR162: =IF(ISBLANK(FieldSampling[[#This Row],[Sample Reference '# ('# required to enable calculations)]]),"",SUM(FieldSampling[[#This Row],[La 57]:[Lu 71]])) ->  | CS162: =IF(ISBLANK(FieldSampling[[#This Row],[Sample Reference '# ('# required to enable calculations)]]),"", SUM(FieldSampling[Lanthanides]+FieldSampling[Y 39])) -> 
CR163: =IF(ISBLANK(FieldSampling[[#This Row],[Sample Reference '# ('# required to enable calculations)]]),"",SUM(FieldSampling[[#This Row],[La 57]:[Lu 71]])) ->  | CS163: =IF(ISBLANK(FieldSampling[[#This Row],[Sample Reference '# ('# required to enable calculations)]]),"", SUM(FieldSampling[Lanthanides]+FieldSampling[Y 39])) -> 
CR164: =IF(ISBLANK(FieldSampling[[#This Row],[Sample Reference '# ('# required to enable calculations)]]),"",SUM(FieldSampling[[#This Row],[La 57]:[Lu 71]])) ->  | CS164: =IF(ISBLANK(FieldSampling[[#This Row],[Sample Reference '# ('# required to enable calculations)]]),"", SUM(FieldSampling[Lanthanides]+FieldSampling[Y 39])) -> 
CR165: =IF(ISBLANK(FieldSampling[[#This Row],[Sample Reference '# ('# required to enable calculations)]]),"",SUM(FieldSampling[[#This Row],[La 57]:[Lu 71]])) ->  | CS165: =IF(ISBLANK(FieldSampling[[#This Row],[Sample Reference '# ('# required to enable calculations)]]),"", SUM(FieldSampling[Lanthanides]+FieldSampling[Y 39])) -> 
CR166: =IF(ISBLANK(FieldSampling[[#This Row],[Sample Reference '# ('# required to enable calculations)]]),"",SUM(FieldSampling[[#This Row],[La 57]:[Lu 71]])) ->  | CS166: =IF(ISBLANK(FieldSampling[[#This Row],[Sample Reference '# ('# required to enable calculations)]]),"", SUM(FieldSampling[Lanthanides]+FieldSampling[Y 39])) -> 
CR167: =IF(ISBLANK(FieldSampling[[#This Row],[Sample Reference '# ('# required to enable calculations)]]),"",SUM(FieldSampling[[#This Row],[La 57]:[Lu 71]])) ->  | CS167: =IF(ISBLANK(FieldSampling[[#This Row],[Sample Reference '# ('# required to enable calculations)]]),"", SUM(FieldSampling[Lanthanides]+FieldSampling[Y 39])) -> 
CR168: =IF(ISBLANK(FieldSampling[[#This Row],[Sample Reference '# ('# required to enable calculations)]]),"",SUM(FieldSampling[[#This Row],[La 57]:[Lu 71]])) ->  | CS168: =IF(ISBLANK(FieldSampling[[#This Row],[Sample Reference '# ('# required to enable calculations)]]),"", SUM(FieldSampling[Lanthanides]+FieldSampling[Y 39])) -> 
CR169: =IF(ISBLANK(FieldSampling[[#This Row],[Sample Reference '# ('# required to enable calculations)]]),"",SUM(FieldSampling[[#This Row],[La 57]:[Lu 71]])) ->  | CS169: =IF(ISBLANK(FieldSampling[[#This Row],[Sample Reference '# ('# required to enable calculations)]]),"", SUM(FieldSampling[Lanthanides]+FieldSampling[Y 39])) -> 
CR170: =IF(ISBLANK(FieldSampling[[#This Row],[Sample Reference '# ('# required to enable calculations)]]),"",SUM(FieldSampling[[#This Row],[La 57]:[Lu 71]])) ->  | CS170: =IF(ISBLANK(FieldSampling[[#This Row],[Sample Reference '# ('# required to enable calculations)]]),"", SUM(FieldSampling[Lanthanides]+FieldSampling[Y 39])) -> 
CR171: =IF(ISBLANK(FieldSampling[[#This Row],[Sample Reference '# ('# required to enable calculations)]]),"",SUM(FieldSampling[[#This Row],[La 57]:[Lu 71]])) ->  | CS171: =IF(ISBLANK(FieldSampling[[#This Row],[Sample Reference '# ('# required to enable calculations)]]),"", SUM(FieldSampling[Lanthanides]+FieldSampling[Y 39])) -> 
CR172: =IF(ISBLANK(FieldSampling[[#This Row],[Sample Reference '# ('# required to enable calculations)]]),"",SUM(FieldSampling[[#This Row],[La 57]:[Lu 71]])) ->  | CS172: =IF(ISBLANK(FieldSampling[[#This Row],[Sample Reference '# ('# required to enable calculations)]]),"", SUM(FieldSampling[Lanthanides]+FieldSampling[Y 39])) -> 
CR173: =IF(ISBLANK(FieldSampling[[#This Row],[Sample Reference '# ('# required to enable calculations)]]),"",SUM(FieldSampling[[#This Row],[La 57]:[Lu 71]])) ->  | CS173: =IF(ISBLANK(FieldSampling[[#This Row],[Sample Reference '# ('# required to enable calculations)]]),"", SUM(FieldSampling[Lanthanides]+FieldSampling[Y 39])) -> 
CR174: =IF(ISBLANK(FieldSampling[[#This Row],[Sample Reference '# ('# required to enable calculations)]]),"",SUM(FieldSampling[[#This Row],[La 57]:[Lu 71]])) ->  | CS174: =IF(ISBLANK(FieldSampling[[#This Row],[Sample Reference '# ('# required to enable calculations)]]),"", SUM(FieldSampling[Lanthanides]+FieldSampling[Y 39])) -> 
CR175: =IF(ISBLANK(FieldSampling[[#This Row],[Sample Reference '# ('# required to enable calculations)]]),"",SUM(FieldSampling[[#This Row],[La 57]:[Lu 71]])) ->  | CS175: =IF(ISBLANK(FieldSampling[[#This Row],[Sample Reference '# ('# required to enable calculations)]]),"", SUM(FieldSampling[Lanthanides]+FieldSampling[Y 39])) -> 
CR176: =IF(ISBLANK(FieldSampling[[#This Row],[Sample Reference '# ('# required to enable calculations)]]),"",SUM(FieldSampling[[#This Row],[La 57]:[Lu 71]])) ->  | CS176: =IF(ISBLANK(FieldSampling[[#This Row],[Sample Reference '# ('# required to enable calculations)]]),"", SUM(FieldSampling[Lanthanides]+FieldSampling[Y 39])) -> 
CR177: =IF(ISBLANK(FieldSampling[[#This Row],[Sample Reference '# ('# required to enable calculations)]]),"",SUM(FieldSampling[[#This Row],[La 57]:[Lu 71]])) ->  | CS177: =IF(ISBLANK(FieldSampling[[#This Row],[Sample Reference '# ('# required to enable calculations)]]),"", SUM(FieldSampling[Lanthanides]+FieldSampling[Y 39])) -> 
CR178: =IF(ISBLANK(FieldSampling[[#This Row],[Sample Reference '# ('# required to enable calculations)]]),"",SUM(FieldSampling[[#This Row],[La 57]:[Lu 71]])) ->  | CS178: =IF(ISBLANK(FieldSampling[[#This Row],[Sample Reference '# ('# required to enable calculations)]]),"", SUM(FieldSampling[Lanthanides]+FieldSampling[Y 39])) -> 
CR179: =IF(ISBLANK(FieldSampling[[#This Row],[Sample Reference '# ('# required to enable calculations)]]),"",SUM(FieldSampling[[#This Row],[La 57]:[Lu 71]])) ->  | CS179: =IF(ISBLANK(FieldSampling[[#This Row],[Sample Reference '# ('# required to enable calculations)]]),"", SUM(FieldSampling[Lanthanides]+FieldSampling[Y 39])) -> 
CR180: =IF(ISBLANK(FieldSampling[[#This Row],[Sample Reference '# ('# required to enable calculations)]]),"",SUM(FieldSampling[[#This Row],[La 57]:[Lu 71]])) ->  | CS180: =IF(ISBLANK(FieldSampling[[#This Row],[Sample Reference '# ('# required to enable calculations)]]),"", SUM(FieldSampling[Lanthanides]+FieldSampling[Y 39])) -> 
CR181: =IF(ISBLANK(FieldSampling[[#This Row],[Sample Reference '# ('# required to enable calculations)]]),"",SUM(FieldSampling[[#This Row],[La 57]:[Lu 71]])) ->  | CS181: =IF(ISBLANK(FieldSampling[[#This Row],[Sample Reference '# ('# required to enable calculations)]]),"", SUM(FieldSampling[Lanthanides]+FieldSampling[Y 39])) -> 
CR182: =IF(ISBLANK(FieldSampling[[#This Row],[Sample Reference '# ('# required to enable calculations)]]),"",SUM(FieldSampling[[#This Row],[La 57]:[Lu 71]])) ->  | CS182: =IF(ISBLANK(FieldSampling[[#This Row],[Sample Reference '# ('# required to enable calculations)]]),"", SUM(FieldSampling[Lanthanides]+FieldSampling[Y 39])) -> 
CR183: =IF(ISBLANK(FieldSampling[[#This Row],[Sample Reference '# ('# required to enable calculations)]]),"",SUM(FieldSampling[[#This Row],[La 57]:[Lu 71]])) ->  | CS183: =IF(ISBLANK(FieldSampling[[#This Row],[Sample Reference '# ('# required to enable calculations)]]),"", SUM(FieldSampling[Lanthanides]+FieldSampling[Y 39])) -> 
CR184: =IF(ISBLANK(FieldSampling[[#This Row],[Sample Reference '# ('# required to enable calculations)]]),"",SUM(FieldSampling[[#This Row],[La 57]:[Lu 71]])) ->  | CS184: =IF(ISBLANK(FieldSampling[[#This Row],[Sample Reference '# ('# required to enable calculations)]]),"", SUM(FieldSampling[Lanthanides]+FieldSampling[Y 39])) -> 
CR185: =IF(ISBLANK(FieldSampling[[#This Row],[Sample Reference '# ('# required to enable calculations)]]),"",SUM(FieldSampling[[#This Row],[La 57]:[Lu 71]])) ->  | CS185: =IF(ISBLANK(FieldSampling[[#This Row],[Sample Reference '# ('# required to enable calculations)]]),"", SUM(FieldSampling[Lanthanides]+FieldSampling[Y 39])) -> 
CR186: =IF(ISBLANK(FieldSampling[[#This Row],[Sample Reference '# ('# required to enable calculations)]]),"",SUM(FieldSampling[[#This Row],[La 57]:[Lu 71]])) ->  | CS186: =IF(ISBLANK(FieldSampling[[#This Row],[Sample Reference '# ('# required to enable calculations)]]),"", SUM(FieldSampling[Lanthanides]+FieldSampling[Y 39])) -> 
CR187: =IF(ISBLANK(FieldSampling[[#This Row],[Sample Reference '# ('# required to enable calculations)]]),"",SUM(FieldSampling[[#This Row],[La 57]:[Lu 71]])) ->  | CS187: =IF(ISBLANK(FieldSampling[[#This Row],[Sample Reference '# ('# required to enable calculations)]]),"", SUM(FieldSampling[Lanthanides]+FieldSampling[Y 39])) -> 
CR188: =IF(ISBLANK(FieldSampling[[#This Row],[Sample Reference '# ('# required to enable calculations)]]),"",SUM(FieldSampling[[#This Row],[La 57]:[Lu 71]])) ->  | CS188: =IF(ISBLANK(FieldSampling[[#This Row],[Sample Reference '# ('# required to enable calculations)]]),"", SUM(FieldSampling[Lanthanides]+FieldSampling[Y 39])) -> 
CR189: =IF(ISBLANK(FieldSampling[[#This Row],[Sample Reference '# ('# required to enable calculations)]]),"",SUM(FieldSampling[[#This Row],[La 57]:[Lu 71]])) ->  | CS189: =IF(ISBLANK(FieldSampling[[#This Row],[Sample Reference '# ('# required to enable calculations)]]),"", SUM(FieldSampling[Lanthanides]+FieldSampling[Y 39])) -> 
CR190: =IF(ISBLANK(FieldSampling[[#This Row],[Sample Reference '# ('# required to enable calculations)]]),"",SUM(FieldSampling[[#This Row],[La 57]:[Lu 71]])) ->  | CS190: =IF(ISBLANK(FieldSampling[[#This Row],[Sample Reference '# ('# required to enable calculations)]]),"", SUM(FieldSampling[Lanthanides]+FieldSampling[Y 39])) -> 
CR191: =IF(ISBLANK(FieldSampling[[#This Row],[Sample Reference '# ('# required to enable calculations)]]),"",SUM(FieldSampling[[#This Row],[La 57]:[Lu 71]])) ->  | CS191: =IF(ISBLANK(FieldSampling[[#This Row],[Sample Reference '# ('# required to enable calculations)]]),"", SUM(FieldSampling[Lanthanides]+FieldSampling[Y 39])) -> 
CR192: =IF(ISBLANK(FieldSampling[[#This Row],[Sample Reference '# ('# required to enable calculations)]]),"",SUM(FieldSampling[[#This Row],[La 57]:[Lu 71]])) ->  | CS192: =IF(ISBLANK(FieldSampling[[#This Row],[Sample Reference '# ('# required to enable calculations)]]),"", SUM(FieldSampling[Lanthanides]+FieldSampling[Y 39])) -> 
CR193: =IF(ISBLANK(FieldSampling[[#This Row],[Sample Reference '# ('# required to enable calculations)]]),"",SUM(FieldSampling[[#This Row],[La 57]:[Lu 71]])) ->  | CS193: =IF(ISBLANK(FieldSampling[[#This Row],[Sample Reference '# ('# required to enable calculations)]]),"", SUM(FieldSampling[Lanthanides]+FieldSampling[Y 39])) -> 
CR194: =IF(ISBLANK(FieldSampling[[#This Row],[Sample Reference '# ('# required to enable calculations)]]),"",SUM(FieldSampling[[#This Row],[La 57]:[Lu 71]])) ->  | CS194: =IF(ISBLANK(FieldSampling[[#This Row],[Sample Reference '# ('# required to enable calculations)]]),"", SUM(FieldSampling[Lanthanides]+FieldSampling[Y 39])) -> 
CR195: =IF(ISBLANK(FieldSampling[[#This Row],[Sample Reference '# ('# required to enable calculations)]]),"",SUM(FieldSampling[[#This Row],[La 57]:[Lu 71]])) ->  | CS195: =IF(ISBLANK(FieldSampling[[#This Row],[Sample Reference '# ('# required to enable calculations)]]),"", SUM(FieldSampling[Lanthanides]+FieldSampling[Y 39])) -> 
CR196: =IF(ISBLANK(FieldSampling[[#This Row],[Sample Reference '# ('# required to enable calculations)]]),"",SUM(FieldSampling[[#This Row],[La 57]:[Lu 71]])) ->  | CS196: =IF(ISBLANK(FieldSampling[[#This Row],[Sample Reference '# ('# required to enable calculations)]]),"", SUM(FieldSampling[Lanthanides]+FieldSampling[Y 39])) -> 
CR197: =IF(ISBLANK(FieldSampling[[#This Row],[Sample Reference '# ('# required to enable calculations)]]),"",SUM(FieldSampling[[#This Row],[La 57]:[Lu 71]])) ->  | CS197: =IF(ISBLANK(FieldSampling[[#This Row],[Sample Reference '# ('# required to enable calculations)]]),"", SUM(FieldSampling[Lanthanides]+FieldSampling[Y 39])) -> 
CR198: =IF(ISBLANK(FieldSampling[[#This Row],[Sample Reference '# ('# required to enable calculations)]]),"",SUM(FieldSampling[[#This Row],[La 57]:[Lu 71]])) ->  | CS198: =IF(ISBLANK(FieldSampling[[#This Row],[Sample Reference '# ('# required to enable calculations)]]),"", SUM(FieldSampling[Lanthanides]+FieldSampling[Y 39])) -> 
CR199: =IF(ISBLANK(FieldSampling[[#This Row],[Sample Reference '# ('# required to enable calculations)]]),"",SUM(FieldSampling[[#This Row],[La 57]:[Lu 71]])) ->  | CS199: =IF(ISBLANK(FieldSampling[[#This Row],[Sample Reference '# ('# required to enable calculations)]]),"", SUM(FieldSampling[Lanthanides]+FieldSampling[Y 39])) -> 
CR200: =IF(ISBLANK(FieldSampling[[#This Row],[Sample Reference '# ('# required to enable calculations)]]),"",SUM(FieldSampling[[#This Row],[La 57]:[Lu 71]])) ->  | CS200: =IF(ISBLANK(FieldSampling[[#This Row],[Sample Reference '# ('# required to enable calculations)]]),"", SUM(FieldSampling[Lanthanides]+FieldSampling[Y 39])) -> 
CR201: =IF(ISBLANK(FieldSampling[[#This Row],[Sample Reference '# ('# required to enable calculations)]]),"",SUM(FieldSampling[[#This Row],[La 57]:[Lu 71]])) ->  | CS201: =IF(ISBLANK(FieldSampling[[#This Row],[Sample Reference '# ('# required to enable calculations)]]),"", SUM(FieldSampling[Lanthanides]+FieldSampling[Y 39])) -> 
CR202: =IF(ISBLANK(FieldSampling[[#This Row],[Sample Reference '# ('# required to enable calculations)]]),"",SUM(FieldSampling[[#This Row],[La 57]:[Lu 71]])) ->  | CS202: =IF(ISBLANK(FieldSampling[[#This Row],[Sample Reference '# ('# required to enable calculations)]]),"", SUM(FieldSampling[Lanthanides]+FieldSampling[Y 39])) -> 
... 2048 more rows

Sheet Phase 1 Field Samples DAB
A1: Dry Ash Basis - Field Site Sampling Material Identification and Characterization
F4: Researcher Field Sampling Data Inputs | AJ4: Primary Elemental Identification Technique | CU4: Secondary Elemental Identification Technique (If Measured) | DO4: XRD, Phase Identification (If measured) | DS4: SEM-EDX (If measured)
D5: Sample Reference # for Analyses on Sample Source | F5: Origin of the Sample and Description | O5: Location of Sampling Site | V5: Proximate Analysis (Wt%) | AA5: Ultimate Analysis (%) | AF5: CHNS Analysis (%) | AJ5: Analysis Description/Method | AM5: Elements (ppm) | BY5: Lanthanides (ppm) | CM5: Other Metals (ppm) | CP5: Actinides (ppm) | CR5: Total REE (ppm) | CS5: Total REE+Y (ppm) | CU5: Analysis Description Method | CX5: Results (ppm)
A6: Sample Reference # (# required to enable calculations) | B6: Sample Type | C6: Description | D6: Furthest Upstream Sample Ref # | E6: Previous Upstream Sample Ref # | F6: Level 1 Attribute | G6: Level 2 Attribute | H6: Level 3 Attribute | I6: Coal Basin | J6: Geological Group | K6: Associated Coal Bed/Zone/Seam | L6: State | M6: County | N6: Site | O6: State2 | P6: County2 | Q6: Site2 | R6: Location2 | S6: Size Fraction Analyzed (µm) | T6: % Moisture, As-Received | U6: %Ash, Dry | V6: Sulfur | W6: Moisture | X6: Volatile Matter | Y6: Ash | Z6: Fixed Carbon | AA6: Carbon | AB6: Hydrogen | AC6: Sulfur | AD6: Oxygen | AE6: Nitrogen | AF6: Carbon2 | AG6: H | AH6: N | AI6: S | AJ6: Digestion Method | AK6: Analytical Technique | AL6: Dry Ash Basis | AM6: Be 4 | AN6: Na 11 | AO6: Mg 12 | AP6: Al 13 | AQ6: Si 14 | AR6: P 15 | AS6: K 19 | AT6: Ca 20 | AU6: Sc 21 | AV6: Ti 22 | AW6: V 23 | AX6: Cr 24 | AY6: Mn 25 | AZ6: Fe 26 | BA6: Co 27 | BB6: Ni 28 | BC6: Cu 29 | BD6: Zn 30 | BE6: Ga 31 | BF6: Ge 32 | BG6: As 33 | BH6: Se 34 | BI6: Rb 37 | BJ6: Y 39 | BK6: Zr 40 | BL6: Nb 41 | BM6: Mo 42 | BN6: Ag 47 | BO6: Cd 48 | BP6: Sn 50 | BQ6: Sb 51 | BR6: Cs 55 | BS6: Ba 56 | BT6: Other | BU6: Other2 | BV6: Other3 | BW6: Other4 | BX6: Other5 | BY6: La 57 | BZ6: Ce 58 | CA6: Pr 59 | CB6: Nd 60 | CC6: Sm 62 | CD6: Eu 63 | CE6: Gd 64 | CF6: Tb 65 | CG6: Dy 66 | CH6: Ho 67 | CI6: Er 68 | CJ6: Tm 69 | CK6: Yb 70 | CL6: Lu 71 | CM6: Hf 72 | CN6: Tl 81 | CO6: Pb 82 | CP6: Th 90 | CQ6: U 92 | CR6: Lanthanides | CS6: Lanthanides+Y | CT6: Notes | CU6: Secondary Analytical Technique | CV6: Secondary Digestion Method | CW6: Dry Ash Basis2 | CX6: Al3 13 | CY6: Ca4 20 | CZ6: Fe5 26 | DA6: K6 19 | DB6: Mg7 12 | DC6: Na8 11 | DD6: P2 15 | DE6: Ti2 22 | DF6: SiO2* | DG6: Zr 402 | DH6: Sn 502 | DI6: Other6 | DJ6: Other8 | DK6: Other9 | DL6: Other10 | DM6: Other11 | DN6: Notes3 | DO6: Major Phases | DP6: Minor Phases | DQ6: Trace Phases | DR6: Notes2 | DS6: Mineral/particle/crystal | DT6: Size | DU6: Mineral/particle/crystal2 | DV6: Size3 | DW6: Mineral/particle/crystal3 | DX6: Size4 | DY6: Notes4
A7: NE1 | B7: Field sample | F7: Resource Production | G7: Coal Reserve | H7: Coal | I7: Northern Appalachia | J7: Middle Anthracite Field | K7: Buck Mountain | L7: PA | M7: Luzerne | N7: Eckley North | O7: PA | P7: Luzerne | Q7: Eckley North | R7: Outcrop | AJ7: Acid digestion | AK7: ICP-MS | AM7: 2.93 | AN7: 0.18 | AO7: 0.47 | AP7: 9.98 | AR7: 270 | AS7: 3.01 | AT7: 0.04 | AU7: 22.2 | AV7: 0.616 | AW7: 128 | AX7: 83 | AY7: 181 | AZ7: 2.13 | BA7: 15.1 | BB7: 33.1 | BC7: 47.4 | BD7: 56 | BE7: 28.4 | BF7: 0.13 | BG7: 2.7 | BH7: 1 | BI7: 148 | BJ7: 18.4 | BK7: 164.5 | BL7: 20.1 | BM7: 0.77 | BN7: 0.15 | BO7: 0.09 | BP7: 3.8 | BQ7: 0.76 | BR7: 8.42 | BS7: 770 | BY7: 53 | BZ7: 111.5 | CA7: 13.5 | CB7: 50.5 | CC7: 9.6 | CD7: 1.8 | CE7: 6.16 | CF7: 0.78 | CG7: 3.72 | CH7: 0.74 | CI7: 2.11 | CJ7: 0.37 | CK7: 2.52 | CL7: 0.42 | CM7: 5.2 | CN7: 0.97 | CO7: 41.7 | CP7: 19.8 | CQ7: 4.8 | CR7: =IF(ISBLANK(FieldSampling16[[#This Row],[Sample Reference '# ('# required to enable calculations)]]),"",SUM(FieldSampling16[[#This Row],[La 57]:[Lu 71]])) -> 256.72 | CS7: =IF(ISBLANK(FieldSampling16[[#This Row],[Sample Reference '# ('# required to enable calculations)]]),"", SUM(FieldSampling16[Lanthanides]+FieldSampling16[Y 39])) -> 275.12
A8: NE2 | B8: Field sample | F8: Resource Production | G8: Coal Reserve | H8: Coal | I8: Northern Appalachia | J8: Middle Anthracite Field | K8: Buck Mountain | L8: PA | M8: Luzerne | N8: Eckley North | O8: PA | P8: Luzerne | Q8: Eckley North | R8: Outcrop | AJ8: Acid digestion | AK8: ICP-MS | AM8: 3.1 | AN8: 0.17 | AO8: 0.47 | AP8: 9.84 | AR8: 270 | AS8: 2.89 | AT8: 0.03 | AU8: 20.3 | AV8: 0.595 | AW8: 125 | AX8: 82 | AY8: 213 | AZ8: 2.14 | BA8: 13.2 | BB8: 34.2 | BC8: 47.7 | BD8: 48 | BE8: 26.9 | BF8: 0.12 | BG8: 6.1 | BH8: 2 | BI8: 136.5 | BJ8: 18.6 | BK8: 156 | BL8: 19.5 | BM8: 0.95 | BN8: 0.1 | BO8: 0.11 | BP8: 3.9 | BQ8: 0.85 | BR8: 7.66 | BS8: 740 | BY8: 52.6 | BZ8: 116.5 | CA8: 14.35 | CB8: 54.5 | CC8: 10.65 | CD8: 1.94 | CE8: 6.86 | CF8: 0.85 | CG8: 3.91 | CH8: 0.77 | CI8: 2.2 | CJ8: 0.38 | CK8: 2.6 | CL8: 0.45 | CM8: 4.8 | CN8: 0.93 | CO8: 36 | CP8: 18.1 | CQ8: 5 | CR8: =IF(ISBLANK(FieldSampling16[[#This Row],[Sample Reference '# ('# required to enable calculations)]]),"",SUM(FieldSampling16[[#This Row],[La 57]:[Lu 71]])) -> 268.56 | CS8: =IF(ISBLANK(FieldSampling16[[#This Row],[Sample Reference '# ('# required to enable calculations)]]),"", SUM(FieldSampling16[Lanthanides]+FieldSampling16[Y 39])) -> 287.16
A9: NE3 | B9: Field sample | F9: Resource Production | G9: Coal Reserve | H9: Coal | I9: Northern Appalachia | J9: Middle Anthracite Field | K9: Buck Mountain | L9: PA | M9: Luzerne | N9: Eckley North | O9: PA | P9: Luzerne | Q9: Eckley North | R9: Outcrop | AJ9: Acid digestion | AK9: ICP-MS | AM9: 3.39 | AN9: 0.15 | AO9: 0.35 | AP9: 9.45 | AR9: 210 | AS9: 2.69 | AT9: 0.03 | AU9: 20 | AV9: 0.569 | AW9: 119 | AX9: 76 | AY9: 157 | AZ9: 1.83 | BA9: 11.7 | BB9: 31.6 | BC9: 58.4 | BD9: 49 | BE9: 25.8 | BF9: 0.14 | BG9: 6.8 | BH9: 2 | BI9: 127 | BJ9: 17.8 | BK9: 142 | BL9: 18.8 | BM9: 1.31 | BN9: 0.1 | BO9: 0.07 | BP9: 4.1 | BQ9: 0.92 | BR9: 6.82 | BS9: 710 | BY9: 46.6 | BZ9: 105.5 | CA9: 13.65 | CB9: 51.7 | CC9: 10.9 | CD9: 2.27 | CE9: 7.09 | CF9: 0.87 | CG9: 4.09 | CH9: 0.8 | CI9: 2.31 | CJ9: 0.41 | CK9: 2.73 | CL9: 0.44 | CM9: 4.4 | CN9: 0.85 | CO9: 27.9 | CP9: 17.15 | CQ9: 4.9 | CR9: =IF(ISBLANK(FieldSampling16[[#This Row],[Sample Reference '# ('# required to enable calculations)]]),"",SUM(FieldSampling16[[#This Row],[La 57]:[Lu 71]])) -> 249.36 | CS9: =IF(ISBLANK(FieldSampling16[[#This Row],[Sample Reference '# ('# required to enable calculations)]]),"", SUM(FieldSampling16[Lanthanides]+FieldSampling16[Y 39])) -> 267.16
A10: NE4 | B10: Field sample | F10: Resource Production | G10: Coal Reserve | H10: Coal | I10: Northern Appalachia | J10: Middle Anthracite Field | K10: Buck Mountain | L10: PA | M10: Luzerne | N10: Eckley North | O10: PA | P10: Luzerne | Q10: Eckley North | R10: Outcrop | AJ10: Acid digestion | AK10: ICP-MS | AM10: 2.69 | AN10: 0.15 | AO10: 0.4 | AP10: 9.68 | AR10: 220 | AS10: 2.62 | AT10: 0.02 | AU10: 19.9 | AV10: 0.572 | AW10: 116 | AX10: 79 | AY10: 275 | AZ10: 3.74 | BA10: 23.8 | BB10: 31.7 | BC10: 108 | BD10: 55 | BE10: 25.8 | BF10: 0.12 | BG10: 5.7 | BH10: 3 | BI10: 123.5 | BJ10: 14.8 | BK10: 140 | BL10: 18.6 | BM10: 0.31 | BN10: 0.1 | BO10: 0.05 | BP10: 3.9 | BQ10: 0.9 | BR10: 6.84 | BS10: 700 | BY10: 47.1 | BZ10: 102.5 | CA10: 12.5 | CB10: 46.2 | CC10: 9.21 | CD10: 1.92 | CE10: 6.02 | CF10: 0.73 | CG10: 3.38 | CH10: 0.68 | CI10: 1.82 | CJ10: 0.31 | CK10: 2.13 | CL10: 0.36 | CM10: 4.5 | CN10: 0.83 | CO10: 29.9 | CP10: 17.6 | CQ10: 4.8 | CR10: =IF(ISBLANK(FieldSampling16[[#This Row],[Sample Reference '# ('# required to enable calculations)]]),"",SUM(FieldSampling16[[#This Row],[La 57]:[Lu 71]])) -> 234.86 | CS10: =IF(ISBLANK(FieldSampling16[[#This Row],[Sample Reference '# ('# required to enable calculations)]]),"", SUM(FieldSampling16[Lanthanides]+FieldSampling16[Y 39])) -> 249.66
A11: NE5 | B11: Field sample | F11: Resource Production | G11: Coal Reserve | H11: Coal | I11: Northern Appalachia | J11: Middle Anthracite Field | K11: Buck Mountain | L11: PA | M11: Luzerne | N11: Eckley North | O11: PA | P11: Luzerne | Q11: Eckley North | R11: Outcrop | AJ11: Acid digestion | AK11: ICP-MS | AM11: 2.04 | AN11: 0.14 | AO11: 0.41 | AP11: 9.17 | AR11: 170 | AS11: 2.44 | AT11: 0.04 | AU11: 17.3 | AV11: 0.583 | AW11: 99 | AX11: 65 | AY11: 223 | AZ11: 1.98 | BA11: 11.8 | BB11: 29 | BC11: 38 | BD11: 46 | BE11: 23.8 | BF11: 0.13 | BG11: 3 | BH11: 1 | BI11: 116.5 | BJ11: 11.5 | BK11: 147 | BL11: 18.7 | BM11: 0.68 | BN11: 0.1 | BO11: 0.06 | BP11: 3.6 | BQ11: 0.75 | BR11: 6.22 | BS11: 660 | BY11: 52 | BZ11: 113 | CA11: 14.4 | CB11: 55.4 | CC11: 10.45 | CD11: 2.15 | CE11: 5.12 | CF11: 0.57 | CG11: 2.5 | CH11: 0.49 | CI11: 1.43 | CJ11: 0.26 | CK11: 1.75 | CL11: 0.31 | CM11: 4.6 | CN11: 0.83 | CO11: 32.5 | CP11: 17.8 | CQ11: 4 | CR11: =IF(ISBLANK(FieldSampling16[[#This Row],[Sample Reference '# ('# required to enable calculations)]]),"",SUM(FieldSampling16[[#This Row],[La 57]:[Lu 71]])) -> 259.83 | CS11: =IF(ISBLANK(FieldSampling16[[#This Row],[Sample Reference '# ('# required to enable calculations)]]),"", SUM(FieldSampling16[Lanthanides]+FieldSampling16[Y 39])) -> 271.33
A12: NE6 | B12: Field sample | F12: Resource Production | G12: Coal Reserve | H12: Coal | I12: Northern Appalachia | J12: Middle Anthracite Field | K12: Buck Mountain | L12: PA | M12: Luzerne | N12: Eckley North | O12: PA | P12: Luzerne | Q12: Eckley North | R12: Outcrop | AJ12: Acid digestion | AK12: ICP-MS | AM12: 3.72 | AN12: 0.31 | AO12: 0.34 | AP12: 12.8 | AR12: 140 | AS12: 3.92 | AT12: 0.02 | AU12: 25.3 | AV12: 0.606 | AW12: 185 | AX12: 115 | AY12: 45 | AZ12: 1.15 | BA12: 3.9 | BB12: 19.2 | BC12: 37.6 | BD12: 33 | BE12: 36.8 | BF12: 0.1 | BG12: 10 | BH12: 3 | BI12: 214 | BJ12: 13.8 | BK12: 131 | BL12: 20.4 | BM12: 2.23 | BN12: 0.21 | BO12: 0.03 | BP12: 4.2 | BQ12: 3.46 | BR12: 19.6 | BS12: 990 | BY12: 25.5 | BZ12: 56.6 | CA12: 7.26 | CB12: 27.1 | CC12: 5.48 | CD12: 1.34 | CE12: 3.61 | CF12: 0.53 | CG12: 2.87 | CH12: 0.64 | CI12: 1.79 | CJ12: 0.32 | CK12: 2.19 | CL12: 0.37 | CM12: 3.9 | CN12: 1.89 | CO12: 38.1 | CP12: 15.55 | CQ12: 4.4 | CR12: =IF(ISBLANK(FieldSampling16[[#This Row],[Sample Reference '# ('# required to enable calculations)]]),"",SUM(FieldSampling16[[#This Row],[La 57]:[Lu 71]])) -> 135.6 | CS12: =IF(ISBLANK(FieldSampling16[[#This Row],[Sample Reference '# ('# required to enable calculations)]]),"", SUM(FieldSampling16[Lanthanides]+FieldSampling16[Y 39])) -> 149.4
A13: NE7 | B13: Field sample | F13: Resource Production | G13: Coal Reserve | H13: Coal | I13: Northern Appalachia | J13: Middle Anthracite Field | K13: Buck Mountain | L13: PA | M13: Luzerne | N13: Eckley North | O13: PA | P13: Luzerne | Q13: Eckley North | R13: Outcrop | AJ13: Acid digestion | AK13: ICP-MS | AM13: 3.27 | AN13: 0.21 | AO13: 0.27 | AP13: 11.4 | AR13: 160 | AS13: 2.94 | AT13: 0.02 | AU13: 22.5 | AV13: 0.563 | AW13: 207 | AX13: 113 | AY13: 41 | AZ13: 1.22 | BA13: 6.7 | BB13: 29.4 | BC13: 34.9 | BD13: 35 | BE13: 31.6 | BF13: 0.13 | BG13: 33 | BH13: 5 | BI13: 159 | BJ13: 14.7 | BK13: 129 | BL13: 19.3 | BM13: 5.91 | BN13: 0.23 | BO13: 0.05 | BP13: 4.1 | BQ13: 5.24 | BR13: 15.25 | BS13: 760 | BY13: 38.3 | BZ13: 83.9 | CA13: 10.2 | CB13: 37.3 | CC13: 7.27 | CD13: 1.5 | CE13: 4.46 | CF13: 0.61 | CG13: 3.23 | CH13: 0.7 | CI13: 1.98 | CJ13: 0.33 | CK13: 2.34 | CL13: 0.38 | CM13: 4 | CN13: 2.44 | CO13: 53.7 | CP13: 20.5 | CQ13: 5.7 | CR13: =IF(ISBLANK(FieldSampling16[[#This Row],[Sample Reference '# ('# required to enable calculations)]]),"",SUM(FieldSampling16[[#This Row],[La 57]:[Lu 71]])) -> 192.5 | CS13: =IF(ISBLANK(FieldSampling16[[#This Row],[Sample Reference '# ('# required to enable calculations)]]),"", SUM(FieldSampling16[Lanthanides]+FieldSampling16[Y 39])) -> 207.2
A14: NE8 | B14: Field sample | F14: Resource Production | G14: Coal Reserve | H14: Coal | I14: Northern Appalachia | J14: Middle Anthracite Field | K14: Buck Mountain | L14: PA | M14: Luzerne | N14: Eckley North | O14: PA | P14: Luzerne | Q14: Eckley North | R14: Outcrop | AJ14: Acid digestion | AK14: ICP-MS | AM14: 2.35 | AN14: 0.21 | AO14: 0.28 | AP14: 11.75 | AR14: 130 | AS14: 3.18 | AT14: 0.02 | AU14: 19.6 | AV14: 0.643 | AW14: 109 | AX14: 57 | AY14: 54 | AZ14: 0.75 | BA14: 2.3 | BB14: 9.4 | BC14: 9.7 | BD14: 14 | BE14: 31.8 | BF14: 0.11 | BG14: 3 | BH14: 2 | BI14: 161 | BJ14: 9.9 | BK14: 131 | BL14: 21.5 | BM14: 0.54 | BN14: 0.04 | BO14: <0.02 | BP14: 4.5 | BQ14: 0.85 | BR14: 13.35 | BS14: 900 | BY14: 37.4 | BZ14: 81 | CA14: 9.53 | CB14: 32.9 | CC14: 5.55 | CD14: 0.94 | CE14: 3.12 | CF14: 0.43 | CG14: 2.07 | CH14: 0.43 | CI14: 1.27 | CJ14: 0.23 | CK14: 1.61 | CL14: 0.26 | CM14: 4 | CN14: 2.16 | CO14: 20 | CP14: 12.75 | CQ14: 3.5 | CR14: =IF(ISBLANK(FieldSampling16[[#This Row],[Sample Reference '# ('# required to enable calculations)]]),"",SUM(FieldSampling16[[#This Row],[La 57]:[Lu 71]])) -> 176.74 | CS14: =IF(ISBLANK(FieldSampling16[[#This Row],[Sample Reference '# ('# required to enable calculations)]]),"", SUM(FieldSampling16[Lanthanides]+FieldSampling16[Y 39])) -> 186.64
A15: NE10 | B15: Field sample | F15: Resource Production | G15: Coal Reserve | H15: Coal | I15: Northern Appalachia | J15: Middle Anthracite Field | K15: Buck Mountain | L15: PA | M15: Luzerne | N15: Eckley North | O15: PA | P15: Luzerne | Q15: Eckley North | R15: Outcrop | AJ15: Acid digestion | AK15: ICP-MS | AM15: 1.43 | AN15: 0.07 | AO15: 0.09 | AP15: 11.95 | AR15: 350 | AS15: 0.61 | AT15: 0.01 | AU15: 18.6 | AV15: 1.58 | AW15: 131 | AX15: 91 | AY15: 11 | AZ15: 0.27 | BA15: 0.8 | BB15: 26.8 | BC15: 3.6 | BD15: 16 | BE15: 36.5 | BF15: 0.12 | BG15: 8.5 | BH15: 15 | BI15: 34.3 | BJ15: 20.9 | BK15: 290 | BL15: 52.6 | BM15: 7.68 | BN15: 0.11 | BO15: <0.02 | BP15: 7.5 | BQ15: 1.91 | BR15: 3.48 | BS15: 400 | BY15: 50.2 | BZ15: 96.9 | CA15: 10.6 | CB15: 37 | CC15: 6.75 | CD15: 1.46 | CE15: 4.88 | CF15: 0.75 | CG15: 4.35 | CH15: 0.9 | CI15: 2.71 | CJ15: 0.47 | CK15: 3.31 | CL15: 0.56 | CM15: 8.7 | CN15: 0.74 | CO15: 49.3 | CP15: 25 | CQ15: 9.1 | CR15: =IF(ISBLANK(FieldSampling16[[#This Row],[Sample Reference '# ('# required to enable calculations)]]),"",SUM(FieldSampling16[[#This Row],[La 57]:[Lu 71]])) -> 220.84 | CS15: =IF(ISBLANK(FieldSampling16[[#This Row],[Sample Reference '# ('# required to enable calculations)]]),"", SUM(FieldSampling16[Lanthanides]+FieldSampling16[Y 39])) -> 241.74
A16: NE11 | B16: Field sample | F16: Resource Production | G16: Coal Reserve | H16: Coal | I16: Northern Appalachia | J16: Middle Anthracite Field | K16: Buck Mountain | L16: PA | M16: Luzerne | N16: Eckley North | O16: PA | P16: Luzerne | Q16: Eckley North | R16: Outcrop | AJ16: Acid digestion | AK16: ICP-MS | AM16: 3.63 | AN16: 0.3 | AO16: 0.38 | AP16: 13.9 | AR16: 190 | AS16: 3.28 | AT16: 0.02 | AU16: 23.6 | AV16: 0.596 | AW16: 195 | AX16: 90 | AY16: 132 | AZ16: 3.46 | BA16: 7.3 | BB16: 35.1 | BC16: 125 | BD16: 52 | BE16: 34.2 | BF16: 0.09 | BG16: 8 | BH16: 4 | BI16: 136 | BJ16: 21.4 | BK16: 129 | BL16: 18.3 | BM16: 1.62 | BN16: 0.13 | BO16: 0.07 | BP16: 4 | BQ16: 1 | BR16: 13.7 | BS16: 850 | BY16: 18.7 | BZ16: 50.7 | CA16: 7.6 | CB16: 32.2 | CC16: 8.16 | CD16: 1.74 | CE16: 6.73 | CF16: 1.05 | CG16: 6.14 | CH16: 1.29 | CI16: 3.97 | CJ16: 0.69 | CK16: 4.55 | CL16: 0.74 | CM16: 4 | CN16: 1.35 | CO16: 34 | CP16: 10.25 | CQ16: 5.5 | CR16: =IF(ISBLANK(FieldSampling16[[#This Row],[Sample Reference '# ('# required to enable calculations)]]),"",SUM(FieldSampling16[[#This Row],[La 57]:[Lu 71]])) -> 144.26 | CS16: =IF(ISBLANK(FieldSampling16[[#This Row],[Sample Reference '# ('# required to enable calculations)]]),"", SUM(FieldSampling16[Lanthanides]+FieldSampling16[Y 39])) -> 165.66
A17: NE12 | B17: Field sample | F17: Resource Production | G17: Coal Reserve | H17: Coal | I17: Northern Appalachia | J17: Middle Anthracite Field | K17: Buck Mountain | L17: PA | M17: Luzerne | N17: Eckley North | O17: PA | P17: Luzerne | Q17: Eckley North | R17: Outcrop | AJ17: Acid digestion | AK17: ICP-MS | AM17: 3.73 | AN17: 0.32 | AO17: 0.37 | AP17: 13.55 | AR17: 430 | AS17: 3.18 | AT17: 0.03 | AU17: 35.2 | AV17: 0.829 | AW17: 317 | AX17: 169 | AY17: 56 | AZ17: 2.26 | BA17: 8 | BB17: 44.7 | BC17: 67.8 | BD17: 52 | BE17: 46.1 | BF17: 0.26 | BG17: 30.9 | BH17: 38 | BI17: 183.5 | BJ17: 27.8 | BK17: 189.5 | BL17: 28.4 | BM17: 10.9 | BN17: 0.52 | BO17: 0.14 | BP17: 5.8 | BQ17: 3.04 | BR17: 20.3 | BS17: 930 | BY17: 53.8 | BZ17: 117.5 | CA17: 13.75 | CB17: 51.2 | CC17: 10.3 | CD17: 2.08 | CE17: 7.43 | CF17: 1.17 | CG17: 6.13 | CH17: 1.28 | CI17: 3.55 | CJ17: 0.56 | CK17: 3.74 | CL17: 0.61 | CM17: 5.6 | CN17: 2.44 | CO17: 75.4 | CP17: 23.7 | CQ17: 7.4 | CR17: =IF(ISBLANK(FieldSampling16[[#This Row],[Sample Reference '# ('# required to enable calculations)]]),"",SUM(FieldSampling16[[#This Row],[La 57]:[Lu 71]])) -> 273.1 | CS17: =IF(ISBLANK(FieldSampling16[[#This Row],[Sample Reference '# ('# required to enable calculations)]]),"", SUM(FieldSampling16[Lanthanides]+FieldSampling16[Y 39])) -> 300.9
A18: NE13 | B18: Field sample | F18: Resource Production | G18: Coal Reserve | H18: Coal | I18: Northern Appalachia | J18: Middle Anthracite Field | K18: Buck Mountain | L18: PA | M18: Luzerne | N18: Eckley North | O18: PA | P18: Luzerne | Q18: Eckley North | R18: Outcrop | AJ18: Acid digestion | AK18: ICP-MS | AM18: 1.48 | AN18: 0.08 | AO18: 0.1 | AP18: 12.5 | AR18: 400 | AS18: 0.74 | AT18: 0.01 | AU18: 19.6 | AV18: 1.69 | AW18: 145 | AX18: 102 | AY18: 15 | AZ18: 0.34 | BA18: 0.9 | BB18: 28.2 | BC18: 4.6 | BD18: 104 | BE18: 37.3 | BF18: 0.14 | BG18: 9.3 | BH18: 18 | BI18: 41 | BJ18: 22.6 | BK18: 307 | BL18: 53.6 | BM18: 7.85 | BN18: 0.11 | BO18: <0.02 | BP18: 7.6 | BQ18: 1.93 | BR18: 4.24 | BS18: 450 | BY18: 61.6 | BZ18: 116.5 | CA18: 12.7 | CB18: 44.2 | CC18: 7.9 | CD18: 1.77 | CE18: 5.73 | CF18: 0.86 | CG18: 4.61 | CH18: 0.97 | CI18: 2.96 | CJ18: 0.52 | CK18: 3.63 | CL18: 0.59 | CM18: 8.9 | CN18: 0.81 | CO18: 51.9 | CP18: 26.8 | CQ18: 9.5 | CR18: =IF(ISBLANK(FieldSampling16[[#This Row],[Sample Reference '# ('# required to enable calculations)]]),"",SUM(FieldSampling16[[#This Row],[La 57]:[Lu 71]])) -> 264.54 | CS18: =IF(ISBLANK(FieldSampling16[[#This Row],[Sample Reference '# ('# required to enable calculations)]]),"", SUM(FieldSampling16[Lanthanides]+FieldSampling16[Y 39])) -> 287.14
A19: NE15 | B19: Field sample | F19: Resource Production | G19: Coal Reserve | H19: Coal | I19: Northern Appalachia | J19: Middle Anthracite Field | K19: Buck Mountain | L19: PA | M19: Luzerne | N19: Eckley North | O19: PA | P19: Luzerne | Q19: Eckley North | R19: Outcrop | AJ19: Acid digestion | AK19: ICP-MS | AM19: 3.21 | AN19: 0.27 | AO19: 0.53 | AP19: 12.45 | AR19: 220 | AS19: 3.58 | AT19: 0.01 | AU19: 22.8 | AV19: 0.621 | AW19: 154 | AX19: 86 | AY19: 135 | AZ19: 1.53 | BA19: 8.2 | BB19: 39.1 | BC19: 23.8 | BD19: 83 | BE19: 35 | BF19: 0.12 | BG19: 3.6 | BH19: 3 | BI19: 169.5 | BJ19: 14 | BK19: 129 | BL19: 20.7 | BM19: 1.25 | BN19: 0.01 | BO19: 0.09 | BP19: 4.3 | BQ19: 0.48 | BR19: 11.05 | BS19: 900 | BY19: 31.6 | BZ19: 75 | CA19: 9.45 | CB19: 36.5 | CC19: 7.41 | CD19: 1.44 | CE19: 5.32 | CF19: 0.74 | CG19: 3.81 | CH19: 0.72 | CI19: 1.96 | CJ19: 0.34 | CK19: 2.27 | CL19: 0.37 | CM19: 3.8 | CN19: 1.53 | CO19: 28.7 | CP19: 14.55 | CQ19: 4.3 | CR19: =IF(ISBLANK(FieldSampling16[[#This Row],[Sample Reference '# ('# required to enable calculations)]]),"",SUM(FieldSampling16[[#This Row],[La 57]:[Lu 71]])) -> 176.93 | CS19: =IF(ISBLANK(FieldSampling16[[#This Row],[Sample Reference '# ('# required to enable calculations)]]),"", SUM(FieldSampling16[Lanthanides]+FieldSampling16[Y 39])) -> 190.93
A20: NE16 | B20: Field sample | F20: Resource Production | G20: Coal Reserve | H20: Coal | I20: Northern Appalachia | J20: Middle Anthracite Field | K20: Buck Mountain | L20: PA | M20: Luzerne | N20: Eckley North | O20: PA | P20: Luzerne | Q20: Eckley North | R20: Outcrop | AJ20: Acid digestion | AK20: ICP-MS | AM20: 2.78 | AN20: 0.28 | AO20: 0.42 | AP20: 12.6 | AR20: 230 | AS20: 3.46 | AT20: 0.03 | AU20: 25.4 | AV20: 0.681 | AW20: 168 | AX20: 105 | AY20: 72 | AZ20: 1.49 | BA20: 6 | BB20: 30.5 | BC20: 22 | BD20: 54 | BE20: 35.6 | BF20: 0.14 | BG20: 28 | BH20: 7 | BI20: 178 | BJ20: 18.2 | BK20: 152 | BL20: 22.6 | BM20: 3.09 | BN20: 0.2 | BO20: 0.04 | BP20: 4.8 | BQ20: 1.81 | BR20: 11.75 | BS20: 880 | BY20: 45.8 | BZ20: 99 | CA20: 12.35 | CB20: 46 | CC20: 9.14 | CD20: 1.75 | CE20: 6.18 | CF20: 0.81 | CG20: 4.12 | CH20: 0.83 | CI20: 2.39 | CJ20: 0.39 | CK20: 2.7 | CL20: 0.47 | CM20: 4.5 | CN20: 1.76 | CO20: 45.2 | CP20: 19.85 | CQ20: 5.1 | CR20: =IF(ISBLANK(FieldSampling16[[#This Row],[Sample Reference '# ('# required to enable calculations)]]),"",SUM(FieldSampling16[[#This Row],[La 57]:[Lu 71]])) -> 231.93 | CS20: =IF(ISBLANK(FieldSampling16[[#This Row],[Sample Reference '# ('# required to enable calculations)]]),"", SUM(FieldSampling16[Lanthanides]+FieldSampling16[Y 39])) -> 250.13
A21: NE18 | B21: Field sample | F21: Resource Production | G21: Coal Reserve | H21: Coal | I21: Northern Appalachia | J21: Middle Anthracite Field | K21: Buck Mountain | L21: PA | M21: Luzerne | N21: Eckley North | O21: PA | P21: Luzerne | Q21: Eckley North | R21: Outcrop | AJ21: Acid digestion | AK21: ICP-MS | AM21: 3.03 | AN21: 0.28 | AO21: 0.4 | AP21: 12.7 | AR21: 210 | AS21: 3.56 | AT21: 0.01 | AU21: 23.9 | AV21: 0.614 | AW21: 152 | AX21: 94 | AY21: 66 | AZ21: 1.16 | BA21: 5.7 | BB21: 36.6 | BC21: 25.5 | BD21: 46 | BE21: 37.3 | BF21: 0.1 | BG21: 5.4 | BH21: 3 | BI21: 181.5 | BJ21: 14.2 | BK21: 133 | BL21: 22.1 | BM21: 1.19 | BN21: 0.07 | BO21: 0.11 | BP21: 4.9 | BQ21: 0.72 | BR21: 13.95 | BS21: 910 | BY21: 30 | BZ21: 71.2 | CA21: 9.14 | CB21: 34.4 | CC21: 7.14 | CD21: 1.4 | CE21: 4.93 | CF21: 0.69 | CG21: 3.55 | CH21: 0.74 | CI21: 2.01 | CJ21: 0.34 | CK21: 2.33 | CL21: 0.37 | CM21: 3.9 | CN21: 1.61 | CO21: 31.7 | CP21: 15.65 | CQ21: 4.8 | CR21: =IF(ISBLANK(FieldSampling16[[#This Row],[Sample Reference '# ('# required to enable calculations)]]),"",SUM(FieldSampling16[[#This Row],[La 57]:[Lu 71]])) -> 168.24 | CS21: =IF(ISBLANK(FieldSampling16[[#This Row],[Sample Reference '# ('# required to enable calculations)]]),"", SUM(FieldSampling16[Lanthanides]+FieldSampling16[Y 39])) -> 182.44
A22: NE20 | B22: Field sample | F22: Resource Production | G22: Coal Reserve | H22: Coal | I22: Northern Appalachia | J22: Middle Anthracite Field | K22: Buck Mountain | L22: PA | M22: Luzerne | N22: Eckley North | O22: PA | P22: Luzerne | Q22: Eckley North | R22: Outcrop | AJ22: Acid digestion | AK22: ICP-MS | AM22: 4.5 | AN22: 0.22 | AO22: 0.42 | AP22: 11.7 | AR22: 140 | AS22: 4.52 | AT22: 0.02 | AU22: 27.4 | AV22: 0.622 | AW22: 141 | AX22: 102 | AY22: 77 | AZ22: 1.27 | BA22: 7 | BB22: 22.9 | BC22: 26.3 | BD22: 70 | BE22: 38.1 | BF22: 0.12 | BG22: 6.2 | BH22: 3 | BI22: 216 | BJ22: 18.5 | BK22: 151 | BL22: 20 | BM22: 0.95 | BN22: 0.17 | BO22: <0.02 | BP22: 4.2 | BQ22: 1.27 | BR22: 15.7 | BS22: 1170 | BY22: 35.8 | BZ22: 72.7 | CA22: 9.41 | CB22: 34.5 | CC22: 6.58 | CD22: 1.19 | CE22: 3.86 | CF22: 0.56 | CG22: 3.36 | CH22: 0.77 | CI22: 2.36 | CJ22: 0.44 | CK22: 3.01 | CL22: 0.53 | CM22: 4.5 | CN22: 1.69 | CO22: 31.9 | CP22: 16.05 | CQ22: 4.2 | CR22: =IF(ISBLANK(FieldSampling16[[#This Row],[Sample Reference '# ('# required to enable calculations)]]),"",SUM(FieldSampling16[[#This Row],[La 57]:[Lu 71]])) -> 175.07 | CS22: =IF(ISBLANK(FieldSampling16[[#This Row],[Sample Reference '# ('# required to enable calculations)]]),"", SUM(FieldSampling16[Lanthanides]+FieldSampling16[Y 39])) -> 193.57
A23: NE21 | B23: Field sample | F23: Resource Production | G23: Coal Reserve | H23: Coal | I23: Northern Appalachia | J23: Middle Anthracite Field | K23: Buck Mountain | L23: PA | M23: Luzerne | N23: Eckley North | O23: PA | P23: Luzerne | Q23: Eckley North | R23: Outcrop | AJ23: Acid digestion | AK23: ICP-MS | AM23: 0.33 | AN23: 0.02 | AO23: 0.06 | AP23: 2.13 | AR23: 30 | AS23: 0.75 | AT23: 0.03 | AU23: 1.8 | AV23: 0.069 | AW23: 15 | AX23: 23 | AY23: 90 | AZ23: 0.88 | BA23: 2.8 | BB23: 6.6 | BC23: 13.8 | BD23: 105 | BE23: 4.6 | BF23: <0.05 | BG23: 1.9 | BH23: 2 | BI23: 31.9 | BJ23: 3.8 | BK23: 25.9 | BL23: 2.3 | BM23: 0.66 | BN23: 0.05 | BO23: <0.02 | BP23: 0.6 | BQ23: 0.4 | BR23: 0.94 | BS23: 160 | BY23: 8.2 | BZ23: 17.35 | CA23: 1.91 | CB23: 6.9 | CC23: 1.39 | CD23: 0.31 | CE23: 0.94 | CF23: 0.33 | CG23: 1.48 | CH23: 0.15 | CI23: 0.48 | CJ23: 0.08 | CK23: 0.52 | CL23: 1563.3 | CM23: 0.8 | CN23: 0.23 | CO23: 11.9 | CP23: 2.53 | CQ23: 0.7 | CR23: =IF(ISBLANK(FieldSampling16[[#This Row],[Sample Reference '# ('# required to enable calculations)]]),"",SUM(FieldSampling16[[#This Row],[La 57]:[Lu 71]])) -> 1603.34 | CS23: =IF(ISBLANK(FieldSampling16[[#This Row],[Sample Reference '# ('# required to enable calculations)]]),"", SUM(FieldSampling16[Lanthanides]+FieldSampling16[Y 39])) -> 1607.14
CR24: =IF(ISBLANK(FieldSampling16[[#This Row],[Sample Reference '# ('# required to enable calculations)]]),"",SUM(FieldSampling16[[#This Row],[La 57]:[Lu 71]])) ->  | CS24: =IF(ISBLANK(FieldSampling16[[#This Row],[Sample Reference '# ('# required to enable calculations)]]),"", SUM(FieldSampling16[Lanthanides]+FieldSampling16[Y 39])) -> 
CR25: =IF(ISBLANK(FieldSampling16[[#This Row],[Sample Reference '# ('# required to enable calculations)]]),"",SUM(FieldSampling16[[#This Row],[La 57]:[Lu 71]])) ->  | CS25: =IF(ISBLANK(FieldSampling16[[#This Row],[Sample Reference '# ('# required to enable calculations)]]),"", SUM(FieldSampling16[Lanthanides]+FieldSampling16[Y 39])) -> 
CR26: =IF(ISBLANK(FieldSampling16[[#This Row],[Sample Reference '# ('# required to enable calculations)]]),"",SUM(FieldSampling16[[#This Row],[La 57]:[Lu 71]])) ->  | CS26: =IF(ISBLANK(FieldSampling16[[#This Row],[Sample Reference '# ('# required to enable calculations)]]),"", SUM(FieldSampling16[Lanthanides]+FieldSampling16[Y 39])) -> 
CR27: =IF(ISBLANK(FieldSampling16[[#This Row],[Sample Reference '# ('# required to enable calculations)]]),"",SUM(FieldSampling16[[#This Row],[La 57]:[Lu 71]])) ->  | CS27: =IF(ISBLANK(FieldSampling16[[#This Row],[Sample Reference '# ('# required to enable calculations)]]),"", SUM(FieldSampling16[Lanthanides]+FieldSampling16[Y 39])) -> 
CR28: =IF(ISBLANK(FieldSampling16[[#This Row],[Sample Reference '# ('# required to enable calculations)]]),"",SUM(FieldSampling16[[#This Row],[La 57]:[Lu 71]])) ->  | CS28: =IF(ISBLANK(FieldSampling16[[#This Row],[Sample Reference '# ('# required to enable calculations)]]),"", SUM(FieldSampling16[Lanthanides]+FieldSampling16[Y 39])) -> 
CR29: =IF(ISBLANK(FieldSampling16[[#This Row],[Sample Reference '# ('# required to enable calculations)]]),"",SUM(FieldSampling16[[#This Row],[La 57]:[Lu 71]])) ->  | CS29: =IF(ISBLANK(FieldSampling16[[#This Row],[Sample Reference '# ('# required to enable calculations)]]),"", SUM(FieldSampling16[Lanthanides]+FieldSampling16[Y 39])) -> 
CR30: =IF(ISBLANK(FieldSampling16[[#This Row],[Sample Reference '# ('# required to enable calculations)]]),"",SUM(FieldSampling16[[#This Row],[La 57]:[Lu 71]])) ->  | CS30: =IF(ISBLANK(FieldSampling16[[#This Row],[Sample Reference '# ('# required to enable calculations)]]),"", SUM(FieldSampling16[Lanthanides]+FieldSampling16[Y 39])) -> 
CR31: =IF(ISBLANK(FieldSampling16[[#This Row],[Sample Reference '# ('# required to enable calculations)]]),"",SUM(FieldSampling16[[#This Row],[La 57]:[Lu 71]])) ->  | CS31: =IF(ISBLANK(FieldSampling16[[#This Row],[Sample Reference '# ('# required to enable calculations)]]),"", SUM(FieldSampling16[Lanthanides]+FieldSampling16[Y 39])) -> 
CR32: =IF(ISBLANK(FieldSampling16[[#This Row],[Sample Reference '# ('# required to enable calculations)]]),"",SUM(FieldSampling16[[#This Row],[La 57]:[Lu 71]])) ->  | CS32: =IF(ISBLANK(FieldSampling16[[#This Row],[Sample Reference '# ('# required to enable calculations)]]),"", SUM(FieldSampling16[Lanthanides]+FieldSampling16[Y 39])) -> 
CR33: =IF(ISBLANK(FieldSampling16[[#This Row],[Sample Reference '# ('# required to enable calculations)]]),"",SUM(FieldSampling16[[#This Row],[La 57]:[Lu 71]])) ->  | CS33: =IF(ISBLANK(FieldSampling16[[#This Row],[Sample Reference '# ('# required to enable calculations)]]),"", SUM(FieldSampling16[Lanthanides]+FieldSampling16[Y 39])) -> 
CR34: =IF(ISBLANK(FieldSampling16[[#This Row],[Sample Reference '# ('# required to enable calculations)]]),"",SUM(FieldSampling16[[#This Row],[La 57]:[Lu 71]])) ->  | CS34: =IF(ISBLANK(FieldSampling16[[#This Row],[Sample Reference '# ('# required to enable calculations)]]),"", SUM(FieldSampling16[Lanthanides]+FieldSampling16[Y 39])) -> 
CR35: =IF(ISBLANK(FieldSampling16[[#This Row],[Sample Reference '# ('# required to enable calculations)]]),"",SUM(FieldSampling16[[#This Row],[La 57]:[Lu 71]])) ->  | CS35: =IF(ISBLANK(FieldSampling16[[#This Row],[Sample Reference '# ('# required to enable calculations)]]),"", SUM(FieldSampling16[Lanthanides]+FieldSampling16[Y 39])) -> 
CR36: =IF(ISBLANK(FieldSampling16[[#This Row],[Sample Reference '# ('# required to enable calculations)]]),"",SUM(FieldSampling16[[#This Row],[La 57]:[Lu 71]])) ->  | CS36: =IF(ISBLANK(FieldSampling16[[#This Row],[Sample Reference '# ('# required to enable calculations)]]),"", SUM(FieldSampling16[Lanthanides]+FieldSampling16[Y 39])) -> 
CR37: =IF(ISBLANK(FieldSampling16[[#This Row],[Sample Reference '# ('# required to enable calculations)]]),"",SUM(FieldSampling16[[#This Row],[La 57]:[Lu 71]])) ->  | CS37: =IF(ISBLANK(FieldSampling16[[#This Row],[Sample Reference '# ('# required to enable calculations)]]),"", SUM(FieldSampling16[Lanthanides]+FieldSampling16[Y 39])) -> 
CR38: =IF(ISBLANK(FieldSampling16[[#This Row],[Sample Reference '# ('# required to enable calculations)]]),"",SUM(FieldSampling16[[#This Row],[La 57]:[Lu 71]])) ->  | CS38: =IF(ISBLANK(FieldSampling16[[#This Row],[Sample Reference '# ('# required to enable calculations)]]),"", SUM(FieldSampling16[Lanthanides]+FieldSampling16[Y 39])) -> 
CR39: =IF(ISBLANK(FieldSampling16[[#This Row],[Sample Reference '# ('# required to enable calculations)]]),"",SUM(FieldSampling16[[#This Row],[La 57]:[Lu 71]])) ->  | CS39: =IF(ISBLANK(FieldSampling16[[#This Row],[Sample Reference '# ('# required to enable calculations)]]),"", SUM(FieldSampling16[Lanthanides]+FieldSampling16[Y 39])) -> 
CR40: =IF(ISBLANK(FieldSampling16[[#This Row],[Sample Reference '# ('# required to enable calculations)]]),"",SUM(FieldSampling16[[#This Row],[La 57]:[Lu 71]])) ->  | CS40: =IF(ISBLANK(FieldSampling16[[#This Row],[Sample Reference '# ('# required to enable calculations)]]),"", SUM(FieldSampling16[Lanthanides]+FieldSampling16[Y 39])) -> 
CR41: =IF(ISBLANK(FieldSampling16[[#This Row],[Sample Reference '# ('# required to enable calculations)]]),"",SUM(FieldSampling16[[#This Row],[La 57]:[Lu 71]])) ->  | CS41: =IF(ISBLANK(FieldSampling16[[#This Row],[Sample Reference '# ('# required to enable calculations)]]),"", SUM(FieldSampling16[Lanthanides]+FieldSampling16[Y 39])) -> 
CR42: =IF(ISBLANK(FieldSampling16[[#This Row],[Sample Reference '# ('# required to enable calculations)]]),"",SUM(FieldSampling16[[#This Row],[La 57]:[Lu 71]])) ->  | CS42: =IF(ISBLANK(FieldSampling16[[#This Row],[Sample Reference '# ('# required to enable calculations)]]),"", SUM(FieldSampling16[Lanthanides]+FieldSampling16[Y 39])) -> 
CR43: =IF(ISBLANK(FieldSampling16[[#This Row],[Sample Reference '# ('# required to enable calculations)]]),"",SUM(FieldSampling16[[#This Row],[La 57]:[Lu 71]])) ->  | CS43: =IF(ISBLANK(FieldSampling16[[#This Row],[Sample Reference '# ('# required to enable calculations)]]),"", SUM(FieldSampling16[Lanthanides]+FieldSampling16[Y 39])) -> 
CR44: =IF(ISBLANK(FieldSampling16[[#This Row],[Sample Reference '# ('# required to enable calculations)]]),"",SUM(FieldSampling16[[#This Row],[La 57]:[Lu 71]])) ->  | CS44: =IF(ISBLANK(FieldSampling16[[#This Row],[Sample Reference '# ('# required to enable calculations)]]),"", SUM(FieldSampling16[Lanthanides]+FieldSampling16[Y 39])) -> 
CR45: =IF(ISBLANK(FieldSampling16[[#This Row],[Sample Reference '# ('# required to enable calculations)]]),"",SUM(FieldSampling16[[#This Row],[La 57]:[Lu 71]])) ->  | CS45: =IF(ISBLANK(FieldSampling16[[#This Row],[Sample Reference '# ('# required to enable calculations)]]),"", SUM(FieldSampling16[Lanthanides]+FieldSampling16[Y 39])) -> 
CR46: =IF(ISBLANK(FieldSampling16[[#This Row],[Sample Reference '# ('# required to enable calculations)]]),"",SUM(FieldSampling16[[#This Row],[La 57]:[Lu 71]])) ->  | CS46: =IF(ISBLANK(FieldSampling16[[#This Row],[Sample Reference '# ('# required to enable calculations)]]),"", SUM(FieldSampling16[Lanthanides]+FieldSampling16[Y 39])) -> 
CR47: =IF(ISBLANK(FieldSampling16[[#This Row],[Sample Reference '# ('# required to enable calculations)]]),"",SUM(FieldSampling16[[#This Row],[La 57]:[Lu 71]])) ->  | CS47: =IF(ISBLANK(FieldSampling16[[#This Row],[Sample Reference '# ('# required to enable calculations)]]),"", SUM(FieldSampling16[Lanthanides]+FieldSampling16[Y 39])) -> 
CR48: =IF(ISBLANK(FieldSampling16[[#This Row],[Sample Reference '# ('# required to enable calculations)]]),"",SUM(FieldSampling16[[#This Row],[La 57]:[Lu 71]])) ->  | CS48: =IF(ISBLANK(FieldSampling16[[#This Row],[Sample Reference '# ('# required to enable calculations)]]),"", SUM(FieldSampling16[Lanthanides]+FieldSampling16[Y 39])) -> 
CR49: =IF(ISBLANK(FieldSampling16[[#This Row],[Sample Reference '# ('# required to enable calculations)]]),"",SUM(FieldSampling16[[#This Row],[La 57]:[Lu 71]])) ->  | CS49: =IF(ISBLANK(FieldSampling16[[#This Row],[Sample Reference '# ('# required to enable calculations)]]),"", SUM(FieldSampling16[Lanthanides]+FieldSampling16[Y 39])) -> 
CR50: =IF(ISBLANK(FieldSampling16[[#This Row],[Sample Reference '# ('# required to enable calculations)]]),"",SUM(FieldSampling16[[#This Row],[La 57]:[Lu 71]])) ->  | CS50: =IF(ISBLANK(FieldSampling16[[#This Row],[Sample Reference '# ('# required to enable calculations)]]),"", SUM(FieldSampling16[Lanthanides]+FieldSampling16[Y 39])) -> 
CR51: =IF(ISBLANK(FieldSampling16[[#This Row],[Sample Reference '# ('# required to enable calculations)]]),"",SUM(FieldSampling16[[#This Row],[La 57]:[Lu 71]])) ->  | CS51: =IF(ISBLANK(FieldSampling16[[#This Row],[Sample Reference '# ('# required to enable calculations)]]),"", SUM(FieldSampling16[Lanthanides]+FieldSampling16[Y 39])) -> 
CR52: =IF(ISBLANK(FieldSampling16[[#This Row],[Sample Reference '# ('# required to enable calculations)]]),"",SUM(FieldSampling16[[#This Row],[La 57]:[Lu 71]])) ->  | CS52: =IF(ISBLANK(FieldSampling16[[#This Row],[Sample Reference '# ('# required to enable calculations)]]),"", SUM(FieldSampling16[Lanthanides]+FieldSampling16[Y 39])) -> 
CR53: =IF(ISBLANK(FieldSampling16[[#This Row],[Sample Reference '# ('# required to enable calculations)]]),"",SUM(FieldSampling16[[#This Row],[La 57]:[Lu 71]])) ->  | CS53: =IF(ISBLANK(FieldSampling16[[#This Row],[Sample Reference '# ('# required to enable calculations)]]),"", SUM(FieldSampling16[Lanthanides]+FieldSampling16[Y 39])) -> 
CR54: =IF(ISBLANK(FieldSampling16[[#This Row],[Sample Reference '# ('# required to enable calculations)]]),"",SUM(FieldSampling16[[#This Row],[La 57]:[Lu 71]])) ->  | CS54: =IF(ISBLANK(FieldSampling16[[#This Row],[Sample Reference '# ('# required to enable calculations)]]),"", SUM(FieldSampling16[Lanthanides]+FieldSampling16[Y 39])) -> 
CR55: =IF(ISBLANK(FieldSampling16[[#This Row],[Sample Reference '# ('# required to enable calculations)]]),"",SUM(FieldSampling16[[#This Row],[La 57]:[Lu 71]])) ->  | CS55: =IF(ISBLANK(FieldSampling16[[#This Row],[Sample Reference '# ('# required to enable calculations)]]),"", SUM(FieldSampling16[Lanthanides]+FieldSampling16[Y 39])) -> 
CR56: =IF(ISBLANK(FieldSampling16[[#This Row],[Sample Reference '# ('# required to enable calculations)]]),"",SUM(FieldSampling16[[#This Row],[La 57]:[Lu 71]])) ->  | CS56: =IF(ISBLANK(FieldSampling16[[#This Row],[Sample Reference '# ('# required to enable calculations)]]),"", SUM(FieldSampling16[Lanthanides]+FieldSampling16[Y 39])) -> 
CR57: =IF(ISBLANK(FieldSampling16[[#This Row],[Sample Reference '# ('# required to enable calculations)]]),"",SUM(FieldSampling16[[#This Row],[La 57]:[Lu 71]])) ->  | CS57: =IF(ISBLANK(FieldSampling16[[#This Row],[Sample Reference '# ('# required to enable calculations)]]),"", SUM(FieldSampling16[Lanthanides]+FieldSampling16[Y 39])) -> 
CR58: =IF(ISBLANK(FieldSampling16[[#This Row],[Sample Reference '# ('# required to enable calculations)]]),"",SUM(FieldSampling16[[#This Row],[La 57]:[Lu 71]])) ->  | CS58: =IF(ISBLANK(FieldSampling16[[#This Row],[Sample Reference '# ('# required to enable calculations)]]),"", SUM(FieldSampling16[Lanthanides]+FieldSampling16[Y 39])) -> 
CR59: =IF(ISBLANK(FieldSampling16[[#This Row],[Sample Reference '# ('# required to enable calculations)]]),"",SUM(FieldSampling16[[#This Row],[La 57]:[Lu 71]])) ->  | CS59: =IF(ISBLANK(FieldSampling16[[#This Row],[Sample Reference '# ('# required to enable calculations)]]),"", SUM(FieldSampling16[Lanthanides]+FieldSampling16[Y 39])) -> 
CR60: =IF(ISBLANK(FieldSampling16[[#This Row],[Sample Reference '# ('# required to enable calculations)]]),"",SUM(FieldSampling16[[#This Row],[La 57]:[Lu 71]])) ->  | CS60: =IF(ISBLANK(FieldSampling16[[#This Row],[Sample Reference '# ('# required to enable calculations)]]),"", SUM(FieldSampling16[Lanthanides]+FieldSampling16[Y 39])) -> 
CR61: =IF(ISBLANK(FieldSampling16[[#This Row],[Sample Reference '# ('# required to enable calculations)]]),"",SUM(FieldSampling16[[#This Row],[La 57]:[Lu 71]])) ->  | CS61: =IF(ISBLANK(FieldSampling16[[#This Row],[Sample Reference '# ('# required to enable calculations)]]),"", SUM(FieldSampling16[Lanthanides]+FieldSampling16[Y 39])) -> 
CR62: =IF(ISBLANK(FieldSampling16[[#This Row],[Sample Reference '# ('# required to enable calculations)]]),"",SUM(FieldSampling16[[#This Row],[La 57]:[Lu 71]])) ->  | CS62: =IF(ISBLANK(FieldSampling16[[#This Row],[Sample Reference '# ('# required to enable calculations)]]),"", SUM(FieldSampling16[Lanthanides]+FieldSampling16[Y 39])) -> 
CR63: =IF(ISBLANK(FieldSampling16[[#This Row],[Sample Reference '# ('# required to enable calculations)]]),"",SUM(FieldSampling16[[#This Row],[La 57]:[Lu 71]])) ->  | CS63: =IF(ISBLANK(FieldSampling16[[#This Row],[Sample Reference '# ('# required to enable calculations)]]),"", SUM(FieldSampling16[Lanthanides]+FieldSampling16[Y 39])) -> 
CR64: =IF(ISBLANK(FieldSampling16[[#This Row],[Sample Reference '# ('# required to enable calculations)]]),"",SUM(FieldSampling16[[#This Row],[La 57]:[Lu 71]])) ->  | CS64: =IF(ISBLANK(FieldSampling16[[#This Row],[Sample Reference '# ('# required to enable calculations)]]),"", SUM(FieldSampling16[Lanthanides]+FieldSampling16[Y 39])) -> 
CR65: =IF(ISBLANK(FieldSampling16[[#This Row],[Sample Reference '# ('# required to enable calculations)]]),"",SUM(FieldSampling16[[#This Row],[La 57]:[Lu 71]])) ->  | CS65: =IF(ISBLANK(FieldSampling16[[#This Row],[Sample Reference '# ('# required to enable calculations)]]),"", SUM(FieldSampling16[Lanthanides]+FieldSampling16[Y 39])) -> 
CR66: =IF(ISBLANK(FieldSampling16[[#This Row],[Sample Reference '# ('# required to enable calculations)]]),"",SUM(FieldSampling16[[#This Row],[La 57]:[Lu 71]])) ->  | CS66: =IF(ISBLANK(FieldSampling16[[#This Row],[Sample Reference '# ('# required to enable calculations)]]),"", SUM(FieldSampling16[Lanthanides]+FieldSampling16[Y 39])) -> 
CR67: =IF(ISBLANK(FieldSampling16[[#This Row],[Sample Reference '# ('# required to enable calculations)]]),"",SUM(FieldSampling16[[#This Row],[La 57]:[Lu 71]])) ->  | CS67: =IF(ISBLANK(FieldSampling16[[#This Row],[Sample Reference '# ('# required to enable calculations)]]),"", SUM(FieldSampling16[Lanthanides]+FieldSampling16[Y 39])) -> 
CR68: =IF(ISBLANK(FieldSampling16[[#This Row],[Sample Reference '# ('# required to enable calculations)]]),"",SUM(FieldSampling16[[#This Row],[La 57]:[Lu 71]])) ->  | CS68: =IF(ISBLANK(FieldSampling16[[#This Row],[Sample Reference '# ('# required to enable calculations)]]),"", SUM(FieldSampling16[Lanthanides]+FieldSampling16[Y 39])) -> 
CR69: =IF(ISBLANK(FieldSampling16[[#This Row],[Sample Reference '# ('# required to enable calculations)]]),"",SUM(FieldSampling16[[#This Row],[La 57]:[Lu 71]])) ->  | CS69: =IF(ISBLANK(FieldSampling16[[#This Row],[Sample Reference '# ('# required to enable calculations)]]),"", SUM(FieldSampling16[Lanthanides]+FieldSampling16[Y 39])) -> 
CR70: =IF(ISBLANK(FieldSampling16[[#This Row],[Sample Reference '# ('# required to enable calculations)]]),"",SUM(FieldSampling16[[#This Row],[La 57]:[Lu 71]])) ->  | CS70: =IF(ISBLANK(FieldSampling16[[#This Row],[Sample Reference '# ('# required to enable calculations)]]),"", SUM(FieldSampling16[Lanthanides]+FieldSampling16[Y 39])) -> 
CR71: =IF(ISBLANK(FieldSampling16[[#This Row],[Sample Reference '# ('# required to enable calculations)]]),"",SUM(FieldSampling16[[#This Row],[La 57]:[Lu 71]])) ->  | CS71: =IF(ISBLANK(FieldSampling16[[#This Row],[Sample Reference '# ('# required to enable calculations)]]),"", SUM(FieldSampling16[Lanthanides]+FieldSampling16[Y 39])) -> 
CR72: =IF(ISBLANK(FieldSampling16[[#This Row],[Sample Reference '# ('# required to enable calculations)]]),"",SUM(FieldSampling16[[#This Row],[La 57]:[Lu 71]])) ->  | CS72: =IF(ISBLANK(FieldSampling16[[#This Row],[Sample Reference '# ('# required to enable calculations)]]),"", SUM(FieldSampling16[Lanthanides]+FieldSampling16[Y 39])) -> 
CR73: =IF(ISBLANK(FieldSampling16[[#This Row],[Sample Reference '# ('# required to enable calculations)]]),"",SUM(FieldSampling16[[#This Row],[La 57]:[Lu 71]])) ->  | CS73: =IF(ISBLANK(FieldSampling16[[#This Row],[Sample Reference '# ('# required to enable calculations)]]),"", SUM(FieldSampling16[Lanthanides]+FieldSampling16[Y 39])) -> 
CR74: =IF(ISBLANK(FieldSampling16[[#This Row],[Sample Reference '# ('# required to enable calculations)]]),"",SUM(FieldSampling16[[#This Row],[La 57]:[Lu 71]])) ->  | CS74: =IF(ISBLANK(FieldSampling16[[#This Row],[Sample Reference '# ('# required to enable calculations)]]),"", SUM(FieldSampling16[Lanthanides]+FieldSampling16[Y 39])) -> 
CR75: =IF(ISBLANK(FieldSampling16[[#This Row],[Sample Reference '# ('# required to enable calculations)]]),"",SUM(FieldSampling16[[#This Row],[La 57]:[Lu 71]])) ->  | CS75: =IF(ISBLANK(FieldSampling16[[#This Row],[Sample Reference '# ('# required to enable calculations)]]),"", SUM(FieldSampling16[Lanthanides]+FieldSampling16[Y 39])) -> 
CR76: =IF(ISBLANK(FieldSampling16[[#This Row],[Sample Reference '# ('# required to enable calculations)]]),"",SUM(FieldSampling16[[#This Row],[La 57]:[Lu 71]])) ->  | CS76: =IF(ISBLANK(FieldSampling16[[#This Row],[Sample Reference '# ('# required to enable calculations)]]),"", SUM(FieldSampling16[Lanthanides]+FieldSampling16[Y 39])) -> 
CR77: =IF(ISBLANK(FieldSampling16[[#This Row],[Sample Reference '# ('# required to enable calculations)]]),"",SUM(FieldSampling16[[#This Row],[La 57]:[Lu 71]])) ->  | CS77: =IF(ISBLANK(FieldSampling16[[#This Row],[Sample Reference '# ('# required to enable calculations)]]),"", SUM(FieldSampling16[Lanthanides]+FieldSampling16[Y 39])) -> 
CR78: =IF(ISBLANK(FieldSampling16[[#This Row],[Sample Reference '# ('# required to enable calculations)]]),"",SUM(FieldSampling16[[#This Row],[La 57]:[Lu 71]])) ->  | CS78: =IF(ISBLANK(FieldSampling16[[#This Row],[Sample Reference '# ('# required to enable calculations)]]),"", SUM(FieldSampling16[Lanthanides]+FieldSampling16[Y 39])) -> 
CR79: =IF(ISBLANK(FieldSampling16[[#This Row],[Sample Reference '# ('# required to enable calculations)]]),"",SUM(FieldSampling16[[#This Row],[La 57]:[Lu 71]])) ->  | CS79: =IF(ISBLANK(FieldSampling16[[#This Row],[Sample Reference '# ('# required to enable calculations)]]),"", SUM(FieldSampling16[Lanthanides]+FieldSampling16[Y 39])) -> 
CR80: =IF(ISBLANK(FieldSampling16[[#This Row],[Sample Reference '# ('# required to enable calculations)]]),"",SUM(FieldSampling16[[#This Row],[La 57]:[Lu 71]])) ->  | CS80: =IF(ISBLANK(FieldSampling16[[#This Row],[Sample Reference '# ('# required to enable calculations)]]),"", SUM(FieldSampling16[Lanthanides]+FieldSampling16[Y 39])) -> 
CR81: =IF(ISBLANK(FieldSampling16[[#This Row],[Sample Reference '# ('# required to enable calculations)]]),"",SUM(FieldSampling16[[#This Row],[La 57]:[Lu 71]])) ->  | CS81: =IF(ISBLANK(FieldSampling16[[#This Row],[Sample Reference '# ('# required to enable calculations)]]),"", SUM(FieldSampling16[Lanthanides]+FieldSampling16[Y 39])) -> 
CR82: =IF(ISBLANK(FieldSampling16[[#This Row],[Sample Reference '# ('# required to enable calculations)]]),"",SUM(FieldSampling16[[#This Row],[La 57]:[Lu 71]])) ->  | CS82: =IF(ISBLANK(FieldSampling16[[#This Row],[Sample Reference '# ('# required to enable calculations)]]),"", SUM(FieldSampling16[Lanthanides]+FieldSampling16[Y 39])) -> 
CR83: =IF(ISBLANK(FieldSampling16[[#This Row],[Sample Reference '# ('# required to enable calculations)]]),"",SUM(FieldSampling16[[#This Row],[La 57]:[Lu 71]])) ->  | CS83: =IF(ISBLANK(FieldSampling16[[#This Row],[Sample Reference '# ('# required to enable calculations)]]),"", SUM(FieldSampling16[Lanthanides]+FieldSampling16[Y 39])) -> 
CR84: =IF(ISBLANK(FieldSampling16[[#This Row],[Sample Reference '# ('# required to enable calculations)]]),"",SUM(FieldSampling16[[#This Row],[La 57]:[Lu 71]])) ->  | CS84: =IF(ISBLANK(FieldSampling16[[#This Row],[Sample Reference '# ('# required to enable calculations)]]),"", SUM(FieldSampling16[Lanthanides]+FieldSampling16[Y 39])) -> 
CR85: =IF(ISBLANK(FieldSampling16[[#This Row],[Sample Reference '# ('# required to enable calculations)]]),"",SUM(FieldSampling16[[#This Row],[La 57]:[Lu 71]])) ->  | CS85: =IF(ISBLANK(FieldSampling16[[#This Row],[Sample Reference '# ('# required to enable calculations)]]),"", SUM(FieldSampling16[Lanthanides]+FieldSampling16[Y 39])) -> 
CR86: =IF(ISBLANK(FieldSampling16[[#This Row],[Sample Reference '# ('# required to enable calculations)]]),"",SUM(FieldSampling16[[#This Row],[La 57]:[Lu 71]])) ->  | CS86: =IF(ISBLANK(FieldSampling16[[#This Row],[Sample Reference '# ('# required to enable calculations)]]),"", SUM(FieldSampling16[Lanthanides]+FieldSampling16[Y 39])) -> 
CR87: =IF(ISBLANK(FieldSampling16[[#This Row],[Sample Reference '# ('# required to enable calculations)]]),"",SUM(FieldSampling16[[#This Row],[La 57]:[Lu 71]])) ->  | CS87: =IF(ISBLANK(FieldSampling16[[#This Row],[Sample Reference '# ('# required to enable calculations)]]),"", SUM(FieldSampling16[Lanthanides]+FieldSampling16[Y 39])) -> 
CR88: =IF(ISBLANK(FieldSampling16[[#This Row],[Sample Reference '# ('# required to enable calculations)]]),"",SUM(FieldSampling16[[#This Row],[La 57]:[Lu 71]])) ->  | CS88: =IF(ISBLANK(FieldSampling16[[#This Row],[Sample Reference '# ('# required to enable calculations)]]),"", SUM(FieldSampling16[Lanthanides]+FieldSampling16[Y 39])) -> 
CR89: =IF(ISBLANK(FieldSampling16[[#This Row],[Sample Reference '# ('# required to enable calculations)]]),"",SUM(FieldSampling16[[#This Row],[La 57]:[Lu 71]])) ->  | CS89: =IF(ISBLANK(FieldSampling16[[#This Row],[Sample Reference '# ('# required to enable calculations)]]),"", SUM(FieldSampling16[Lanthanides]+FieldSampling16[Y 39])) -> 
CR90: =IF(ISBLANK(FieldSampling16[[#This Row],[Sample Reference '# ('# required to enable calculations)]]),"",SUM(FieldSampling16[[#This Row],[La 57]:[Lu 71]])) ->  | CS90: =IF(ISBLANK(FieldSampling16[[#This Row],[Sample Reference '# ('# required to enable calculations)]]),"", SUM(FieldSampling16[Lanthanides]+FieldSampling16[Y 39])) -> 
CR91: =IF(ISBLANK(FieldSampling16[[#This Row],[Sample Reference '# ('# required to enable calculations)]]),"",SUM(FieldSampling16[[#This Row],[La 57]:[Lu 71]])) ->  | CS91: =IF(ISBLANK(FieldSampling16[[#This Row],[Sample Reference '# ('# required to enable calculations)]]),"", SUM(FieldSampling16[Lanthanides]+FieldSampling16[Y 39])) -> 
CR92: =IF(ISBLANK(FieldSampling16[[#This Row],[Sample Reference '# ('# required to enable calculations)]]),"",SUM(FieldSampling16[[#This Row],[La 57]:[Lu 71]])) ->  | CS92: =IF(ISBLANK(FieldSampling16[[#This Row],[Sample Reference '# ('# required to enable calculations)]]),"", SUM(FieldSampling16[Lanthanides]+FieldSampling16[Y 39])) -> 
CR93: =IF(ISBLANK(FieldSampling16[[#This Row],[Sample Reference '# ('# required to enable calculations)]]),"",SUM(FieldSampling16[[#This Row],[La 57]:[Lu 71]])) ->  | CS93: =IF(ISBLANK(FieldSampling16[[#This Row],[Sample Reference '# ('# required to enable calculations)]]),"", SUM(FieldSampling16[Lanthanides]+FieldSampling16[Y 39])) -> 
CR94: =IF(ISBLANK(FieldSampling16[[#This Row],[Sample Reference '# ('# required to enable calculations)]]),"",SUM(FieldSampling16[[#This Row],[La 57]:[Lu 71]])) ->  | CS94: =IF(ISBLANK(FieldSampling16[[#This Row],[Sample Reference '# ('# required to enable calculations)]]),"", SUM(FieldSampling16[Lanthanides]+FieldSampling16[Y 39])) -> 
CR95: =IF(ISBLANK(FieldSampling16[[#This Row],[Sample Reference '# ('# required to enable calculations)]]),"",SUM(FieldSampling16[[#This Row],[La 57]:[Lu 71]])) ->  | CS95: =IF(ISBLANK(FieldSampling16[[#This Row],[Sample Reference '# ('# required to enable calculations)]]),"", SUM(FieldSampling16[Lanthanides]+FieldSampling16[Y 39])) -> 
CR96: =IF(ISBLANK(FieldSampling16[[#This Row],[Sample Reference '# ('# required to enable calculations)]]),"",SUM(FieldSampling16[[#This Row],[La 57]:[Lu 71]])) ->  | CS96: =IF(ISBLANK(FieldSampling16[[#This Row],[Sample Reference '# ('# required to enable calculations)]]),"", SUM(FieldSampling16[Lanthanides]+FieldSampling16[Y 39])) -> 
CR97: =IF(ISBLANK(FieldSampling16[[#This Row],[Sample Reference '# ('# required to enable calculations)]]),"",SUM(FieldSampling16[[#This Row],[La 57]:[Lu 71]])) ->  | CS97: =IF(ISBLANK(FieldSampling16[[#This Row],[Sample Reference '# ('# required to enable calculations)]]),"", SUM(FieldSampling16[Lanthanides]+FieldSampling16[Y 39])) -> 
CR98: =IF(ISBLANK(FieldSampling16[[#This Row],[Sample Reference '# ('# required to enable calculations)]]),"",SUM(FieldSampling16[[#This Row],[La 57]:[Lu 71]])) ->  | CS98: =IF(ISBLANK(FieldSampling16[[#This Row],[Sample Reference '# ('# required to enable calculations)]]),"", SUM(FieldSampling16[Lanthanides]+FieldSampling16[Y 39])) -> 
CR99: =IF(ISBLANK(FieldSampling16[[#This Row],[Sample Reference '# ('# required to enable calculations)]]),"",SUM(FieldSampling16[[#This Row],[La 57]:[Lu 71]])) ->  | CS99: =IF(ISBLANK(FieldSampling16[[#This Row],[Sample Reference '# ('# required to enable calculations)]]),"", SUM(FieldSampling16[Lanthanides]+FieldSampling16[Y 39])) -> 
CR100: =IF(ISBLANK(FieldSampling16[[#This Row],[Sample Reference '# ('# required to enable calculations)]]),"",SUM(FieldSampling16[[#This Row],[La 57]:[Lu 71]])) ->  | CS100: =IF(ISBLANK(FieldSampling16[[#This Row],[Sample Reference '# ('# required to enable calculations)]]),"", SUM(FieldSampling16[Lanthanides]+FieldSampling16[Y 39])) -> 
CR101: =IF(ISBLANK(FieldSampling16[[#This Row],[Sample Reference '# ('# required to enable calculations)]]),"",SUM(FieldSampling16[[#This Row],[La 57]:[Lu 71]])) ->  | CS101: =IF(ISBLANK(FieldSampling16[[#This Row],[Sample Reference '# ('# required to enable calculations)]]),"", SUM(FieldSampling16[Lanthanides]+FieldSampling16[Y 39])) -> 
CR102: =IF(ISBLANK(FieldSampling16[[#This Row],[Sample Reference '# ('# required to enable calculations)]]),"",SUM(FieldSampling16[[#This Row],[La 57]:[Lu 71]])) ->  | CS102: =IF(ISBLANK(FieldSampling16[[#This Row],[Sample Reference '# ('# required to enable calculations)]]),"", SUM(FieldSampling16[Lanthanides]+FieldSampling16[Y 39])) -> 
CR103: =IF(ISBLANK(FieldSampling16[[#This Row],[Sample Reference '# ('# required to enable calculations)]]),"",SUM(FieldSampling16[[#This Row],[La 57]:[Lu 71]])) ->  | CS103: =IF(ISBLANK(FieldSampling16[[#This Row],[Sample Reference '# ('# required to enable calculations)]]),"", SUM(FieldSampling16[Lanthanides]+FieldSampling16[Y 39])) -> 
CR104: =IF(ISBLANK(FieldSampling16[[#This Row],[Sample Reference '# ('# required to enable calculations)]]),"",SUM(FieldSampling16[[#This Row],[La 57]:[Lu 71]])) ->  | CS104: =IF(ISBLANK(FieldSampling16[[#This Row],[Sample Reference '# ('# required to enable calculations)]]),"", SUM(FieldSampling16[Lanthanides]+FieldSampling16[Y 39])) -> 
CR105: =IF(ISBLANK(FieldSampling16[[#This Row],[Sample Reference '# ('# required to enable calculations)]]),"",SUM(FieldSampling16[[#This Row],[La 57]:[Lu 71]])) ->  | CS105: =IF(ISBLANK(FieldSampling16[[#This Row],[Sample Reference '# ('# required to enable calculations)]]),"", SUM(FieldSampling16[Lanthanides]+FieldSampling16[Y 39])) -> 
CR106: =IF(ISBLANK(FieldSampling16[[#This Row],[Sample Reference '# ('# required to enable calculations)]]),"",SUM(FieldSampling16[[#This Row],[La 57]:[Lu 71]])) ->  | CS106: =IF(ISBLANK(FieldSampling16[[#This Row],[Sample Reference '# ('# required to enable calculations)]]),"", SUM(FieldSampling16[Lanthanides]+FieldSampling16[Y 39])) -> 
CR107: =IF(ISBLANK(FieldSampling16[[#This Row],[Sample Reference '# ('# required to enable calculations)]]),"",SUM(FieldSampling16[[#This Row],[La 57]:[Lu 71]])) ->  | CS107: =IF(ISBLANK(FieldSampling16[[#This Row],[Sample Reference '# ('# required to enable calculations)]]),"", SUM(FieldSampling16[Lanthanides]+FieldSampling16[Y 39])) -> 
CR108: =IF(ISBLANK(FieldSampling16[[#This Row],[Sample Reference '# ('# required to enable calculations)]]),"",SUM(FieldSampling16[[#This Row],[La 57]:[Lu 71]])) ->  | CS108: =IF(ISBLANK(FieldSampling16[[#This Row],[Sample Reference '# ('# required to enable calculations)]]),"", SUM(FieldSampling16[Lanthanides]+FieldSampling16[Y 39])) -> 
CR109: =IF(ISBLANK(FieldSampling16[[#This Row],[Sample Reference '# ('# required to enable calculations)]]),"",SUM(FieldSampling16[[#This Row],[La 57]:[Lu 71]])) ->  | CS109: =IF(ISBLANK(FieldSampling16[[#This Row],[Sample Reference '# ('# required to enable calculations)]]),"", SUM(FieldSampling16[Lanthanides]+FieldSampling16[Y 39])) -> 
CR110: =IF(ISBLANK(FieldSampling16[[#This Row],[Sample Reference '# ('# required to enable calculations)]]),"",SUM(FieldSampling16[[#This Row],[La 57]:[Lu 71]])) ->  | CS110: =IF(ISBLANK(FieldSampling16[[#This Row],[Sample Reference '# ('# required to enable calculations)]]),"", SUM(FieldSampling16[Lanthanides]+FieldSampling16[Y 39])) -> 
CR111: =IF(ISBLANK(FieldSampling16[[#This Row],[Sample Reference '# ('# required to enable calculations)]]),"",SUM(FieldSampling16[[#This Row],[La 57]:[Lu 71]])) ->  | CS111: =IF(ISBLANK(FieldSampling16[[#This Row],[Sample Reference '# ('# required to enable calculations)]]),"", SUM(FieldSampling16[Lanthanides]+FieldSampling16[Y 39])) -> 
CR112: =IF(ISBLANK(FieldSampling16[[#This Row],[Sample Reference '# ('# required to enable calculations)]]),"",SUM(FieldSampling16[[#This Row],[La 57]:[Lu 71]])) ->  | CS112: =IF(ISBLANK(FieldSampling16[[#This Row],[Sample Reference '# ('# required to enable calculations)]]),"", SUM(FieldSampling16[Lanthanides]+FieldSampling16[Y 39])) -> 
CR113: =IF(ISBLANK(FieldSampling16[[#This Row],[Sample Reference '# ('# required to enable calculations)]]),"",SUM(FieldSampling16[[#This Row],[La 57]:[Lu 71]])) ->  | CS113: =IF(ISBLANK(FieldSampling16[[#This Row],[Sample Reference '# ('# required to enable calculations)]]),"", SUM(FieldSampling16[Lanthanides]+FieldSampling16[Y 39])) -> 
CR114: =IF(ISBLANK(FieldSampling16[[#This Row],[Sample Reference '# ('# required to enable calculations)]]),"",SUM(FieldSampling16[[#This Row],[La 57]:[Lu 71]])) ->  | CS114: =IF(ISBLANK(FieldSampling16[[#This Row],[Sample Reference '# ('# required to enable calculations)]]),"", SUM(FieldSampling16[Lanthanides]+FieldSampling16[Y 39])) -> 
CR115: =IF(ISBLANK(FieldSampling16[[#This Row],[Sample Reference '# ('# required to enable calculations)]]),"",SUM(FieldSampling16[[#This Row],[La 57]:[Lu 71]])) ->  | CS115: =IF(ISBLANK(FieldSampling16[[#This Row],[Sample Reference '# ('# required to enable calculations)]]),"", SUM(FieldSampling16[Lanthanides]+FieldSampling16[Y 39])) -> 
CR116: =IF(ISBLANK(FieldSampling16[[#This Row],[Sample Reference '# ('# required to enable calculations)]]),"",SUM(FieldSampling16[[#This Row],[La 57]:[Lu 71]])) ->  | CS116: =IF(ISBLANK(FieldSampling16[[#This Row],[Sample Reference '# ('# required to enable calculations)]]),"", SUM(FieldSampling16[Lanthanides]+FieldSampling16[Y 39])) -> 
CR117: =IF(ISBLANK(FieldSampling16[[#This Row],[Sample Reference '# ('# required to enable calculations)]]),"",SUM(FieldSampling16[[#This Row],[La 57]:[Lu 71]])) ->  | CS117: =IF(ISBLANK(FieldSampling16[[#This Row],[Sample Reference '# ('# required to enable calculations)]]),"", SUM(FieldSampling16[Lanthanides]+FieldSampling16[Y 39])) -> 
CR118: =IF(ISBLANK(FieldSampling16[[#This Row],[Sample Reference '# ('# required to enable calculations)]]),"",SUM(FieldSampling16[[#This Row],[La 57]:[Lu 71]])) ->  | CS118: =IF(ISBLANK(FieldSampling16[[#This Row],[Sample Reference '# ('# required to enable calculations)]]),"", SUM(FieldSampling16[Lanthanides]+FieldSampling16[Y 39])) -> 
CR119: =IF(ISBLANK(FieldSampling16[[#This Row],[Sample Reference '# ('# required to enable calculations)]]),"",SUM(FieldSampling16[[#This Row],[La 57]:[Lu 71]])) ->  | CS119: =IF(ISBLANK(FieldSampling16[[#This Row],[Sample Reference '# ('# required to enable calculations)]]),"", SUM(FieldSampling16[Lanthanides]+FieldSampling16[Y 39])) -> 
CR120: =IF(ISBLANK(FieldSampling16[[#This Row],[Sample Reference '# ('# required to enable calculations)]]),"",SUM(FieldSampling16[[#This Row],[La 57]:[Lu 71]])) ->  | CS120: =IF(ISBLANK(FieldSampling16[[#This Row],[Sample Reference '# ('# required to enable calculations)]]),"", SUM(FieldSampling16[Lanthanides]+FieldSampling16[Y 39])) -> 
CR121: =IF(ISBLANK(FieldSampling16[[#This Row],[Sample Reference '# ('# required to enable calculations)]]),"",SUM(FieldSampling16[[#This Row],[La 57]:[Lu 71]])) ->  | CS121: =IF(ISBLANK(FieldSampling16[[#This Row],[Sample Reference '# ('# required to enable calculations)]]),"", SUM(FieldSampling16[Lanthanides]+FieldSampling16[Y 39])) -> 
CR122: =IF(ISBLANK(FieldSampling16[[#This Row],[Sample Reference '# ('# required to enable calculations)]]),"",SUM(FieldSampling16[[#This Row],[La 57]:[Lu 71]])) ->  | CS122: =IF(ISBLANK(FieldSampling16[[#This Row],[Sample Reference '# ('# required to enable calculations)]]),"", SUM(FieldSampling16[Lanthanides]+FieldSampling16[Y 39])) -> 
CR123: =IF(ISBLANK(FieldSampling16[[#This Row],[Sample Reference '# ('# required to enable calculations)]]),"",SUM(FieldSampling16[[#This Row],[La 57]:[Lu 71]])) ->  | CS123: =IF(ISBLANK(FieldSampling16[[#This Row],[Sample Reference '# ('# required to enable calculations)]]),"", SUM(FieldSampling16[Lanthanides]+FieldSampling16[Y 39])) -> 
CR124: =IF(ISBLANK(FieldSampling16[[#This Row],[Sample Reference '# ('# required to enable calculations)]]),"",SUM(FieldSampling16[[#This Row],[La 57]:[Lu 71]])) ->  | CS124: =IF(ISBLANK(FieldSampling16[[#This Row],[Sample Reference '# ('# required to enable calculations)]]),"", SUM(FieldSampling16[Lanthanides]+FieldSampling16[Y 39])) -> 
CR125: =IF(ISBLANK(FieldSampling16[[#This Row],[Sample Reference '# ('# required to enable calculations)]]),"",SUM(FieldSampling16[[#This Row],[La 57]:[Lu 71]])) ->  | CS125: =IF(ISBLANK(FieldSampling16[[#This Row],[Sample Reference '# ('# required to enable calculations)]]),"", SUM(FieldSampling16[Lanthanides]+FieldSampling16[Y 39])) -> 
CR126: =IF(ISBLANK(FieldSampling16[[#This Row],[Sample Reference '# ('# required to enable calculations)]]),"",SUM(FieldSampling16[[#This Row],[La 57]:[Lu 71]])) ->  | CS126: =IF(ISBLANK(FieldSampling16[[#This Row],[Sample Reference '# ('# required to enable calculations)]]),"", SUM(FieldSampling16[Lanthanides]+FieldSampling16[Y 39])) -> 
CR127: =IF(ISBLANK(FieldSampling16[[#This Row],[Sample Reference '# ('# required to enable calculations)]]),"",SUM(FieldSampling16[[#This Row],[La 57]:[Lu 71]])) ->  | CS127: =IF(ISBLANK(FieldSampling16[[#This Row],[Sample Reference '# ('# required to enable calculations)]]),"", SUM(FieldSampling16[Lanthanides]+FieldSampling16[Y 39])) -> 
CR128: =IF(ISBLANK(FieldSampling16[[#This Row],[Sample Reference '# ('# required to enable calculations)]]),"",SUM(FieldSampling16[[#This Row],[La 57]:[Lu 71]])) ->  | CS128: =IF(ISBLANK(FieldSampling16[[#This Row],[Sample Reference '# ('# required to enable calculations)]]),"", SUM(FieldSampling16[Lanthanides]+FieldSampling16[Y 39])) -> 
CR129: =IF(ISBLANK(FieldSampling16[[#This Row],[Sample Reference '# ('# required to enable calculations)]]),"",SUM(FieldSampling16[[#This Row],[La 57]:[Lu 71]])) ->  | CS129: =IF(ISBLANK(FieldSampling16[[#This Row],[Sample Reference '# ('# required to enable calculations)]]),"", SUM(FieldSampling16[Lanthanides]+FieldSampling16[Y 39])) -> 
CR130: =IF(ISBLANK(FieldSampling16[[#This Row],[Sample Reference '# ('# required to enable calculations)]]),"",SUM(FieldSampling16[[#This Row],[La 57]:[Lu 71]])) ->  | CS130: =IF(ISBLANK(FieldSampling16[[#This Row],[Sample Reference '# ('# required to enable calculations)]]),"", SUM(FieldSampling16[Lanthanides]+FieldSampling16[Y 39])) -> 
CR131: =IF(ISBLANK(FieldSampling16[[#This Row],[Sample Reference '# ('# required to enable calculations)]]),"",SUM(FieldSampling16[[#This Row],[La 57]:[Lu 71]])) ->  | CS131: =IF(ISBLANK(FieldSampling16[[#This Row],[Sample Reference '# ('# required to enable calculations)]]),"", SUM(FieldSampling16[Lanthanides]+FieldSampling16[Y 39])) -> 
CR132: =IF(ISBLANK(FieldSampling16[[#This Row],[Sample Reference '# ('# required to enable calculations)]]),"",SUM(FieldSampling16[[#This Row],[La 57]:[Lu 71]])) ->  | CS132: =IF(ISBLANK(FieldSampling16[[#This Row],[Sample Reference '# ('# required to enable calculations)]]),"", SUM(FieldSampling16[Lanthanides]+FieldSampling16[Y 39])) -> 
CR133: =IF(ISBLANK(FieldSampling16[[#This Row],[Sample Reference '# ('# required to enable calculations)]]),"",SUM(FieldSampling16[[#This Row],[La 57]:[Lu 71]])) ->  | CS133: =IF(ISBLANK(FieldSampling16[[#This Row],[Sample Reference '# ('# required to enable calculations)]]),"", SUM(FieldSampling16[Lanthanides]+FieldSampling16[Y 39])) -> 
CR134: =IF(ISBLANK(FieldSampling16[[#This Row],[Sample Reference '# ('# required to enable calculations)]]),"",SUM(FieldSampling16[[#This Row],[La 57]:[Lu 71]])) ->  | CS134: =IF(ISBLANK(FieldSampling16[[#This Row],[Sample Reference '# ('# required to enable calculations)]]),"", SUM(FieldSampling16[Lanthanides]+FieldSampling16[Y 39])) -> 
CR135: =IF(ISBLANK(FieldSampling16[[#This Row],[Sample Reference '# ('# required to enable calculations)]]),"",SUM(FieldSampling16[[#This Row],[La 57]:[Lu 71]])) ->  | CS135: =IF(ISBLANK(FieldSampling16[[#This Row],[Sample Reference '# ('# required to enable calculations)]]),"", SUM(FieldSampling16[Lanthanides]+FieldSampling16[Y 39])) -> 
CR136: =IF(ISBLANK(FieldSampling16[[#This Row],[Sample Reference '# ('# required to enable calculations)]]),"",SUM(FieldSampling16[[#This Row],[La 57]:[Lu 71]])) ->  | CS136: =IF(ISBLANK(FieldSampling16[[#This Row],[Sample Reference '# ('# required to enable calculations)]]),"", SUM(FieldSampling16[Lanthanides]+FieldSampling16[Y 39])) -> 
CR137: =IF(ISBLANK(FieldSampling16[[#This Row],[Sample Reference '# ('# required to enable calculations)]]),"",SUM(FieldSampling16[[#This Row],[La 57]:[Lu 71]])) ->  | CS137: =IF(ISBLANK(FieldSampling16[[#This Row],[Sample Reference '# ('# required to enable calculations)]]),"", SUM(FieldSampling16[Lanthanides]+FieldSampling16[Y 39])) -> 
CR138: =IF(ISBLANK(FieldSampling16[[#This Row],[Sample Reference '# ('# required to enable calculations)]]),"",SUM(FieldSampling16[[#This Row],[La 57]:[Lu 71]])) ->  | CS138: =IF(ISBLANK(FieldSampling16[[#This Row],[Sample Reference '# ('# required to enable calculations)]]),"", SUM(FieldSampling16[Lanthanides]+FieldSampling16[Y 39])) -> 
CR139: =IF(ISBLANK(FieldSampling16[[#This Row],[Sample Reference '# ('# required to enable calculations)]]),"",SUM(FieldSampling16[[#This Row],[La 57]:[Lu 71]])) ->  | CS139: =IF(ISBLANK(FieldSampling16[[#This Row],[Sample Reference '# ('# required to enable calculations)]]),"", SUM(FieldSampling16[Lanthanides]+FieldSampling16[Y 39])) -> 
CR140: =IF(ISBLANK(FieldSampling16[[#This Row],[Sample Reference '# ('# required to enable calculations)]]),"",SUM(FieldSampling16[[#This Row],[La 57]:[Lu 71]])) ->  | CS140: =IF(ISBLANK(FieldSampling16[[#This Row],[Sample Reference '# ('# required to enable calculations)]]),"", SUM(FieldSampling16[Lanthanides]+FieldSampling16[Y 39])) -> 
CR141: =IF(ISBLANK(FieldSampling16[[#This Row],[Sample Reference '# ('# required to enable calculations)]]),"",SUM(FieldSampling16[[#This Row],[La 57]:[Lu 71]])) ->  | CS141: =IF(ISBLANK(FieldSampling16[[#This Row],[Sample Reference '# ('# required to enable calculations)]]),"", SUM(FieldSampling16[Lanthanides]+FieldSampling16[Y 39])) -> 
CR142: =IF(ISBLANK(FieldSampling16[[#This Row],[Sample Reference '# ('# required to enable calculations)]]),"",SUM(FieldSampling16[[#This Row],[La 57]:[Lu 71]])) ->  | CS142: =IF(ISBLANK(FieldSampling16[[#This Row],[Sample Reference '# ('# required to enable calculations)]]),"", SUM(FieldSampling16[Lanthanides]+FieldSampling16[Y 39])) -> 
CR143: =IF(ISBLANK(FieldSampling16[[#This Row],[Sample Reference '# ('# required to enable calculations)]]),"",SUM(FieldSampling16[[#This Row],[La 57]:[Lu 71]])) ->  | CS143: =IF(ISBLANK(FieldSampling16[[#This Row],[Sample Reference '# ('# required to enable calculations)]]),"", SUM(FieldSampling16[Lanthanides]+FieldSampling16[Y 39])) -> 
CR144: =IF(ISBLANK(FieldSampling16[[#This Row],[Sample Reference '# ('# required to enable calculations)]]),"",SUM(FieldSampling16[[#This Row],[La 57]:[Lu 71]])) ->  | CS144: =IF(ISBLANK(FieldSampling16[[#This Row],[Sample Reference '# ('# required to enable calculations)]]),"", SUM(FieldSampling16[Lanthanides]+FieldSampling16[Y 39])) -> 
CR145: =IF(ISBLANK(FieldSampling16[[#This Row],[Sample Reference '# ('# required to enable calculations)]]),"",SUM(FieldSampling16[[#This Row],[La 57]:[Lu 71]])) ->  | CS145: =IF(ISBLANK(FieldSampling16[[#This Row],[Sample Reference '# ('# required to enable calculations)]]),"", SUM(FieldSampling16[Lanthanides]+FieldSampling16[Y 39])) -> 
CR146: =IF(ISBLANK(FieldSampling16[[#This Row],[Sample Reference '# ('# required to enable calculations)]]),"",SUM(FieldSampling16[[#This Row],[La 57]:[Lu 71]])) ->  | CS146: =IF(ISBLANK(FieldSampling16[[#This Row],[Sample Reference '# ('# required to enable calculations)]]),"", SUM(FieldSampling16[Lanthanides]+FieldSampling16[Y 39])) -> 
CR147: =IF(ISBLANK(FieldSampling16[[#This Row],[Sample Reference '# ('# required to enable calculations)]]),"",SUM(FieldSampling16[[#This Row],[La 57]:[Lu 71]])) ->  | CS147: =IF(ISBLANK(FieldSampling16[[#This Row],[Sample Reference '# ('# required to enable calculations)]]),"", SUM(FieldSampling16[Lanthanides]+FieldSampling16[Y 39])) -> 
CR148: =IF(ISBLANK(FieldSampling16[[#This Row],[Sample Reference '# ('# required to enable calculations)]]),"",SUM(FieldSampling16[[#This Row],[La 57]:[Lu 71]])) ->  | CS148: =IF(ISBLANK(FieldSampling16[[#This Row],[Sample Reference '# ('# required to enable calculations)]]),"", SUM(FieldSampling16[Lanthanides]+FieldSampling16[Y 39])) -> 
CR149: =IF(ISBLANK(FieldSampling16[[#This Row],[Sample Reference '# ('# required to enable calculations)]]),"",SUM(FieldSampling16[[#This Row],[La 57]:[Lu 71]])) ->  | CS149: =IF(ISBLANK(FieldSampling16[[#This Row],[Sample Reference '# ('# required to enable calculations)]]),"", SUM(FieldSampling16[Lanthanides]+FieldSampling16[Y 39])) -> 
CR150: =IF(ISBLANK(FieldSampling16[[#This Row],[Sample Reference '# ('# required to enable calculations)]]),"",SUM(FieldSampling16[[#This Row],[La 57]:[Lu 71]])) ->  | CS150: =IF(ISBLANK(FieldSampling16[[#This Row],[Sample Reference '# ('# required to enable calculations)]]),"", SUM(FieldSampling16[Lanthanides]+FieldSampling16[Y 39])) -> 
CR151: =IF(ISBLANK(FieldSampling16[[#This Row],[Sample Reference '# ('# required to enable calculations)]]),"",SUM(FieldSampling16[[#This Row],[La 57]:[Lu 71]])) ->  | CS151: =IF(ISBLANK(FieldSampling16[[#This Row],[Sample Reference '# ('# required to enable calculations)]]),"", SUM(FieldSampling16[Lanthanides]+FieldSampling16[Y 39])) -> 
CR152: =IF(ISBLANK(FieldSampling16[[#This Row],[Sample Reference '# ('# required to enable calculations)]]),"",SUM(FieldSampling16[[#This Row],[La 57]:[Lu 71]])) ->  | CS152: =IF(ISBLANK(FieldSampling16[[#This Row],[Sample Reference '# ('# required to enable calculations)]]),"", SUM(FieldSampling16[Lanthanides]+FieldSampling16[Y 39])) -> 
CR153: =IF(ISBLANK(FieldSampling16[[#This Row],[Sample Reference '# ('# required to enable calculations)]]),"",SUM(FieldSampling16[[#This Row],[La 57]:[Lu 71]])) ->  | CS153: =IF(ISBLANK(FieldSampling16[[#This Row],[Sample Reference '# ('# required to enable calculations)]]),"", SUM(FieldSampling16[Lanthanides]+FieldSampling16[Y 39])) -> 
CR154: =IF(ISBLANK(FieldSampling16[[#This Row],[Sample Reference '# ('# required to enable calculations)]]),"",SUM(FieldSampling16[[#This Row],[La 57]:[Lu 71]])) ->  | CS154: =IF(ISBLANK(FieldSampling16[[#This Row],[Sample Reference '# ('# required to enable calculations)]]),"", SUM(FieldSampling16[Lanthanides]+FieldSampling16[Y 39])) -> 
CR155: =IF(ISBLANK(FieldSampling16[[#This Row],[Sample Reference '# ('# required to enable calculations)]]),"",SUM(FieldSampling16[[#This Row],[La 57]:[Lu 71]])) ->  | CS155: =IF(ISBLANK(FieldSampling16[[#This Row],[Sample Reference '# ('# required to enable calculations)]]),"", SUM(FieldSampling16[Lanthanides]+FieldSampling16[Y 39])) -> 
CR156: =IF(ISBLANK(FieldSampling16[[#This Row],[Sample Reference '# ('# required to enable calculations)]]),"",SUM(FieldSampling16[[#This Row],[La 57]:[Lu 71]])) ->  | CS156: =IF(ISBLANK(FieldSampling16[[#This Row],[Sample Reference '# ('# required to enable calculations)]]),"", SUM(FieldSampling16[Lanthanides]+FieldSampling16[Y 39])) -> 
CR157: =IF(ISBLANK(FieldSampling16[[#This Row],[Sample Reference '# ('# required to enable calculations)]]),"",SUM(FieldSampling16[[#This Row],[La 57]:[Lu 71]])) ->  | CS157: =IF(ISBLANK(FieldSampling16[[#This Row],[Sample Reference '# ('# required to enable calculations)]]),"", SUM(FieldSampling16[Lanthanides]+FieldSampling16[Y 39])) -> 
CR158: =IF(ISBLANK(FieldSampling16[[#This Row],[Sample Reference '# ('# required to enable calculations)]]),"",SUM(FieldSampling16[[#This Row],[La 57]:[Lu 71]])) ->  | CS158: =IF(ISBLANK(FieldSampling16[[#This Row],[Sample Reference '# ('# required to enable calculations)]]),"", SUM(FieldSampling16[Lanthanides]+FieldSampling16[Y 39])) -> 
CR159: =IF(ISBLANK(FieldSampling16[[#This Row],[Sample Reference '# ('# required to enable calculations)]]),"",SUM(FieldSampling16[[#This Row],[La 57]:[Lu 71]])) ->  | CS159: =IF(ISBLANK(FieldSampling16[[#This Row],[Sample Reference '# ('# required to enable calculations)]]),"", SUM(FieldSampling16[Lanthanides]+FieldSampling16[Y 39])) -> 
CR160: =IF(ISBLANK(FieldSampling16[[#This Row],[Sample Reference '# ('# required to enable calculations)]]),"",SUM(FieldSampling16[[#This Row],[La 57]:[Lu 71]])) ->  | CS160: =IF(ISBLANK(FieldSampling16[[#This Row],[Sample Reference '# ('# required to enable calculations)]]),"", SUM(FieldSampling16[Lanthanides]+FieldSampling16[Y 39])) -> 
CR161: =IF(ISBLANK(FieldSampling16[[#This Row],[Sample Reference '# ('# required to enable calculations)]]),"",SUM(FieldSampling16[[#This Row],[La 57]:[Lu 71]])) ->  | CS161: =IF(ISBLANK(FieldSampling16[[#This Row],[Sample Reference '# ('# required to enable calculations)]]),"", SUM(FieldSampling16[Lanthanides]+FieldSampling16[Y 39])) -> 
CR162: =IF(ISBLANK(FieldSampling16[[#This Row],[Sample Reference '# ('# required to enable calculations)]]),"",SUM(FieldSampling16[[#This Row],[La 57]:[Lu 71]])) ->  | CS162: =IF(ISBLANK(FieldSampling16[[#This Row],[Sample Reference '# ('# required to enable calculations)]]),"", SUM(FieldSampling16[Lanthanides]+FieldSampling16[Y 39])) -> 
CR163: =IF(ISBLANK(FieldSampling16[[#This Row],[Sample Reference '# ('# required to enable calculations)]]),"",SUM(FieldSampling16[[#This Row],[La 57]:[Lu 71]])) ->  | CS163: =IF(ISBLANK(FieldSampling16[[#This Row],[Sample Reference '# ('# required to enable calculations)]]),"", SUM(FieldSampling16[Lanthanides]+FieldSampling16[Y 39])) -> 
CR164: =IF(ISBLANK(FieldSampling16[[#This Row],[Sample Reference '# ('# required to enable calculations)]]),"",SUM(FieldSampling16[[#This Row],[La 57]:[Lu 71]])) ->  | CS164: =IF(ISBLANK(FieldSampling16[[#This Row],[Sample Reference '# ('# required to enable calculations)]]),"", SUM(FieldSampling16[Lanthanides]+FieldSampling16[Y 39])) -> 
CR165: =IF(ISBLANK(FieldSampling16[[#This Row],[Sample Reference '# ('# required to enable calculations)]]),"",SUM(FieldSampling16[[#This Row],[La 57]:[Lu 71]])) ->  | CS165: =IF(ISBLANK(FieldSampling16[[#This Row],[Sample Reference '# ('# required to enable calculations)]]),"", SUM(FieldSampling16[Lanthanides]+FieldSampling16[Y 39])) -> 
CR166: =IF(ISBLANK(FieldSampling16[[#This Row],[Sample Reference '# ('# required to enable calculations)]]),"",SUM(FieldSampling16[[#This Row],[La 57]:[Lu 71]])) ->  | CS166: =IF(ISBLANK(FieldSampling16[[#This Row],[Sample Reference '# ('# required to enable calculations)]]),"", SUM(FieldSampling16[Lanthanides]+FieldSampling16[Y 39])) -> 
CR167: =IF(ISBLANK(FieldSampling16[[#This Row],[Sample Reference '# ('# required to enable calculations)]]),"",SUM(FieldSampling16[[#This Row],[La 57]:[Lu 71]])) ->  | CS167: =IF(ISBLANK(FieldSampling16[[#This Row],[Sample Reference '# ('# required to enable calculations)]]),"", SUM(FieldSampling16[Lanthanides]+FieldSampling16[Y 39])) -> 
CR168: =IF(ISBLANK(FieldSampling16[[#This Row],[Sample Reference '# ('# required to enable calculations)]]),"",SUM(FieldSampling16[[#This Row],[La 57]:[Lu 71]])) ->  | CS168: =IF(ISBLANK(FieldSampling16[[#This Row],[Sample Reference '# ('# required to enable calculations)]]),"", SUM(FieldSampling16[Lanthanides]+FieldSampling16[Y 39])) -> 
CR169: =IF(ISBLANK(FieldSampling16[[#This Row],[Sample Reference '# ('# required to enable calculations)]]),"",SUM(FieldSampling16[[#This Row],[La 57]:[Lu 71]])) ->  | CS169: =IF(ISBLANK(FieldSampling16[[#This Row],[Sample Reference '# ('# required to enable calculations)]]),"", SUM(FieldSampling16[Lanthanides]+FieldSampling16[Y 39])) -> 
CR170: =IF(ISBLANK(FieldSampling16[[#This Row],[Sample Reference '# ('# required to enable calculations)]]),"",SUM(FieldSampling16[[#This Row],[La 57]:[Lu 71]])) ->  | CS170: =IF(ISBLANK(FieldSampling16[[#This Row],[Sample Reference '# ('# required to enable calculations)]]),"", SUM(FieldSampling16[Lanthanides]+FieldSampling16[Y 39])) -> 
CR171: =IF(ISBLANK(FieldSampling16[[#This Row],[Sample Reference '# ('# required to enable calculations)]]),"",SUM(FieldSampling16[[#This Row],[La 57]:[Lu 71]])) ->  | CS171: =IF(ISBLANK(FieldSampling16[[#This Row],[Sample Reference '# ('# required to enable calculations)]]),"", SUM(FieldSampling16[Lanthanides]+FieldSampling16[Y 39])) -> 
CR172: =IF(ISBLANK(FieldSampling16[[#This Row],[Sample Reference '# ('# required to enable calculations)]]),"",SUM(FieldSampling16[[#This Row],[La 57]:[Lu 71]])) ->  | CS172: =IF(ISBLANK(FieldSampling16[[#This Row],[Sample Reference '# ('# required to enable calculations)]]),"", SUM(FieldSampling16[Lanthanides]+FieldSampling16[Y 39])) -> 
CR173: =IF(ISBLANK(FieldSampling16[[#This Row],[Sample Reference '# ('# required to enable calculations)]]),"",SUM(FieldSampling16[[#This Row],[La 57]:[Lu 71]])) ->  | CS173: =IF(ISBLANK(FieldSampling16[[#This Row],[Sample Reference '# ('# required to enable calculations)]]),"", SUM(FieldSampling16[Lanthanides]+FieldSampling16[Y 39])) -> 
CR174: =IF(ISBLANK(FieldSampling16[[#This Row],[Sample Reference '# ('# required to enable calculations)]]),"",SUM(FieldSampling16[[#This Row],[La 57]:[Lu 71]])) ->  | CS174: =IF(ISBLANK(FieldSampling16[[#This Row],[Sample Reference '# ('# required to enable calculations)]]),"", SUM(FieldSampling16[Lanthanides]+FieldSampling16[Y 39])) -> 
CR175: =IF(ISBLANK(FieldSampling16[[#This Row],[Sample Reference '# ('# required to enable calculations)]]),"",SUM(FieldSampling16[[#This Row],[La 57]:[Lu 71]])) ->  | CS175: =IF(ISBLANK(FieldSampling16[[#This Row],[Sample Reference '# ('# required to enable calculations)]]),"", SUM(FieldSampling16[Lanthanides]+FieldSampling16[Y 39])) -> 
CR176: =IF(ISBLANK(FieldSampling16[[#This Row],[Sample Reference '# ('# required to enable calculations)]]),"",SUM(FieldSampling16[[#This Row],[La 57]:[Lu 71]])) ->  | CS176: =IF(ISBLANK(FieldSampling16[[#This Row],[Sample Reference '# ('# required to enable calculations)]]),"", SUM(FieldSampling16[Lanthanides]+FieldSampling16[Y 39])) -> 
CR177: =IF(ISBLANK(FieldSampling16[[#This Row],[Sample Reference '# ('# required to enable calculations)]]),"",SUM(FieldSampling16[[#This Row],[La 57]:[Lu 71]])) ->  | CS177: =IF(ISBLANK(FieldSampling16[[#This Row],[Sample Reference '# ('# required to enable calculations)]]),"", SUM(FieldSampling16[Lanthanides]+FieldSampling16[Y 39])) -> 
CR178: =IF(ISBLANK(FieldSampling16[[#This Row],[Sample Reference '# ('# required to enable calculations)]]),"",SUM(FieldSampling16[[#This Row],[La 57]:[Lu 71]])) ->  | CS178: =IF(ISBLANK(FieldSampling16[[#This Row],[Sample Reference '# ('# required to enable calculations)]]),"", SUM(FieldSampling16[Lanthanides]+FieldSampling16[Y 39])) -> 
CR179: =IF(ISBLANK(FieldSampling16[[#This Row],[Sample Reference '# ('# required to enable calculations)]]),"",SUM(FieldSampling16[[#This Row],[La 57]:[Lu 71]])) ->  | CS179: =IF(ISBLANK(FieldSampling16[[#This Row],[Sample Reference '# ('# required to enable calculations)]]),"", SUM(FieldSampling16[Lanthanides]+FieldSampling16[Y 39])) -> 
CR180: =IF(ISBLANK(FieldSampling16[[#This Row],[Sample Reference '# ('# required to enable calculations)]]),"",SUM(FieldSampling16[[#This Row],[La 57]:[Lu 71]])) ->  | CS180: =IF(ISBLANK(FieldSampling16[[#This Row],[Sample Reference '# ('# required to enable calculations)]]),"", SUM(FieldSampling16[Lanthanides]+FieldSampling16[Y 39])) -> 
CR181: =IF(ISBLANK(FieldSampling16[[#This Row],[Sample Reference '# ('# required to enable calculations)]]),"",SUM(FieldSampling16[[#This Row],[La 57]:[Lu 71]])) ->  | CS181: =IF(ISBLANK(FieldSampling16[[#This Row],[Sample Reference '# ('# required to enable calculations)]]),"", SUM(FieldSampling16[Lanthanides]+FieldSampling16[Y 39])) -> 
CR182: =IF(ISBLANK(FieldSampling16[[#This Row],[Sample Reference '# ('# required to enable calculations)]]),"",SUM(FieldSampling16[[#This Row],[La 57]:[Lu 71]])) ->  | CS182: =IF(ISBLANK(FieldSampling16[[#This Row],[Sample Reference '# ('# required to enable calculations)]]),"", SUM(FieldSampling16[Lanthanides]+FieldSampling16[Y 39])) -> 
CR183: =IF(ISBLANK(FieldSampling16[[#This Row],[Sample Reference '# ('# required to enable calculations)]]),"",SUM(FieldSampling16[[#This Row],[La 57]:[Lu 71]])) ->  | CS183: =IF(ISBLANK(FieldSampling16[[#This Row],[Sample Reference '# ('# required to enable calculations)]]),"", SUM(FieldSampling16[Lanthanides]+FieldSampling16[Y 39])) -> 
CR184: =IF(ISBLANK(FieldSampling16[[#This Row],[Sample Reference '# ('# required to enable calculations)]]),"",SUM(FieldSampling16[[#This Row],[La 57]:[Lu 71]])) ->  | CS184: =IF(ISBLANK(FieldSampling16[[#This Row],[Sample Reference '# ('# required to enable calculations)]]),"", SUM(FieldSampling16[Lanthanides]+FieldSampling16[Y 39])) -> 
CR185: =IF(ISBLANK(FieldSampling16[[#This Row],[Sample Reference '# ('# required to enable calculations)]]),"",SUM(FieldSampling16[[#This Row],[La 57]:[Lu 71]])) ->  | CS185: =IF(ISBLANK(FieldSampling16[[#This Row],[Sample Reference '# ('# required to enable calculations)]]),"", SUM(FieldSampling16[Lanthanides]+FieldSampling16[Y 39])) -> 
CR186: =IF(ISBLANK(FieldSampling16[[#This Row],[Sample Reference '# ('# required to enable calculations)]]),"",SUM(FieldSampling16[[#This Row],[La 57]:[Lu 71]])) ->  | CS186: =IF(ISBLANK(FieldSampling16[[#This Row],[Sample Reference '# ('# required to enable calculations)]]),"", SUM(FieldSampling16[Lanthanides]+FieldSampling16[Y 39])) -> 
CR187: =IF(ISBLANK(FieldSampling16[[#This Row],[Sample Reference '# ('# required to enable calculations)]]),"",SUM(FieldSampling16[[#This Row],[La 57]:[Lu 71]])) ->  | CS187: =IF(ISBLANK(FieldSampling16[[#This Row],[Sample Reference '# ('# required to enable calculations)]]),"", SUM(FieldSampling16[Lanthanides]+FieldSampling16[Y 39])) -> 
CR188: =IF(ISBLANK(FieldSampling16[[#This Row],[Sample Reference '# ('# required to enable calculations)]]),"",SUM(FieldSampling16[[#This Row],[La 57]:[Lu 71]])) ->  | CS188: =IF(ISBLANK(FieldSampling16[[#This Row],[Sample Reference '# ('# required to enable calculations)]]),"", SUM(FieldSampling16[Lanthanides]+FieldSampling16[Y 39])) -> 
CR189: =IF(ISBLANK(FieldSampling16[[#This Row],[Sample Reference '# ('# required to enable calculations)]]),"",SUM(FieldSampling16[[#This Row],[La 57]:[Lu 71]])) ->  | CS189: =IF(ISBLANK(FieldSampling16[[#This Row],[Sample Reference '# ('# required to enable calculations)]]),"", SUM(FieldSampling16[Lanthanides]+FieldSampling16[Y 39])) -> 
CR190: =IF(ISBLANK(FieldSampling16[[#This Row],[Sample Reference '# ('# required to enable calculations)]]),"",SUM(FieldSampling16[[#This Row],[La 57]:[Lu 71]])) ->  | CS190: =IF(ISBLANK(FieldSampling16[[#This Row],[Sample Reference '# ('# required to enable calculations)]]),"", SUM(FieldSampling16[Lanthanides]+FieldSampling16[Y 39])) -> 
CR191: =IF(ISBLANK(FieldSampling16[[#This Row],[Sample Reference '# ('# required to enable calculations)]]),"",SUM(FieldSampling16[[#This Row],[La 57]:[Lu 71]])) ->  | CS191: =IF(ISBLANK(FieldSampling16[[#This Row],[Sample Reference '# ('# required to enable calculations)]]),"", SUM(FieldSampling16[Lanthanides]+FieldSampling16[Y 39])) -> 
CR192: =IF(ISBLANK(FieldSampling16[[#This Row],[Sample Reference '# ('# required to enable calculations)]]),"",SUM(FieldSampling16[[#This Row],[La 57]:[Lu 71]])) ->  | CS192: =IF(ISBLANK(FieldSampling16[[#This Row],[Sample Reference '# ('# required to enable calculations)]]),"", SUM(FieldSampling16[Lanthanides]+FieldSampling16[Y 39])) -> 
CR193: =IF(ISBLANK(FieldSampling16[[#This Row],[Sample Reference '# ('# required to enable calculations)]]),"",SUM(FieldSampling16[[#This Row],[La 57]:[Lu 71]])) ->  | CS193: =IF(ISBLANK(FieldSampling16[[#This Row],[Sample Reference '# ('# required to enable calculations)]]),"", SUM(FieldSampling16[Lanthanides]+FieldSampling16[Y 39])) -> 
CR194: =IF(ISBLANK(FieldSampling16[[#This Row],[Sample Reference '# ('# required to enable calculations)]]),"",SUM(FieldSampling16[[#This Row],[La 57]:[Lu 71]])) ->  | CS194: =IF(ISBLANK(FieldSampling16[[#This Row],[Sample Reference '# ('# required to enable calculations)]]),"", SUM(FieldSampling16[Lanthanides]+FieldSampling16[Y 39])) -> 
CR195: =IF(ISBLANK(FieldSampling16[[#This Row],[Sample Reference '# ('# required to enable calculations)]]),"",SUM(FieldSampling16[[#This Row],[La 57]:[Lu 71]])) ->  | CS195: =IF(ISBLANK(FieldSampling16[[#This Row],[Sample Reference '# ('# required to enable calculations)]]),"", SUM(FieldSampling16[Lanthanides]+FieldSampling16[Y 39])) -> 
CR196: =IF(ISBLANK(FieldSampling16[[#This Row],[Sample Reference '# ('# required to enable calculations)]]),"",SUM(FieldSampling16[[#This Row],[La 57]:[Lu 71]])) ->  | CS196: =IF(ISBLANK(FieldSampling16[[#This Row],[Sample Reference '# ('# required to enable calculations)]]),"", SUM(FieldSampling16[Lanthanides]+FieldSampling16[Y 39])) -> 
CR197: =IF(ISBLANK(FieldSampling16[[#This Row],[Sample Reference '# ('# required to enable calculations)]]),"",SUM(FieldSampling16[[#This Row],[La 57]:[Lu 71]])) ->  | CS197: =IF(ISBLANK(FieldSampling16[[#This Row],[Sample Reference '# ('# required to enable calculations)]]),"", SUM(FieldSampling16[Lanthanides]+FieldSampling16[Y 39])) -> 
CR198: =IF(ISBLANK(FieldSampling16[[#This Row],[Sample Reference '# ('# required to enable calculations)]]),"",SUM(FieldSampling16[[#This Row],[La 57]:[Lu 71]])) ->  | CS198: =IF(ISBLANK(FieldSampling16[[#This Row],[Sample Reference '# ('# required to enable calculations)]]),"", SUM(FieldSampling16[Lanthanides]+FieldSampling16[Y 39])) -> 
CR199: =IF(ISBLANK(FieldSampling16[[#This Row],[Sample Reference '# ('# required to enable calculations)]]),"",SUM(FieldSampling16[[#This Row],[La 57]:[Lu 71]])) ->  | CS199: =IF(ISBLANK(FieldSampling16[[#This Row],[Sample Reference '# ('# required to enable calculations)]]),"", SUM(FieldSampling16[Lanthanides]+FieldSampling16[Y 39])) -> 
CR200: =IF(ISBLANK(FieldSampling16[[#This Row],[Sample Reference '# ('# required to enable calculations)]]),"",SUM(FieldSampling16[[#This Row],[La 57]:[Lu 71]])) ->  | CS200: =IF(ISBLANK(FieldSampling16[[#This Row],[Sample Reference '# ('# required to enable calculations)]]),"", SUM(FieldSampling16[Lanthanides]+FieldSampling16[Y 39])) -> 
CR201: =IF(ISBLANK(FieldSampling16[[#This Row],[Sample Reference '# ('# required to enable calculations)]]),"",SUM(FieldSampling16[[#This Row],[La 57]:[Lu 71]])) ->  | CS201: =IF(ISBLANK(FieldSampling16[[#This Row],[Sample Reference '# ('# required to enable calculations)]]),"", SUM(FieldSampling16[Lanthanides]+FieldSampling16[Y 39])) -> 
CR202: =IF(ISBLANK(FieldSampling16[[#This Row],[Sample Reference '# ('# required to enable calculations)]]),"",SUM(FieldSampling16[[#This Row],[La 57]:[Lu 71]])) ->  | CS202: =IF(ISBLANK(FieldSampling16[[#This Row],[Sample Reference '# ('# required to enable calculations)]]),"", SUM(FieldSampling16[Lanthanides]+FieldSampling16[Y 39])) -> 
... 2048 more rows

Sheet Separation-Processing DMB
A1: Dry Mass Basis Process Separation Pathways Sampling
D4: Processing Sample Data Inputs | Z4: Primary Elementary Identification Technique | CI4: Secondary Elementary Identification (If measured) | DC4: XRD, Phase Identification (If measured) | DG4: SEM-EDX (If measured)
D5: Sample Reference # for Analyses on Sample Source | F5: Processing Sample Methodology Data | L5: Proximate Analysis (Wt%) | Q5: Ultimate Analysis (%) | V5: CHNS Analysis (%) | Z5: Analysis Description/Method | AC5: Elements (ppm) | BJ5: Lanthanides (ppm) | BX5: Other Metals (ppm) | CA5: Actinides (ppm) | CC5: Total REE and REE+Y Recovery | CI5: Analysis Description Method | CL5: Results (ppm)
A6: Sample Reference # (# required to enable calculations)) | B6: Sample Type | C6: Description | D6: Original Field Sample # | E6: Previous Upstream Sample Ref # | F6: Extractive Metallurgy Category | G6: Process Step Sequence | H6: Processing Method Description | I6: Size Fraction Analyzed (µm) | J6: % Moisture, As-Received | K6: %Ash, Dry | L6: Sulfur | M6: Moisture | N6: Volatile Matter | O6: Ash | P6: Fixed Carbon | Q6: Carbon | R6: Hydrogen | S6: Sulfur | T6: Oxygen | U6: Nitrogen | V6: Carbon2 | W6: H | X6: N | Y6: S | Z6: Digestion Method | AA6: Analytical Technique | AB6: Dry Mass Basis | AC6: Be 4 | AD6: Na 11 | AE6: Mg 12 | AF6: Al 13 | AG6: Si 14 | AH6: P 15 | AI6: K 19 | AJ6: Ca 20 | AK6: Sc 21 | AL6: Ti 22 | AM6: V 23 | AN6: Cr 24 | AO6: Mn 25 | AP6: Fe 26 | AQ6: Co 27 | AR6: Ni 28 | AS6: Cu 29 | AT6: Zn 30 | AU6: Ga 31 | AV6: Ge 32 | AW6: As 33 | AX6: Se 34 | AY6: Rb 37 | AZ6: Y 39 | BA6: Zr 40 | BB6: Nb 41 | BC6: Mo 42 | BD6: Ag 47 | BE6: Cd 48 | BF6: Sn 50 | BG6: Sb 51 | BH6: Cs 55 | BI6: Ba 56 | BJ6: La 57 | BK6: Ce 58 | BL6: Pr 59 | BM6: Nd 60 | BN6: Sm 62 | BO6: Eu 63 | BP6: Gd 64 | BQ6: Tb 65 | BR6: Dy 66 | BS6: Ho 67 | BT6: Er 68 | BU6: Tm 69 | BV6: Yb 70 | BW6: Lu 71 | BX6: Hf 72 | BY6: Tl 81 | BZ6: Pb 82 | CA6: Th 90 | CB6: U 92 | CC6: REE (ppm) | CD6: REE+Y (ppm) | CE6: Total % Recovery | CF6: Concentration Factor | CG6: % Recovery REE + Y | CH6: Notes | CI6: Secondary Analytical Technique | CJ6: Secondary Digestion Method | CK6: Dry Mass Basis2 | CL6: Al3 13 | CM6: Ca4 20 | CN6: Fe5 26 | CO6: K6 19 | CP6: Mg7 12 | CQ6: Na8 11 | CR6: P2 15 | CS6: Ti2 22 | CT6: SiO2* | CU6: Zr 402 | CV6: Sn 502 | CW6: Other6 | CX6: Other8 | CY6: Other9 | CZ6: Other10 | DA6: Other11 | DB6: Notes3 | DC6: Major Phases | DD6: Minor Phases | DE6: Trace Phases | DF6: Notes2 | DG6: Mineral/particle/crystal | DH6: Size | DI6: Mineral/particle/crystal2 | DJ6: Size3 | DK6: Mineral/particle/crystal3 | DL6: Size4 | DM6: Notes4
B7: Field sample | CC7: =IF(ISBLANK(Table111318[[#This Row],[Sample Reference '# ('# required to enable calculations))]]),"",SUM(Table111318[[#This Row],[La 57]:[Lu 71]])) ->  | CD7: =IF(ISBLANK(Table111318[[#This Row],[Sample Reference '# ('# required to enable calculations))]]),"", Table111318[[#This Row],[REE (ppm)]]+Table111318[[#This Row],[Y 39]]) ->  | CF7: =_xlfn.IFNA(IF(ISBLANK(Table111318[[#This Row],[Sample Reference '# ('# required to enable calculations))]]),"", IF(Table111318[[#This Row],[Dry Mass Basis]]="","Missing Basis", IF(VLOOKUP(Table111318[[#This Row],[Original Field Sample '#]],FieldSampling[],38,FALSE)="","Missing Basis",_xlfn.IFNA(IF((VLOOKUP(Table111318[[#This Row],[Original Field Sample '#]],FieldSampling[],38,FALSE))=Table111318[[#This Row],[Dry Mass Basis]],(Table111318[[#This Row],[REE+Y (ppm)]]/VLOOKUP(Table111318[[#This Row],[Original Field Sample '#]],FieldSampling[],97,FALSE)),"Basis Mismatch"),"")))),"Missing Original Sample") ->  | CG7: =IF(Table111318[[#This Row],[Concentration Factor]]= "Basis Mismatch", "Basis Mismatch", IF(Table111318[[#This Row],[Concentration Factor]]= "Missing Basis", "Missing Basis", IF((Table111318[[#This Row],[Concentration Factor]])="Basis Mismatch", "Basis Mismatch", IF((Table111318[[#This Row],[Concentration Factor]])="Missing Original Sample", "Missing Originial Sample", IF(ISBLANK(Table111318[[#This Row],[Sample Reference '# ('# required to enable calculations))]]),"", IF(ISBLANK(Table111318[[#This Row],[Total % Recovery]]),"Missing Total % Recovery", PRODUCT(Table111318[[#This Row],[Total % Recovery]],Table111318[[#This Row],[Concentration Factor]]))))))) -> 
B8: Field sample | CC8: =IF(ISBLANK(Table111318[[#This Row],[Sample Reference '# ('# required to enable calculations))]]),"",SUM(Table111318[[#This Row],[La 57]:[Lu 71]])) ->  | CD8: =IF(ISBLANK(Table111318[[#This Row],[Sample Reference '# ('# required to enable calculations))]]),"", Table111318[[#This Row],[REE (ppm)]]+Table111318[[#This Row],[Y 39]]) ->  | CF8: =_xlfn.IFNA(IF(ISBLANK(Table111318[[#This Row],[Sample Reference '# ('# required to enable calculations))]]),"", IF(Table111318[[#This Row],[Dry Mass Basis]]="","Missing Basis", IF(VLOOKUP(Table111318[[#This Row],[Original Field Sample '#]],FieldSampling[],38,FALSE)="","Missing Basis",_xlfn.IFNA(IF((VLOOKUP(Table111318[[#This Row],[Original Field Sample '#]],FieldSampling[],38,FALSE))=Table111318[[#This Row],[Dry Mass Basis]],(Table111318[[#This Row],[REE+Y (ppm)]]/VLOOKUP(Table111318[[#This Row],[Original Field Sample '#]],FieldSampling[],97,FALSE)),"Basis Mismatch"),"")))),"Missing Original Sample") ->  | CG8: =IF(Table111318[[#This Row],[Concentration Factor]]= "Basis Mismatch", "Basis Mismatch", IF(Table111318[[#This Row],[Concentration Factor]]= "Missing Basis", "Missing Basis", IF((Table111318[[#This Row],[Concentration Factor]])="Basis Mismatch", "Basis Mismatch", IF((Table111318[[#This Row],[Concentration Factor]])="Missing Original Sample", "Missing Originial Sample", IF(ISBLANK(Table111318[[#This Row],[Sample Reference '# ('# required to enable calculations))]]),"", IF(ISBLANK(Table111318[[#This Row],[Total % Recovery]]),"Missing Total % Recovery", PRODUCT(Table111318[[#This Row],[Total % Recovery]],Table111318[[#This Row],[Concentration Factor]]))))))) -> 
B9: Field sample | CC9: =IF(ISBLANK(Table111318[[#This Row],[Sample Reference '# ('# required to enable calculations))]]),"",SUM(Table111318[[#This Row],[La 57]:[Lu 71]])) ->  | CD9: =IF(ISBLANK(Table111318[[#This Row],[Sample Reference '# ('# required to enable calculations))]]),"", Table111318[[#This Row],[REE (ppm)]]+Table111318[[#This Row],[Y 39]]) ->  | CF9: =_xlfn.IFNA(IF(ISBLANK(Table111318[[#This Row],[Sample Reference '# ('# required to enable calculations))]]),"", IF(Table111318[[#This Row],[Dry Mass Basis]]="","Missing Basis", IF(VLOOKUP(Table111318[[#This Row],[Original Field Sample '#]],FieldSampling[],38,FALSE)="","Missing Basis",_xlfn.IFNA(IF((VLOOKUP(Table111318[[#This Row],[Original Field Sample '#]],FieldSampling[],38,FALSE))=Table111318[[#This Row],[Dry Mass Basis]],(Table111318[[#This Row],[REE+Y (ppm)]]/VLOOKUP(Table111318[[#This Row],[Original Field Sample '#]],FieldSampling[],97,FALSE)),"Basis Mismatch"),"")))),"Missing Original Sample") ->  | CG9: =IF(Table111318[[#This Row],[Concentration Factor]]= "Basis Mismatch", "Basis Mismatch", IF(Table111318[[#This Row],[Concentration Factor]]= "Missing Basis", "Missing Basis", IF((Table111318[[#This Row],[Concentration Factor]])="Basis Mismatch", "Basis Mismatch", IF((Table111318[[#This Row],[Concentration Factor]])="Missing Original Sample", "Missing Originial Sample", IF(ISBLANK(Table111318[[#This Row],[Sample Reference '# ('# required to enable calculations))]]),"", IF(ISBLANK(Table111318[[#This Row],[Total % Recovery]]),"Missing Total % Recovery", PRODUCT(Table111318[[#This Row],[Total % Recovery]],Table111318[[#This Row],[Concentration Factor]]))))))) -> 
B10: Field sample | CC10: =IF(ISBLANK(Table111318[[#This Row],[Sample Reference '# ('# required to enable calculations))]]),"",SUM(Table111318[[#This Row],[La 57]:[Lu 71]])) ->  | CD10: =IF(ISBLANK(Table111318[[#This Row],[Sample Reference '# ('# required to enable calculations))]]),"", Table111318[[#This Row],[REE (ppm)]]+Table111318[[#This Row],[Y 39]]) ->  | CF10: =_xlfn.IFNA(IF(ISBLANK(Table111318[[#This Row],[Sample Reference '# ('# required to enable calculations))]]),"", IF(Table111318[[#This Row],[Dry Mass Basis]]="","Missing Basis", IF(VLOOKUP(Table111318[[#This Row],[Original Field Sample '#]],FieldSampling[],38,FALSE)="","Missing Basis",_xlfn.IFNA(IF((VLOOKUP(Table111318[[#This Row],[Original Field Sample '#]],FieldSampling[],38,FALSE))=Table111318[[#This Row],[Dry Mass Basis]],(Table111318[[#This Row],[REE+Y (ppm)]]/VLOOKUP(Table111318[[#This Row],[Original Field Sample '#]],FieldSampling[],97,FALSE)),"Basis Mismatch"),"")))),"Missing Original Sample") ->  | CG10: =IF(Table111318[[#This Row],[Concentration Factor]]= "Basis Mismatch", "Basis Mismatch", IF(Table111318[[#This Row],[Concentration Factor]]= "Missing Basis", "Missing Basis", IF((Table111318[[#This Row],[Concentration Factor]])="Basis Mismatch", "Basis Mismatch", IF((Table111318[[#This Row],[Concentration Factor]])="Missing Original Sample", "Missing Originial Sample", IF(ISBLANK(Table111318[[#This Row],[Sample Reference '# ('# required to enable calculations))]]),"", IF(ISBLANK(Table111318[[#This Row],[Total % Recovery]]),"Missing Total % Recovery", PRODUCT(Table111318[[#This Row],[Total % Recovery]],Table111318[[#This Row],[Concentration Factor]]))))))) -> 
B11: Field sample | CC11: =IF(ISBLANK(Table111318[[#This Row],[Sample Reference '# ('# required to enable calculations))]]),"",SUM(Table111318[[#This Row],[La 57]:[Lu 71]])) ->  | CD11: =IF(ISBLANK(Table111318[[#This Row],[Sample Reference '# ('# required to enable calculations))]]),"", Table111318[[#This Row],[REE (ppm)]]+Table111318[[#This Row],[Y 39]]) ->  | CF11: =_xlfn.IFNA(IF(ISBLANK(Table111318[[#This Row],[Sample Reference '# ('# required to enable calculations))]]),"", IF(Table111318[[#This Row],[Dry Mass Basis]]="","Missing Basis", IF(VLOOKUP(Table111318[[#This Row],[Original Field Sample '#]],FieldSampling[],38,FALSE)="","Missing Basis",_xlfn.IFNA(IF((VLOOKUP(Table111318[[#This Row],[Original Field Sample '#]],FieldSampling[],38,FALSE))=Table111318[[#This Row],[Dry Mass Basis]],(Table111318[[#This Row],[REE+Y (ppm)]]/VLOOKUP(Table111318[[#This Row],[Original Field Sample '#]],FieldSampling[],97,FALSE)),"Basis Mismatch"),"")))),"Missing Original Sample") ->  | CG11: =IF(Table111318[[#This Row],[Concentration Factor]]= "Basis Mismatch", "Basis Mismatch", IF(Table111318[[#This Row],[Concentration Factor]]= "Missing Basis", "Missing Basis", IF((Table111318[[#This Row],[Concentration Factor]])="Basis Mismatch", "Basis Mismatch", IF((Table111318[[#This Row],[Concentration Factor]])="Missing Original Sample", "Missing Originial Sample", IF(ISBLANK(Table111318[[#This Row],[Sample Reference '# ('# required to enable calculations))]]),"", IF(ISBLANK(Table111318[[#This Row],[Total % Recovery]]),"Missing Total % Recovery", PRODUCT(Table111318[[#This Row],[Total % Recovery]],Table111318[[#This Row],[Concentration Factor]]))))))) -> 
B12: Field sample | CC12: =IF(ISBLANK(Table111318[[#This Row],[Sample Reference '# ('# required to enable calculations))]]),"",SUM(Table111318[[#This Row],[La 57]:[Lu 71]])) ->  | CD12: =IF(ISBLANK(Table111318[[#This Row],[Sample Reference '# ('# required to enable calculations))]]),"", Table111318[[#This Row],[REE (ppm)]]+Table111318[[#This Row],[Y 39]]) ->  | CF12: =_xlfn.IFNA(IF(ISBLANK(Table111318[[#This Row],[Sample Reference '# ('# required to enable calculations))]]),"", IF(Table111318[[#This Row],[Dry Mass Basis]]="","Missing Basis", IF(VLOOKUP(Table111318[[#This Row],[Original Field Sample '#]],FieldSampling[],38,FALSE)="","Missing Basis",_xlfn.IFNA(IF((VLOOKUP(Table111318[[#This Row],[Original Field Sample '#]],FieldSampling[],38,FALSE))=Table111318[[#This Row],[Dry Mass Basis]],(Table111318[[#This Row],[REE+Y (ppm)]]/VLOOKUP(Table111318[[#This Row],[Original Field Sample '#]],FieldSampling[],97,FALSE)),"Basis Mismatch"),"")))),"Missing Original Sample") ->  | CG12: =IF(Table111318[[#This Row],[Concentration Factor]]= "Basis Mismatch", "Basis Mismatch", IF(Table111318[[#This Row],[Concentration Factor]]= "Missing Basis", "Missing Basis", IF((Table111318[[#This Row],[Concentration Factor]])="Basis Mismatch", "Basis Mismatch", IF((Table111318[[#This Row],[Concentration Factor]])="Missing Original Sample", "Missing Originial Sample", IF(ISBLANK(Table111318[[#This Row],[Sample Reference '# ('# required to enable calculations))]]),"", IF(ISBLANK(Table111318[[#This Row],[Total % Recovery]]),"Missing Total % Recovery", PRODUCT(Table111318[[#This Row],[Total % Recovery]],Table111318[[#This Row],[Concentration Factor]]))))))) -> 
B13: Field sample | CC13: =IF(ISBLANK(Table111318[[#This Row],[Sample Reference '# ('# required to enable calculations))]]),"",SUM(Table111318[[#This Row],[La 57]:[Lu 71]])) ->  | CD13: =IF(ISBLANK(Table111318[[#This Row],[Sample Reference '# ('# required to enable calculations))]]),"", Table111318[[#This Row],[REE (ppm)]]+Table111318[[#This Row],[Y 39]]) ->  | CF13: =_xlfn.IFNA(IF(ISBLANK(Table111318[[#This Row],[Sample Reference '# ('# required to enable calculations))]]),"", IF(Table111318[[#This Row],[Dry Mass Basis]]="","Missing Basis", IF(VLOOKUP(Table111318[[#This Row],[Original Field Sample '#]],FieldSampling[],38,FALSE)="","Missing Basis",_xlfn.IFNA(IF((VLOOKUP(Table111318[[#This Row],[Original Field Sample '#]],FieldSampling[],38,FALSE))=Table111318[[#This Row],[Dry Mass Basis]],(Table111318[[#This Row],[REE+Y (ppm)]]/VLOOKUP(Table111318[[#This Row],[Original Field Sample '#]],FieldSampling[],97,FALSE)),"Basis Mismatch"),"")))),"Missing Original Sample") ->  | CG13: =IF(Table111318[[#This Row],[Concentration Factor]]= "Basis Mismatch", "Basis Mismatch", IF(Table111318[[#This Row],[Concentration Factor]]= "Missing Basis", "Missing Basis", IF((Table111318[[#This Row],[Concentration Factor]])="Basis Mismatch", "Basis Mismatch", IF((Table111318[[#This Row],[Concentration Factor]])="Missing Original Sample", "Missing Originial Sample", IF(ISBLANK(Table111318[[#This Row],[Sample Reference '# ('# required to enable calculations))]]),"", IF(ISBLANK(Table111318[[#This Row],[Total % Recovery]]),"Missing Total % Recovery", PRODUCT(Table111318[[#This Row],[Total % Recovery]],Table111318[[#This Row],[Concentration Factor]]))))))) -> 
B14: Field sample | CC14: =IF(ISBLANK(Table111318[[#This Row],[Sample Reference '# ('# required to enable calculations))]]),"",SUM(Table111318[[#This Row],[La 57]:[Lu 71]])) ->  | CD14: =IF(ISBLANK(Table111318[[#This Row],[Sample Reference '# ('# required to enable calculations))]]),"", Table111318[[#This Row],[REE (ppm)]]+Table111318[[#This Row],[Y 39]]) ->  | CF14: =_xlfn.IFNA(IF(ISBLANK(Table111318[[#This Row],[Sample Reference '# ('# required to enable calculations))]]),"", IF(Table111318[[#This Row],[Dry Mass Basis]]="","Missing Basis", IF(VLOOKUP(Table111318[[#This Row],[Original Field Sample '#]],FieldSampling[],38,FALSE)="","Missing Basis",_xlfn.IFNA(IF((VLOOKUP(Table111318[[#This Row],[Original Field Sample '#]],FieldSampling[],38,FALSE))=Table111318[[#This Row],[Dry Mass Basis]],(Table111318[[#This Row],[REE+Y (ppm)]]/VLOOKUP(Table111318[[#This Row],[Original Field Sample '#]],FieldSampling[],97,FALSE)),"Basis Mismatch"),"")))),"Missing Original Sample") ->  | CG14: =IF(Table111318[[#This Row],[Concentration Factor]]= "Basis Mismatch", "Basis Mismatch", IF(Table111318[[#This Row],[Concentration Factor]]= "Missing Basis", "Missing Basis", IF((Table111318[[#This Row],[Concentration Factor]])="Basis Mismatch", "Basis Mismatch", IF((Table111318[[#This Row],[Concentration Factor]])="Missing Original Sample", "Missing Originial Sample", IF(ISBLANK(Table111318[[#This Row],[Sample Reference '# ('# required to enable calculations))]]),"", IF(ISBLANK(Table111318[[#This Row],[Total % Recovery]]),"Missing Total % Recovery", PRODUCT(Table111318[[#This Row],[Total % Recovery]],Table111318[[#This Row],[Concentration Factor]]))))))) -> 
B15: Field sample | CC15: =IF(ISBLANK(Table111318[[#This Row],[Sample Reference '# ('# required to enable calculations))]]),"",SUM(Table111318[[#This Row],[La 57]:[Lu 71]])) ->  | CD15: =IF(ISBLANK(Table111318[[#This Row],[Sample Reference '# ('# required to enable calculations))]]),"", Table111318[[#This Row],[REE (ppm)]]+Table111318[[#This Row],[Y 39]]) ->  | CF15: =_xlfn.IFNA(IF(ISBLANK(Table111318[[#This Row],[Sample Reference '# ('# required to enable calculations))]]),"", IF(Table111318[[#This Row],[Dry Mass Basis]]="","Missing Basis", IF(VLOOKUP(Table111318[[#This Row],[Original Field Sample '#]],FieldSampling[],38,FALSE)="","Missing Basis",_xlfn.IFNA(IF((VLOOKUP(Table111318[[#This Row],[Original Field Sample '#]],FieldSampling[],38,FALSE))=Table111318[[#This Row],[Dry Mass Basis]],(Table111318[[#This Row],[REE+Y (ppm)]]/VLOOKUP(Table111318[[#This Row],[Original Field Sample '#]],FieldSampling[],97,FALSE)),"Basis Mismatch"),"")))),"Missing Original Sample") ->  | CG15: =IF(Table111318[[#This Row],[Concentration Factor]]= "Basis Mismatch", "Basis Mismatch", IF(Table111318[[#This Row],[Concentration Factor]]= "Missing Basis", "Missing Basis", IF((Table111318[[#This Row],[Concentration Factor]])="Basis Mismatch", "Basis Mismatch", IF((Table111318[[#This Row],[Concentration Factor]])="Missing Original Sample", "Missing Originial Sample", IF(ISBLANK(Table111318[[#This Row],[Sample Reference '# ('# required to enable calculations))]]),"", IF(ISBLANK(Table111318[[#This Row],[Total % Recovery]]),"Missing Total % Recovery", PRODUCT(Table111318[[#This Row],[Total % Recovery]],Table111318[[#This Row],[Concentration Factor]]))))))) -> 
B16: Field sample | CC16: =IF(ISBLANK(Table111318[[#This Row],[Sample Reference '# ('# required to enable calculations))]]),"",SUM(Table111318[[#This Row],[La 57]:[Lu 71]])) ->  | CD16: =IF(ISBLANK(Table111318[[#This Row],[Sample Reference '# ('# required to enable calculations))]]),"", Table111318[[#This Row],[REE (ppm)]]+Table111318[[#This Row],[Y 39]]) ->  | CF16: =_xlfn.IFNA(IF(ISBLANK(Table111318[[#This Row],[Sample Reference '# ('# required to enable calculations))]]),"", IF(Table111318[[#This Row],[Dry Mass Basis]]="","Missing Basis", IF(VLOOKUP(Table111318[[#This Row],[Original Field Sample '#]],FieldSampling[],38,FALSE)="","Missing Basis",_xlfn.IFNA(IF((VLOOKUP(Table111318[[#This Row],[Original Field Sample '#]],FieldSampling[],38,FALSE))=Table111318[[#This Row],[Dry Mass Basis]],(Table111318[[#This Row],[REE+Y (ppm)]]/VLOOKUP(Table111318[[#This Row],[Original Field Sample '#]],FieldSampling[],97,FALSE)),"Basis Mismatch"),"")))),"Missing Original Sample") ->  | CG16: =IF(Table111318[[#This Row],[Concentration Factor]]= "Basis Mismatch", "Basis Mismatch", IF(Table111318[[#This Row],[Concentration Factor]]= "Missing Basis", "Missing Basis", IF((Table111318[[#This Row],[Concentration Factor]])="Basis Mismatch", "Basis Mismatch", IF((Table111318[[#This Row],[Concentration Factor]])="Missing Original Sample", "Missing Originial Sample", IF(ISBLANK(Table111318[[#This Row],[Sample Reference '# ('# required to enable calculations))]]),"", IF(ISBLANK(Table111318[[#This Row],[Total % Recovery]]),"Missing Total % Recovery", PRODUCT(Table111318[[#This Row],[Total % Recovery]],Table111318[[#This Row],[Concentration Factor]]))))))) -> 
B17: Field sample | CC17: =IF(ISBLANK(Table111318[[#This Row],[Sample Reference '# ('# required to enable calculations))]]),"",SUM(Table111318[[#This Row],[La 57]:[Lu 71]])) ->  | CD17: =IF(ISBLANK(Table111318[[#This Row],[Sample Reference '# ('# required to enable calculations))]]),"", Table111318[[#This Row],[REE (ppm)]]+Table111318[[#This Row],[Y 39]]) ->  | CF17: =_xlfn.IFNA(IF(ISBLANK(Table111318[[#This Row],[Sample Reference '# ('# required to enable calculations))]]),"", IF(Table111318[[#This Row],[Dry Mass Basis]]="","Missing Basis", IF(VLOOKUP(Table111318[[#This Row],[Original Field Sample '#]],FieldSampling[],38,FALSE)="","Missing Basis",_xlfn.IFNA(IF((VLOOKUP(Table111318[[#This Row],[Original Field Sample '#]],FieldSampling[],38,FALSE))=Table111318[[#This Row],[Dry Mass Basis]],(Table111318[[#This Row],[REE+Y (ppm)]]/VLOOKUP(Table111318[[#This Row],[Original Field Sample '#]],FieldSampling[],97,FALSE)),"Basis Mismatch"),"")))),"Missing Original Sample") ->  | CG17: =IF(Table111318[[#This Row],[Concentration Factor]]= "Basis Mismatch", "Basis Mismatch", IF(Table111318[[#This Row],[Concentration Factor]]= "Missing Basis", "Missing Basis", IF((Table111318[[#This Row],[Concentration Factor]])="Basis Mismatch", "Basis Mismatch", IF((Table111318[[#This Row],[Concentration Factor]])="Missing Original Sample", "Missing Originial Sample", IF(ISBLANK(Table111318[[#This Row],[Sample Reference '# ('# required to enable calculations))]]),"", IF(ISBLANK(Table111318[[#This Row],[Total % Recovery]]),"Missing Total % Recovery", PRODUCT(Table111318[[#This Row],[Total % Recovery]],Table111318[[#This Row],[Concentration Factor]]))))))) -> 
B18: Field sample | CC18: =IF(ISBLANK(Table111318[[#This Row],[Sample Reference '# ('# required to enable calculations))]]),"",SUM(Table111318[[#This Row],[La 57]:[Lu 71]])) ->  | CD18: =IF(ISBLANK(Table111318[[#This Row],[Sample Reference '# ('# required to enable calculations))]]),"", Table111318[[#This Row],[REE (ppm)]]+Table111318[[#This Row],[Y 39]]) ->  | CF18: =_xlfn.IFNA(IF(ISBLANK(Table111318[[#This Row],[Sample Reference '# ('# required to enable calculations))]]),"", IF(Table111318[[#This Row],[Dry Mass Basis]]="","Missing Basis", IF(VLOOKUP(Table111318[[#This Row],[Original Field Sample '#]],FieldSampling[],38,FALSE)="","Missing Basis",_xlfn.IFNA(IF((VLOOKUP(Table111318[[#This Row],[Original Field Sample '#]],FieldSampling[],38,FALSE))=Table111318[[#This Row],[Dry Mass Basis]],(Table111318[[#This Row],[REE+Y (ppm)]]/VLOOKUP(Table111318[[#This Row],[Original Field Sample '#]],FieldSampling[],97,FALSE)),"Basis Mismatch"),"")))),"Missing Original Sample") ->  | CG18: =IF(Table111318[[#This Row],[Concentration Factor]]= "Basis Mismatch", "Basis Mismatch", IF(Table111318[[#This Row],[Concentration Factor]]= "Missing Basis", "Missing Basis", IF((Table111318[[#This Row],[Concentration Factor]])="Basis Mismatch", "Basis Mismatch", IF((Table111318[[#This Row],[Concentration Factor]])="Missing Original Sample", "Missing Originial Sample", IF(ISBLANK(Table111318[[#This Row],[Sample Reference '# ('# required to enable calculations))]]),"", IF(ISBLANK(Table111318[[#This Row],[Total % Recovery]]),"Missing Total % Recovery", PRODUCT(Table111318[[#This Row],[Total % Recovery]],Table111318[[#This Row],[Concentration Factor]]))))))) -> 
B19: Field sample | CC19: =IF(ISBLANK(Table111318[[#This Row],[Sample Reference '# ('# required to enable calculations))]]),"",SUM(Table111318[[#This Row],[La 57]:[Lu 71]])) ->  | CD19: =IF(ISBLANK(Table111318[[#This Row],[Sample Reference '# ('# required to enable calculations))]]),"", Table111318[[#This Row],[REE (ppm)]]+Table111318[[#This Row],[Y 39]]) ->  | CF19: =_xlfn.IFNA(IF(ISBLANK(Table111318[[#This Row],[Sample Reference '# ('# required to enable calculations))]]),"", IF(Table111318[[#This Row],[Dry Mass Basis]]="","Missing Basis", IF(VLOOKUP(Table111318[[#This Row],[Original Field Sample '#]],FieldSampling[],38,FALSE)="","Missing Basis",_xlfn.IFNA(IF((VLOOKUP(Table111318[[#This Row],[Original Field Sample '#]],FieldSampling[],38,FALSE))=Table111318[[#This Row],[Dry Mass Basis]],(Table111318[[#This Row],[REE+Y (ppm)]]/VLOOKUP(Table111318[[#This Row],[Original Field Sample '#]],FieldSampling[],97,FALSE)),"Basis Mismatch"),"")))),"Missing Original Sample") ->  | CG19: =IF(Table111318[[#This Row],[Concentration Factor]]= "Basis Mismatch", "Basis Mismatch", IF(Table111318[[#This Row],[Concentration Factor]]= "Missing Basis", "Missing Basis", IF((Table111318[[#This Row],[Concentration Factor]])="Basis Mismatch", "Basis Mismatch", IF((Table111318[[#This Row],[Concentration Factor]])="Missing Original Sample", "Missing Originial Sample", IF(ISBLANK(Table111318[[#This Row],[Sample Reference '# ('# required to enable calculations))]]),"", IF(ISBLANK(Table111318[[#This Row],[Total % Recovery]]),"Missing Total % Recovery", PRODUCT(Table111318[[#This Row],[Total % Recovery]],Table111318[[#This Row],[Concentration Factor]]))))))) -> 
B20: Field sample | CC20: =IF(ISBLANK(Table111318[[#This Row],[Sample Reference '# ('# required to enable calculations))]]),"",SUM(Table111318[[#This Row],[La 57]:[Lu 71]])) ->  | CD20: =IF(ISBLANK(Table111318[[#This Row],[Sample Reference '# ('# required to enable calculations))]]),"", Table111318[[#This Row],[REE (ppm)]]+Table111318[[#This Row],[Y 39]]) ->  | CF20: =_xlfn.IFNA(IF(ISBLANK(Table111318[[#This Row],[Sample Reference '# ('# required to enable calculations))]]),"", IF(Table111318[[#This Row],[Dry Mass Basis]]="","Missing Basis", IF(VLOOKUP(Table111318[[#This Row],[Original Field Sample '#]],FieldSampling[],38,FALSE)="","Missing Basis",_xlfn.IFNA(IF((VLOOKUP(Table111318[[#This Row],[Original Field Sample '#]],FieldSampling[],38,FALSE))=Table111318[[#This Row],[Dry Mass Basis]],(Table111318[[#This Row],[REE+Y (ppm)]]/VLOOKUP(Table111318[[#This Row],[Original Field Sample '#]],FieldSampling[],97,FALSE)),"Basis Mismatch"),"")))),"Missing Original Sample") ->  | CG20: =IF(Table111318[[#This Row],[Concentration Factor]]= "Basis Mismatch", "Basis Mismatch", IF(Table111318[[#This Row],[Concentration Factor]]= "Missing Basis", "Missing Basis", IF((Table111318[[#This Row],[Concentration Factor]])="Basis Mismatch", "Basis Mismatch", IF((Table111318[[#This Row],[Concentration Factor]])="Missing Original Sample", "Missing Originial Sample", IF(ISBLANK(Table111318[[#This Row],[Sample Reference '# ('# required to enable calculations))]]),"", IF(ISBLANK(Table111318[[#This Row],[Total % Recovery]]),"Missing Total % Recovery", PRODUCT(Table111318[[#This Row],[Total % Recovery]],Table111318[[#This Row],[Concentration Factor]]))))))) -> 
B21: Field sample | CC21: =IF(ISBLANK(Table111318[[#This Row],[Sample Reference '# ('# required to enable calculations))]]),"",SUM(Table111318[[#This Row],[La 57]:[Lu 71]])) ->  | CD21: =IF(ISBLANK(Table111318[[#This Row],[Sample Reference '# ('# required to enable calculations))]]),"", Table111318[[#This Row],[REE (ppm)]]+Table111318[[#This Row],[Y 39]]) ->  | CF21: =_xlfn.IFNA(IF(ISBLANK(Table111318[[#This Row],[Sample Reference '# ('# required to enable calculations))]]),"", IF(Table111318[[#This Row],[Dry Mass Basis]]="","Missing Basis", IF(VLOOKUP(Table111318[[#This Row],[Original Field Sample '#]],FieldSampling[],38,FALSE)="","Missing Basis",_xlfn.IFNA(IF((VLOOKUP(Table111318[[#This Row],[Original Field Sample '#]],FieldSampling[],38,FALSE))=Table111318[[#This Row],[Dry Mass Basis]],(Table111318[[#This Row],[REE+Y (ppm)]]/VLOOKUP(Table111318[[#This Row],[Original Field Sample '#]],FieldSampling[],97,FALSE)),"Basis Mismatch"),"")))),"Missing Original Sample") ->  | CG21: =IF(Table111318[[#This Row],[Concentration Factor]]= "Basis Mismatch", "Basis Mismatch", IF(Table111318[[#This Row],[Concentration Factor]]= "Missing Basis", "Missing Basis", IF((Table111318[[#This Row],[Concentration Factor]])="Basis Mismatch", "Basis Mismatch", IF((Table111318[[#This Row],[Concentration Factor]])="Missing Original Sample", "Missing Originial Sample", IF(ISBLANK(Table111318[[#This Row],[Sample Reference '# ('# required to enable calculations))]]),"", IF(ISBLANK(Table111318[[#This Row],[Total % Recovery]]),"Missing Total % Recovery", PRODUCT(Table111318[[#This Row],[Total % Recovery]],Table111318[[#This Row],[Concentration Factor]]))))))) -> 
B22: Field sample | CC22: =IF(ISBLANK(Table111318[[#This Row],[Sample Reference '# ('# required to enable calculations))]]),"",SUM(Table111318[[#This Row],[La 57]:[Lu 71]])) ->  | CD22: =IF(ISBLANK(Table111318[[#This Row],[Sample Reference '# ('# required to enable calculations))]]),"", Table111318[[#This Row],[REE (ppm)]]+Table111318[[#This Row],[Y 39]]) ->  | CF22: =_xlfn.IFNA(IF(ISBLANK(Table111318[[#This Row],[Sample Reference '# ('# required to enable calculations))]]),"", IF(Table111318[[#This Row],[Dry Mass Basis]]="","Missing Basis", IF(VLOOKUP(Table111318[[#This Row],[Original Field Sample '#]],FieldSampling[],38,FALSE)="","Missing Basis",_xlfn.IFNA(IF((VLOOKUP(Table111318[[#This Row],[Original Field Sample '#]],FieldSampling[],38,FALSE))=Table111318[[#This Row],[Dry Mass Basis]],(Table111318[[#This Row],[REE+Y (ppm)]]/VLOOKUP(Table111318[[#This Row],[Original Field Sample '#]],FieldSampling[],97,FALSE)),"Basis Mismatch"),"")))),"Missing Original Sample") ->  | CG22: =IF(Table111318[[#This Row],[Concentration Factor]]= "Basis Mismatch", "Basis Mismatch", IF(Table111318[[#This Row],[Concentration Factor]]= "Missing Basis", "Missing Basis", IF((Table111318[[#This Row],[Concentration Factor]])="Basis Mismatch", "Basis Mismatch", IF((Table111318[[#This Row],[Concentration Factor]])="Missing Original Sample", "Missing Originial Sample", IF(ISBLANK(Table111318[[#This Row],[Sample Reference '# ('# required to enable calculations))]]),"", IF(ISBLANK(Table111318[[#This Row],[Total % Recovery]]),"Missing Total % Recovery", PRODUCT(Table111318[[#This Row],[Total % Recovery]],Table111318[[#This Row],[Concentration Factor]]))))))) -> 
B23: Field sample | CC23: =IF(ISBLANK(Table111318[[#This Row],[Sample Reference '# ('# required to enable calculations))]]),"",SUM(Table111318[[#This Row],[La 57]:[Lu 71]])) ->  | CD23: =IF(ISBLANK(Table111318[[#This Row],[Sample Reference '# ('# required to enable calculations))]]),"", Table111318[[#This Row],[REE (ppm)]]+Table111318[[#This Row],[Y 39]]) ->  | CF23: =_xlfn.IFNA(IF(ISBLANK(Table111318[[#This Row],[Sample Reference '# ('# required to enable calculations))]]),"", IF(Table111318[[#This Row],[Dry Mass Basis]]="","Missing Basis", IF(VLOOKUP(Table111318[[#This Row],[Original Field Sample '#]],FieldSampling[],38,FALSE)="","Missing Basis",_xlfn.IFNA(IF((VLOOKUP(Table111318[[#This Row],[Original Field Sample '#]],FieldSampling[],38,FALSE))=Table111318[[#This Row],[Dry Mass Basis]],(Table111318[[#This Row],[REE+Y (ppm)]]/VLOOKUP(Table111318[[#This Row],[Original Field Sample '#]],FieldSampling[],97,FALSE)),"Basis Mismatch"),"")))),"Missing Original Sample") ->  | CG23: =IF(Table111318[[#This Row],[Concentration Factor]]= "Basis Mismatch", "Basis Mismatch", IF(Table111318[[#This Row],[Concentration Factor]]= "Missing Basis", "Missing Basis", IF((Table111318[[#This Row],[Concentration Factor]])="Basis Mismatch", "Basis Mismatch", IF((Table111318[[#This Row],[Concentration Factor]])="Missing Original Sample", "Missing Originial Sample", IF(ISBLANK(Table111318[[#This Row],[Sample Reference '# ('# required to enable calculations))]]),"", IF(ISBLANK(Table111318[[#This Row],[Total % Recovery]]),"Missing Total % Recovery", PRODUCT(Table111318[[#This Row],[Total % Recovery]],Table111318[[#This Row],[Concentration Factor]]))))))) -> 
B24: Field sample | CC24: =IF(ISBLANK(Table111318[[#This Row],[Sample Reference '# ('# required to enable calculations))]]),"",SUM(Table111318[[#This Row],[La 57]:[Lu 71]])) ->  | CD24: =IF(ISBLANK(Table111318[[#This Row],[Sample Reference '# ('# required to enable calculations))]]),"", Table111318[[#This Row],[REE (ppm)]]+Table111318[[#This Row],[Y 39]]) ->  | CF24: =_xlfn.IFNA(IF(ISBLANK(Table111318[[#This Row],[Sample Reference '# ('# required to enable calculations))]]),"", IF(Table111318[[#This Row],[Dry Mass Basis]]="","Missing Basis", IF(VLOOKUP(Table111318[[#This Row],[Original Field Sample '#]],FieldSampling[],38,FALSE)="","Missing Basis",_xlfn.IFNA(IF((VLOOKUP(Table111318[[#This Row],[Original Field Sample '#]],FieldSampling[],38,FALSE))=Table111318[[#This Row],[Dry Mass Basis]],(Table111318[[#This Row],[REE+Y (ppm)]]/VLOOKUP(Table111318[[#This Row],[Original Field Sample '#]],FieldSampling[],97,FALSE)),"Basis Mismatch"),"")))),"Missing Original Sample") ->  | CG24: =IF(Table111318[[#This Row],[Concentration Factor]]= "Basis Mismatch", "Basis Mismatch", IF(Table111318[[#This Row],[Concentration Factor]]= "Missing Basis", "Missing Basis", IF((Table111318[[#This Row],[Concentration Factor]])="Basis Mismatch", "Basis Mismatch", IF((Table111318[[#This Row],[Concentration Factor]])="Missing Original Sample", "Missing Originial Sample", IF(ISBLANK(Table111318[[#This Row],[Sample Reference '# ('# required to enable calculations))]]),"", IF(ISBLANK(Table111318[[#This Row],[Total % Recovery]]),"Missing Total % Recovery", PRODUCT(Table111318[[#This Row],[Total % Recovery]],Table111318[[#This Row],[Concentration Factor]]))))))) -> 
B25: Field sample | CC25: =IF(ISBLANK(Table111318[[#This Row],[Sample Reference '# ('# required to enable calculations))]]),"",SUM(Table111318[[#This Row],[La 57]:[Lu 71]])) ->  | CD25: =IF(ISBLANK(Table111318[[#This Row],[Sample Reference '# ('# required to enable calculations))]]),"", Table111318[[#This Row],[REE (ppm)]]+Table111318[[#This Row],[Y 39]]) ->  | CF25: =_xlfn.IFNA(IF(ISBLANK(Table111318[[#This Row],[Sample Reference '# ('# required to enable calculations))]]),"", IF(Table111318[[#This Row],[Dry Mass Basis]]="","Missing Basis", IF(VLOOKUP(Table111318[[#This Row],[Original Field Sample '#]],FieldSampling[],38,FALSE)="","Missing Basis",_xlfn.IFNA(IF((VLOOKUP(Table111318[[#This Row],[Original Field Sample '#]],FieldSampling[],38,FALSE))=Table111318[[#This Row],[Dry Mass Basis]],(Table111318[[#This Row],[REE+Y (ppm)]]/VLOOKUP(Table111318[[#This Row],[Original Field Sample '#]],FieldSampling[],97,FALSE)),"Basis Mismatch"),"")))),"Missing Original Sample") ->  | CG25: =IF(Table111318[[#This Row],[Concentration Factor]]= "Basis Mismatch", "Basis Mismatch", IF(Table111318[[#This Row],[Concentration Factor]]= "Missing Basis", "Missing Basis", IF((Table111318[[#This Row],[Concentration Factor]])="Basis Mismatch", "Basis Mismatch", IF((Table111318[[#This Row],[Concentration Factor]])="Missing Original Sample", "Missing Originial Sample", IF(ISBLANK(Table111318[[#This Row],[Sample Reference '# ('# required to enable calculations))]]),"", IF(ISBLANK(Table111318[[#This Row],[Total % Recovery]]),"Missing Total % Recovery", PRODUCT(Table111318[[#This Row],[Total % Recovery]],Table111318[[#This Row],[Concentration Factor]]))))))) -> 
B26: Field sample | CC26: =IF(ISBLANK(Table111318[[#This Row],[Sample Reference '# ('# required to enable calculations))]]),"",SUM(Table111318[[#This Row],[La 57]:[Lu 71]])) ->  | CD26: =IF(ISBLANK(Table111318[[#This Row],[Sample Reference '# ('# required to enable calculations))]]),"", Table111318[[#This Row],[REE (ppm)]]+Table111318[[#This Row],[Y 39]]) ->  | CF26: =_xlfn.IFNA(IF(ISBLANK(Table111318[[#This Row],[Sample Reference '# ('# required to enable calculations))]]),"", IF(Table111318[[#This Row],[Dry Mass Basis]]="","Missing Basis", IF(VLOOKUP(Table111318[[#This Row],[Original Field Sample '#]],FieldSampling[],38,FALSE)="","Missing Basis",_xlfn.IFNA(IF((VLOOKUP(Table111318[[#This Row],[Original Field Sample '#]],FieldSampling[],38,FALSE))=Table111318[[#This Row],[Dry Mass Basis]],(Table111318[[#This Row],[REE+Y (ppm)]]/VLOOKUP(Table111318[[#This Row],[Original Field Sample '#]],FieldSampling[],97,FALSE)),"Basis Mismatch"),"")))),"Missing Original Sample") ->  | CG26: =IF(Table111318[[#This Row],[Concentration Factor]]= "Basis Mismatch", "Basis Mismatch", IF(Table111318[[#This Row],[Concentration Factor]]= "Missing Basis", "Missing Basis", IF((Table111318[[#This Row],[Concentration Factor]])="Basis Mismatch", "Basis Mismatch", IF((Table111318[[#This Row],[Concentration Factor]])="Missing Original Sample", "Missing Originial Sample", IF(ISBLANK(Table111318[[#This Row],[Sample Reference '# ('# required to enable calculations))]]),"", IF(ISBLANK(Table111318[[#This Row],[Total % Recovery]]),"Missing Total % Recovery", PRODUCT(Table111318[[#This Row],[Total % Recovery]],Table111318[[#This Row],[Concentration Factor]]))))))) -> 
B27: Field sample | CC27: =IF(ISBLANK(Table111318[[#This Row],[Sample Reference '# ('# required to enable calculations))]]),"",SUM(Table111318[[#This Row],[La 57]:[Lu 71]])) ->  | CD27: =IF(ISBLANK(Table111318[[#This Row],[Sample Reference '# ('# required to enable calculations))]]),"", Table111318[[#This Row],[REE (ppm)]]+Table111318[[#This Row],[Y 39]]) ->  | CF27: =_xlfn.IFNA(IF(ISBLANK(Table111318[[#This Row],[Sample Reference '# ('# required to enable calculations))]]),"", IF(Table111318[[#This Row],[Dry Mass Basis]]="","Missing Basis", IF(VLOOKUP(Table111318[[#This Row],[Original Field Sample '#]],FieldSampling[],38,FALSE)="","Missing Basis",_xlfn.IFNA(IF((VLOOKUP(Table111318[[#This Row],[Original Field Sample '#]],FieldSampling[],38,FALSE))=Table111318[[#This Row],[Dry Mass Basis]],(Table111318[[#This Row],[REE+Y (ppm)]]/VLOOKUP(Table111318[[#This Row],[Original Field Sample '#]],FieldSampling[],97,FALSE)),"Basis Mismatch"),"")))),"Missing Original Sample") ->  | CG27: =IF(Table111318[[#This Row],[Concentration Factor]]= "Basis Mismatch", "Basis Mismatch", IF(Table111318[[#This Row],[Concentration Factor]]= "Missing Basis", "Missing Basis", IF((Table111318[[#This Row],[Concentration Factor]])="Basis Mismatch", "Basis Mismatch", IF((Table111318[[#This Row],[Concentration Factor]])="Missing Original Sample", "Missing Originial Sample", IF(ISBLANK(Table111318[[#This Row],[Sample Reference '# ('# required to enable calculations))]]),"", IF(ISBLANK(Table111318[[#This Row],[Total % Recovery]]),"Missing Total % Recovery", PRODUCT(Table111318[[#This Row],[Total % Recovery]],Table111318[[#This Row],[Concentration Factor]]))))))) -> 
B28: Field sample | CC28: =IF(ISBLANK(Table111318[[#This Row],[Sample Reference '# ('# required to enable calculations))]]),"",SUM(Table111318[[#This Row],[La 57]:[Lu 71]])) ->  | CD28: =IF(ISBLANK(Table111318[[#This Row],[Sample Reference '# ('# required to enable calculations))]]),"", Table111318[[#This Row],[REE (ppm)]]+Table111318[[#This Row],[Y 39]]) ->  | CF28: =_xlfn.IFNA(IF(ISBLANK(Table111318[[#This Row],[Sample Reference '# ('# required to enable calculations))]]),"", IF(Table111318[[#This Row],[Dry Mass Basis]]="","Missing Basis", IF(VLOOKUP(Table111318[[#This Row],[Original Field Sample '#]],FieldSampling[],38,FALSE)="","Missing Basis",_xlfn.IFNA(IF((VLOOKUP(Table111318[[#This Row],[Original Field Sample '#]],FieldSampling[],38,FALSE))=Table111318[[#This Row],[Dry Mass Basis]],(Table111318[[#This Row],[REE+Y (ppm)]]/VLOOKUP(Table111318[[#This Row],[Original Field Sample '#]],FieldSampling[],97,FALSE)),"Basis Mismatch"),"")))),"Missing Original Sample") ->  | CG28: =IF(Table111318[[#This Row],[Concentration Factor]]= "Basis Mismatch", "Basis Mismatch", IF(Table111318[[#This Row],[Concentration Factor]]= "Missing Basis", "Missing Basis", IF((Table111318[[#This Row],[Concentration Factor]])="Basis Mismatch", "Basis Mismatch", IF((Table111318[[#This Row],[Concentration Factor]])="Missing Original Sample", "Missing Originial Sample", IF(ISBLANK(Table111318[[#This Row],[Sample Reference '# ('# required to enable calculations))]]),"", IF(ISBLANK(Table111318[[#This Row],[Total % Recovery]]),"Missing Total % Recovery", PRODUCT(Table111318[[#This Row],[Total % Recovery]],Table111318[[#This Row],[Concentration Factor]]))))))) -> 
B29: Field sample | CC29: =IF(ISBLANK(Table111318[[#This Row],[Sample Reference '# ('# required to enable calculations))]]),"",SUM(Table111318[[#This Row],[La 57]:[Lu 71]])) ->  | CD29: =IF(ISBLANK(Table111318[[#This Row],[Sample Reference '# ('# required to enable calculations))]]),"", Table111318[[#This Row],[REE (ppm)]]+Table111318[[#This Row],[Y 39]]) ->  | CF29: =_xlfn.IFNA(IF(ISBLANK(Table111318[[#This Row],[Sample Reference '# ('# required to enable calculations))]]),"", IF(Table111318[[#This Row],[Dry Mass Basis]]="","Missing Basis", IF(VLOOKUP(Table111318[[#This Row],[Original Field Sample '#]],FieldSampling[],38,FALSE)="","Missing Basis",_xlfn.IFNA(IF((VLOOKUP(Table111318[[#This Row],[Original Field Sample '#]],FieldSampling[],38,FALSE))=Table111318[[#This Row],[Dry Mass Basis]],(Table111318[[#This Row],[REE+Y (ppm)]]/VLOOKUP(Table111318[[#This Row],[Original Field Sample '#]],FieldSampling[],97,FALSE)),"Basis Mismatch"),"")))),"Missing Original Sample") ->  | CG29: =IF(Table111318[[#This Row],[Concentration Factor]]= "Basis Mismatch", "Basis Mismatch", IF(Table111318[[#This Row],[Concentration Factor]]= "Missing Basis", "Missing Basis", IF((Table111318[[#This Row],[Concentration Factor]])="Basis Mismatch", "Basis Mismatch", IF((Table111318[[#This Row],[Concentration Factor]])="Missing Original Sample", "Missing Originial Sample", IF(ISBLANK(Table111318[[#This Row],[Sample Reference '# ('# required to enable calculations))]]),"", IF(ISBLANK(Table111318[[#This Row],[Total % Recovery]]),"Missing Total % Recovery", PRODUCT(Table111318[[#This Row],[Total % Recovery]],Table111318[[#This Row],[Concentration Factor]]))))))) -> 
B30: Field sample | CC30: =IF(ISBLANK(Table111318[[#This Row],[Sample Reference '# ('# required to enable calculations))]]),"",SUM(Table111318[[#This Row],[La 57]:[Lu 71]])) ->  | CD30: =IF(ISBLANK(Table111318[[#This Row],[Sample Reference '# ('# required to enable calculations))]]),"", Table111318[[#This Row],[REE (ppm)]]+Table111318[[#This Row],[Y 39]]) ->  | CF30: =_xlfn.IFNA(IF(ISBLANK(Table111318[[#This Row],[Sample Reference '# ('# required to enable calculations))]]),"", IF(Table111318[[#This Row],[Dry Mass Basis]]="","Missing Basis", IF(VLOOKUP(Table111318[[#This Row],[Original Field Sample '#]],FieldSampling[],38,FALSE)="","Missing Basis",_xlfn.IFNA(IF((VLOOKUP(Table111318[[#This Row],[Original Field Sample '#]],FieldSampling[],38,FALSE))=Table111318[[#This Row],[Dry Mass Basis]],(Table111318[[#This Row],[REE+Y (ppm)]]/VLOOKUP(Table111318[[#This Row],[Original Field Sample '#]],FieldSampling[],97,FALSE)),"Basis Mismatch"),"")))),"Missing Original Sample") ->  | CG30: =IF(Table111318[[#This Row],[Concentration Factor]]= "Basis Mismatch", "Basis Mismatch", IF(Table111318[[#This Row],[Concentration Factor]]= "Missing Basis", "Missing Basis", IF((Table111318[[#This Row],[Concentration Factor]])="Basis Mismatch", "Basis Mismatch", IF((Table111318[[#This Row],[Concentration Factor]])="Missing Original Sample", "Missing Originial Sample", IF(ISBLANK(Table111318[[#This Row],[Sample Reference '# ('# required to enable calculations))]]),"", IF(ISBLANK(Table111318[[#This Row],[Total % Recovery]]),"Missing Total % Recovery", PRODUCT(Table111318[[#This Row],[Total % Recovery]],Table111318[[#This Row],[Concentration Factor]]))))))) -> 
B31: Field sample | CC31: =IF(ISBLANK(Table111318[[#This Row],[Sample Reference '# ('# required to enable calculations))]]),"",SUM(Table111318[[#This Row],[La 57]:[Lu 71]])) ->  | CD31: =IF(ISBLANK(Table111318[[#This Row],[Sample Reference '# ('# required to enable calculations))]]),"", Table111318[[#This Row],[REE (ppm)]]+Table111318[[#This Row],[Y 39]]) ->  | CF31: =_xlfn.IFNA(IF(ISBLANK(Table111318[[#This Row],[Sample Reference '# ('# required to enable calculations))]]),"", IF(Table111318[[#This Row],[Dry Mass Basis]]="","Missing Basis", IF(VLOOKUP(Table111318[[#This Row],[Original Field Sample '#]],FieldSampling[],38,FALSE)="","Missing Basis",_xlfn.IFNA(IF((VLOOKUP(Table111318[[#This Row],[Original Field Sample '#]],FieldSampling[],38,FALSE))=Table111318[[#This Row],[Dry Mass Basis]],(Table111318[[#This Row],[REE+Y (ppm)]]/VLOOKUP(Table111318[[#This Row],[Original Field Sample '#]],FieldSampling[],97,FALSE)),"Basis Mismatch"),"")))),"Missing Original Sample") ->  | CG31: =IF(Table111318[[#This Row],[Concentration Factor]]= "Basis Mismatch", "Basis Mismatch", IF(Table111318[[#This Row],[Concentration Factor]]= "Missing Basis", "Missing Basis", IF((Table111318[[#This Row],[Concentration Factor]])="Basis Mismatch", "Basis Mismatch", IF((Table111318[[#This Row],[Concentration Factor]])="Missing Original Sample", "Missing Originial Sample", IF(ISBLANK(Table111318[[#This Row],[Sample Reference '# ('# required to enable calculations))]]),"", IF(ISBLANK(Table111318[[#This Row],[Total % Recovery]]),"Missing Total % Recovery", PRODUCT(Table111318[[#This Row],[Total % Recovery]],Table111318[[#This Row],[Concentration Factor]]))))))) -> 
B32: Field sample | CC32: =IF(ISBLANK(Table111318[[#This Row],[Sample Reference '# ('# required to enable calculations))]]),"",SUM(Table111318[[#This Row],[La 57]:[Lu 71]])) ->  | CD32: =IF(ISBLANK(Table111318[[#This Row],[Sample Reference '# ('# required to enable calculations))]]),"", Table111318[[#This Row],[REE (ppm)]]+Table111318[[#This Row],[Y 39]]) ->  | CF32: =_xlfn.IFNA(IF(ISBLANK(Table111318[[#This Row],[Sample Reference '# ('# required to enable calculations))]]),"", IF(Table111318[[#This Row],[Dry Mass Basis]]="","Missing Basis", IF(VLOOKUP(Table111318[[#This Row],[Original Field Sample '#]],FieldSampling[],38,FALSE)="","Missing Basis",_xlfn.IFNA(IF((VLOOKUP(Table111318[[#This Row],[Original Field Sample '#]],FieldSampling[],38,FALSE))=Table111318[[#This Row],[Dry Mass Basis]],(Table111318[[#This Row],[REE+Y (ppm)]]/VLOOKUP(Table111318[[#This Row],[Original Field Sample '#]],FieldSampling[],97,FALSE)),"Basis Mismatch"),"")))),"Missing Original Sample") ->  | CG32: =IF(Table111318[[#This Row],[Concentration Factor]]= "Basis Mismatch", "Basis Mismatch", IF(Table111318[[#This Row],[Concentration Factor]]= "Missing Basis", "Missing Basis", IF((Table111318[[#This Row],[Concentration Factor]])="Basis Mismatch", "Basis Mismatch", IF((Table111318[[#This Row],[Concentration Factor]])="Missing Original Sample", "Missing Originial Sample", IF(ISBLANK(Table111318[[#This Row],[Sample Reference '# ('# required to enable calculations))]]),"", IF(ISBLANK(Table111318[[#This Row],[Total % Recovery]]),"Missing Total % Recovery", PRODUCT(Table111318[[#This Row],[Total % Recovery]],Table111318[[#This Row],[Concentration Factor]]))))))) -> 
B33: Field sample | CC33: =IF(ISBLANK(Table111318[[#This Row],[Sample Reference '# ('# required to enable calculations))]]),"",SUM(Table111318[[#This Row],[La 57]:[Lu 71]])) ->  | CD33: =IF(ISBLANK(Table111318[[#This Row],[Sample Reference '# ('# required to enable calculations))]]),"", Table111318[[#This Row],[REE (ppm)]]+Table111318[[#This Row],[Y 39]]) ->  | CF33: =_xlfn.IFNA(IF(ISBLANK(Table111318[[#This Row],[Sample Reference '# ('# required to enable calculations))]]),"", IF(Table111318[[#This Row],[Dry Mass Basis]]="","Missing Basis", IF(VLOOKUP(Table111318[[#This Row],[Original Field Sample '#]],FieldSampling[],38,FALSE)="","Missing Basis",_xlfn.IFNA(IF((VLOOKUP(Table111318[[#This Row],[Original Field Sample '#]],FieldSampling[],38,FALSE))=Table111318[[#This Row],[Dry Mass Basis]],(Table111318[[#This Row],[REE+Y (ppm)]]/VLOOKUP(Table111318[[#This Row],[Original Field Sample '#]],FieldSampling[],97,FALSE)),"Basis Mismatch"),"")))),"Missing Original Sample") ->  | CG33: =IF(Table111318[[#This Row],[Concentration Factor]]= "Basis Mismatch", "Basis Mismatch", IF(Table111318[[#This Row],[Concentration Factor]]= "Missing Basis", "Missing Basis", IF((Table111318[[#This Row],[Concentration Factor]])="Basis Mismatch", "Basis Mismatch", IF((Table111318[[#This Row],[Concentration Factor]])="Missing Original Sample", "Missing Originial Sample", IF(ISBLANK(Table111318[[#This Row],[Sample Reference '# ('# required to enable calculations))]]),"", IF(ISBLANK(Table111318[[#This Row],[Total % Recovery]]),"Missing Total % Recovery", PRODUCT(Table111318[[#This Row],[Total % Recovery]],Table111318[[#This Row],[Concentration Factor]]))))))) -> 
B34: Field sample | CC34: =IF(ISBLANK(Table111318[[#This Row],[Sample Reference '# ('# required to enable calculations))]]),"",SUM(Table111318[[#This Row],[La 57]:[Lu 71]])) ->  | CD34: =IF(ISBLANK(Table111318[[#This Row],[Sample Reference '# ('# required to enable calculations))]]),"", Table111318[[#This Row],[REE (ppm)]]+Table111318[[#This Row],[Y 39]]) ->  | CF34: =_xlfn.IFNA(IF(ISBLANK(Table111318[[#This Row],[Sample Reference '# ('# required to enable calculations))]]),"", IF(Table111318[[#This Row],[Dry Mass Basis]]="","Missing Basis", IF(VLOOKUP(Table111318[[#This Row],[Original Field Sample '#]],FieldSampling[],38,FALSE)="","Missing Basis",_xlfn.IFNA(IF((VLOOKUP(Table111318[[#This Row],[Original Field Sample '#]],FieldSampling[],38,FALSE))=Table111318[[#This Row],[Dry Mass Basis]],(Table111318[[#This Row],[REE+Y (ppm)]]/VLOOKUP(Table111318[[#This Row],[Original Field Sample '#]],FieldSampling[],97,FALSE)),"Basis Mismatch"),"")))),"Missing Original Sample") ->  | CG34: =IF(Table111318[[#This Row],[Concentration Factor]]= "Basis Mismatch", "Basis Mismatch", IF(Table111318[[#This Row],[Concentration Factor]]= "Missing Basis", "Missing Basis", IF((Table111318[[#This Row],[Concentration Factor]])="Basis Mismatch", "Basis Mismatch", IF((Table111318[[#This Row],[Concentration Factor]])="Missing Original Sample", "Missing Originial Sample", IF(ISBLANK(Table111318[[#This Row],[Sample Reference '# ('# required to enable calculations))]]),"", IF(ISBLANK(Table111318[[#This Row],[Total % Recovery]]),"Missing Total % Recovery", PRODUCT(Table111318[[#This Row],[Total % Recovery]],Table111318[[#This Row],[Concentration Factor]]))))))) -> 
B35: Field sample | CC35: =IF(ISBLANK(Table111318[[#This Row],[Sample Reference '# ('# required to enable calculations))]]),"",SUM(Table111318[[#This Row],[La 57]:[Lu 71]])) ->  | CD35: =IF(ISBLANK(Table111318[[#This Row],[Sample Reference '# ('# required to enable calculations))]]),"", Table111318[[#This Row],[REE (ppm)]]+Table111318[[#This Row],[Y 39]]) ->  | CF35: =_xlfn.IFNA(IF(ISBLANK(Table111318[[#This Row],[Sample Reference '# ('# required to enable calculations))]]),"", IF(Table111318[[#This Row],[Dry Mass Basis]]="","Missing Basis", IF(VLOOKUP(Table111318[[#This Row],[Original Field Sample '#]],FieldSampling[],38,FALSE)="","Missing Basis",_xlfn.IFNA(IF((VLOOKUP(Table111318[[#This Row],[Original Field Sample '#]],FieldSampling[],38,FALSE))=Table111318[[#This Row],[Dry Mass Basis]],(Table111318[[#This Row],[REE+Y (ppm)]]/VLOOKUP(Table111318[[#This Row],[Original Field Sample '#]],FieldSampling[],97,FALSE)),"Basis Mismatch"),"")))),"Missing Original Sample") ->  | CG35: =IF(Table111318[[#This Row],[Concentration Factor]]= "Basis Mismatch", "Basis Mismatch", IF(Table111318[[#This Row],[Concentration Factor]]= "Missing Basis", "Missing Basis", IF((Table111318[[#This Row],[Concentration Factor]])="Basis Mismatch", "Basis Mismatch", IF((Table111318[[#This Row],[Concentration Factor]])="Missing Original Sample", "Missing Originial Sample", IF(ISBLANK(Table111318[[#This Row],[Sample Reference '# ('# required to enable calculations))]]),"", IF(ISBLANK(Table111318[[#This Row],[Total % Recovery]]),"Missing Total % Recovery", PRODUCT(Table111318[[#This Row],[Total % Recovery]],Table111318[[#This Row],[Concentration Factor]]))))))) -> 
B36: Field sample | CC36: =IF(ISBLANK(Table111318[[#This Row],[Sample Reference '# ('# required to enable calculations))]]),"",SUM(Table111318[[#This Row],[La 57]:[Lu 71]])) ->  | CD36: =IF(ISBLANK(Table111318[[#This Row],[Sample Reference '# ('# required to enable calculations))]]),"", Table111318[[#This Row],[REE (ppm)]]+Table111318[[#This Row],[Y 39]]) ->  | CF36: =_xlfn.IFNA(IF(ISBLANK(Table111318[[#This Row],[Sample Reference '# ('# required to enable calculations))]]),"", IF(Table111318[[#This Row],[Dry Mass Basis]]="","Missing Basis", IF(VLOOKUP(Table111318[[#This Row],[Original Field Sample '#]],FieldSampling[],38,FALSE)="","Missing Basis",_xlfn.IFNA(IF((VLOOKUP(Table111318[[#This Row],[Original Field Sample '#]],FieldSampling[],38,FALSE))=Table111318[[#This Row],[Dry Mass Basis]],(Table111318[[#This Row],[REE+Y (ppm)]]/VLOOKUP(Table111318[[#This Row],[Original Field Sample '#]],FieldSampling[],97,FALSE)),"Basis Mismatch"),"")))),"Missing Original Sample") ->  | CG36: =IF(Table111318[[#This Row],[Concentration Factor]]= "Basis Mismatch", "Basis Mismatch", IF(Table111318[[#This Row],[Concentration Factor]]= "Missing Basis", "Missing Basis", IF((Table111318[[#This Row],[Concentration Factor]])="Basis Mismatch", "Basis Mismatch", IF((Table111318[[#This Row],[Concentration Factor]])="Missing Original Sample", "Missing Originial Sample", IF(ISBLANK(Table111318[[#This Row],[Sample Reference '# ('# required to enable calculations))]]),"", IF(ISBLANK(Table111318[[#This Row],[Total % Recovery]]),"Missing Total % Recovery", PRODUCT(Table111318[[#This Row],[Total % Recovery]],Table111318[[#This Row],[Concentration Factor]]))))))) -> 
CC37: =IF(ISBLANK(Table111318[[#This Row],[Sample Reference '# ('# required to enable calculations))]]),"",SUM(Table111318[[#This Row],[La 57]:[Lu 71]])) ->  | CD37: =IF(ISBLANK(Table111318[[#This Row],[Sample Reference '# ('# required to enable calculations))]]),"", Table111318[[#This Row],[REE (ppm)]]+Table111318[[#This Row],[Y 39]]) ->  | CF37: =_xlfn.IFNA(IF(ISBLANK(Table111318[[#This Row],[Sample Reference '# ('# required to enable calculations))]]),"", IF(Table111318[[#This Row],[Dry Mass Basis]]="","Missing Basis", IF(VLOOKUP(Table111318[[#This Row],[Original Field Sample '#]],FieldSampling[],38,FALSE)="","Missing Basis",_xlfn.IFNA(IF((VLOOKUP(Table111318[[#This Row],[Original Field Sample '#]],FieldSampling[],38,FALSE))=Table111318[[#This Row],[Dry Mass Basis]],(Table111318[[#This Row],[REE+Y (ppm)]]/VLOOKUP(Table111318[[#This Row],[Original Field Sample '#]],FieldSampling[],97,FALSE)),"Basis Mismatch"),"")))),"Missing Original Sample") ->  | CG37: =IF(Table111318[[#This Row],[Concentration Factor]]= "Basis Mismatch", "Basis Mismatch", IF(Table111318[[#This Row],[Concentration Factor]]= "Missing Basis", "Missing Basis", IF((Table111318[[#This Row],[Concentration Factor]])="Basis Mismatch", "Basis Mismatch", IF((Table111318[[#This Row],[Concentration Factor]])="Missing Original Sample", "Missing Originial Sample", IF(ISBLANK(Table111318[[#This Row],[Sample Reference '# ('# required to enable calculations))]]),"", IF(ISBLANK(Table111318[[#This Row],[Total % Recovery]]),"Missing Total % Recovery", PRODUCT(Table111318[[#This Row],[Total % Recovery]],Table111318[[#This Row],[Concentration Factor]]))))))) -> 
CC38: =IF(ISBLANK(Table111318[[#This Row],[Sample Reference '# ('# required to enable calculations))]]),"",SUM(Table111318[[#This Row],[La 57]:[Lu 71]])) ->  | CD38: =IF(ISBLANK(Table111318[[#This Row],[Sample Reference '# ('# required to enable calculations))]]),"", Table111318[[#This Row],[REE (ppm)]]+Table111318[[#This Row],[Y 39]]) ->  | CF38: =_xlfn.IFNA(IF(ISBLANK(Table111318[[#This Row],[Sample Reference '# ('# required to enable calculations))]]),"", IF(Table111318[[#This Row],[Dry Mass Basis]]="","Missing Basis", IF(VLOOKUP(Table111318[[#This Row],[Original Field Sample '#]],FieldSampling[],38,FALSE)="","Missing Basis",_xlfn.IFNA(IF((VLOOKUP(Table111318[[#This Row],[Original Field Sample '#]],FieldSampling[],38,FALSE))=Table111318[[#This Row],[Dry Mass Basis]],(Table111318[[#This Row],[REE+Y (ppm)]]/VLOOKUP(Table111318[[#This Row],[Original Field Sample '#]],FieldSampling[],97,FALSE)),"Basis Mismatch"),"")))),"Missing Original Sample") ->  | CG38: =IF(Table111318[[#This Row],[Concentration Factor]]= "Basis Mismatch", "Basis Mismatch", IF(Table111318[[#This Row],[Concentration Factor]]= "Missing Basis", "Missing Basis", IF((Table111318[[#This Row],[Concentration Factor]])="Basis Mismatch", "Basis Mismatch", IF((Table111318[[#This Row],[Concentration Factor]])="Missing Original Sample", "Missing Originial Sample", IF(ISBLANK(Table111318[[#This Row],[Sample Reference '# ('# required to enable calculations))]]),"", IF(ISBLANK(Table111318[[#This Row],[Total % Recovery]]),"Missing Total % Recovery", PRODUCT(Table111318[[#This Row],[Total % Recovery]],Table111318[[#This Row],[Concentration Factor]]))))))) -> 
CC39: =IF(ISBLANK(Table111318[[#This Row],[Sample Reference '# ('# required to enable calculations))]]),"",SUM(Table111318[[#This Row],[La 57]:[Lu 71]])) ->  | CD39: =IF(ISBLANK(Table111318[[#This Row],[Sample Reference '# ('# required to enable calculations))]]),"", Table111318[[#This Row],[REE (ppm)]]+Table111318[[#This Row],[Y 39]]) ->  | CF39: =_xlfn.IFNA(IF(ISBLANK(Table111318[[#This Row],[Sample Reference '# ('# required to enable calculations))]]),"", IF(Table111318[[#This Row],[Dry Mass Basis]]="","Missing Basis", IF(VLOOKUP(Table111318[[#This Row],[Original Field Sample '#]],FieldSampling[],38,FALSE)="","Missing Basis",_xlfn.IFNA(IF((VLOOKUP(Table111318[[#This Row],[Original Field Sample '#]],FieldSampling[],38,FALSE))=Table111318[[#This Row],[Dry Mass Basis]],(Table111318[[#This Row],[REE+Y (ppm)]]/VLOOKUP(Table111318[[#This Row],[Original Field Sample '#]],FieldSampling[],97,FALSE)),"Basis Mismatch"),"")))),"Missing Original Sample") ->  | CG39: =IF(Table111318[[#This Row],[Concentration Factor]]= "Basis Mismatch", "Basis Mismatch", IF(Table111318[[#This Row],[Concentration Factor]]= "Missing Basis", "Missing Basis", IF((Table111318[[#This Row],[Concentration Factor]])="Basis Mismatch", "Basis Mismatch", IF((Table111318[[#This Row],[Concentration Factor]])="Missing Original Sample", "Missing Originial Sample", IF(ISBLANK(Table111318[[#This Row],[Sample Reference '# ('# required to enable calculations))]]),"", IF(ISBLANK(Table111318[[#This Row],[Total % Recovery]]),"Missing Total % Recovery", PRODUCT(Table111318[[#This Row],[Total % Recovery]],Table111318[[#This Row],[Concentration Factor]]))))))) -> 
CC40: =IF(ISBLANK(Table111318[[#This Row],[Sample Reference '# ('# required to enable calculations))]]),"",SUM(Table111318[[#This Row],[La 57]:[Lu 71]])) ->  | CD40: =IF(ISBLANK(Table111318[[#This Row],[Sample Reference '# ('# required to enable calculations))]]),"", Table111318[[#This Row],[REE (ppm)]]+Table111318[[#This Row],[Y 39]]) ->  | CF40: =_xlfn.IFNA(IF(ISBLANK(Table111318[[#This Row],[Sample Reference '# ('# required to enable calculations))]]),"", IF(Table111318[[#This Row],[Dry Mass Basis]]="","Missing Basis", IF(VLOOKUP(Table111318[[#This Row],[Original Field Sample '#]],FieldSampling[],38,FALSE)="","Missing Basis",_xlfn.IFNA(IF((VLOOKUP(Table111318[[#This Row],[Original Field Sample '#]],FieldSampling[],38,FALSE))=Table111318[[#This Row],[Dry Mass Basis]],(Table111318[[#This Row],[REE+Y (ppm)]]/VLOOKUP(Table111318[[#This Row],[Original Field Sample '#]],FieldSampling[],97,FALSE)),"Basis Mismatch"),"")))),"Missing Original Sample") ->  | CG40: =IF(Table111318[[#This Row],[Concentration Factor]]= "Basis Mismatch", "Basis Mismatch", IF(Table111318[[#This Row],[Concentration Factor]]= "Missing Basis", "Missing Basis", IF((Table111318[[#This Row],[Concentration Factor]])="Basis Mismatch", "Basis Mismatch", IF((Table111318[[#This Row],[Concentration Factor]])="Missing Original Sample", "Missing Originial Sample", IF(ISBLANK(Table111318[[#This Row],[Sample Reference '# ('# required to enable calculations))]]),"", IF(ISBLANK(Table111318[[#This Row],[Total % Recovery]]),"Missing Total % Recovery", PRODUCT(Table111318[[#This Row],[Total % Recovery]],Table111318[[#This Row],[Concentration Factor]]))))))) -> 
CC41: =IF(ISBLANK(Table111318[[#This Row],[Sample Reference '# ('# required to enable calculations))]]),"",SUM(Table111318[[#This Row],[La 57]:[Lu 71]])) ->  | CD41: =IF(ISBLANK(Table111318[[#This Row],[Sample Reference '# ('# required to enable calculations))]]),"", Table111318[[#This Row],[REE (ppm)]]+Table111318[[#This Row],[Y 39]]) ->  | CF41: =_xlfn.IFNA(IF(ISBLANK(Table111318[[#This Row],[Sample Reference '# ('# required to enable calculations))]]),"", IF(Table111318[[#This Row],[Dry Mass Basis]]="","Missing Basis", IF(VLOOKUP(Table111318[[#This Row],[Original Field Sample '#]],FieldSampling[],38,FALSE)="","Missing Basis",_xlfn.IFNA(IF((VLOOKUP(Table111318[[#This Row],[Original Field Sample '#]],FieldSampling[],38,FALSE))=Table111318[[#This Row],[Dry Mass Basis]],(Table111318[[#This Row],[REE+Y (ppm)]]/VLOOKUP(Table111318[[#This Row],[Original Field Sample '#]],FieldSampling[],97,FALSE)),"Basis Mismatch"),"")))),"Missing Original Sample") ->  | CG41: =IF(Table111318[[#This Row],[Concentration Factor]]= "Basis Mismatch", "Basis Mismatch", IF(Table111318[[#This Row],[Concentration Factor]]= "Missing Basis", "Missing Basis", IF((Table111318[[#This Row],[Concentration Factor]])="Basis Mismatch", "Basis Mismatch", IF((Table111318[[#This Row],[Concentration Factor]])="Missing Original Sample", "Missing Originial Sample", IF(ISBLANK(Table111318[[#This Row],[Sample Reference '# ('# required to enable calculations))]]),"", IF(ISBLANK(Table111318[[#This Row],[Total % Recovery]]),"Missing Total % Recovery", PRODUCT(Table111318[[#This Row],[Total % Recovery]],Table111318[[#This Row],[Concentration Factor]]))))))) -> 
CC42: =IF(ISBLANK(Table111318[[#This Row],[Sample Reference '# ('# required to enable calculations))]]),"",SUM(Table111318[[#This Row],[La 57]:[Lu 71]])) ->  | CD42: =IF(ISBLANK(Table111318[[#This Row],[Sample Reference '# ('# required to enable calculations))]]),"", Table111318[[#This Row],[REE (ppm)]]+Table111318[[#This Row],[Y 39]]) ->  | CF42: =_xlfn.IFNA(IF(ISBLANK(Table111318[[#This Row],[Sample Reference '# ('# required to enable calculations))]]),"", IF(Table111318[[#This Row],[Dry Mass Basis]]="","Missing Basis", IF(VLOOKUP(Table111318[[#This Row],[Original Field Sample '#]],FieldSampling[],38,FALSE)="","Missing Basis",_xlfn.IFNA(IF((VLOOKUP(Table111318[[#This Row],[Original Field Sample '#]],FieldSampling[],38,FALSE))=Table111318[[#This Row],[Dry Mass Basis]],(Table111318[[#This Row],[REE+Y (ppm)]]/VLOOKUP(Table111318[[#This Row],[Original Field Sample '#]],FieldSampling[],97,FALSE)),"Basis Mismatch"),"")))),"Missing Original Sample") ->  | CG42: =IF(Table111318[[#This Row],[Concentration Factor]]= "Basis Mismatch", "Basis Mismatch", IF(Table111318[[#This Row],[Concentration Factor]]= "Missing Basis", "Missing Basis", IF((Table111318[[#This Row],[Concentration Factor]])="Basis Mismatch", "Basis Mismatch", IF((Table111318[[#This Row],[Concentration Factor]])="Missing Original Sample", "Missing Originial Sample", IF(ISBLANK(Table111318[[#This Row],[Sample Reference '# ('# required to enable calculations))]]),"", IF(ISBLANK(Table111318[[#This Row],[Total % Recovery]]),"Missing Total % Recovery", PRODUCT(Table111318[[#This Row],[Total % Recovery]],Table111318[[#This Row],[Concentration Factor]]))))))) -> 
CC43: =IF(ISBLANK(Table111318[[#This Row],[Sample Reference '# ('# required to enable calculations))]]),"",SUM(Table111318[[#This Row],[La 57]:[Lu 71]])) ->  | CD43: =IF(ISBLANK(Table111318[[#This Row],[Sample Reference '# ('# required to enable calculations))]]),"", Table111318[[#This Row],[REE (ppm)]]+Table111318[[#This Row],[Y 39]]) ->  | CF43: =_xlfn.IFNA(IF(ISBLANK(Table111318[[#This Row],[Sample Reference '# ('# required to enable calculations))]]),"", IF(Table111318[[#This Row],[Dry Mass Basis]]="","Missing Basis", IF(VLOOKUP(Table111318[[#This Row],[Original Field Sample '#]],FieldSampling[],38,FALSE)="","Missing Basis",_xlfn.IFNA(IF((VLOOKUP(Table111318[[#This Row],[Original Field Sample '#]],FieldSampling[],38,FALSE))=Table111318[[#This Row],[Dry Mass Basis]],(Table111318[[#This Row],[REE+Y (ppm)]]/VLOOKUP(Table111318[[#This Row],[Original Field Sample '#]],FieldSampling[],97,FALSE)),"Basis Mismatch"),"")))),"Missing Original Sample") ->  | CG43: =IF(Table111318[[#This Row],[Concentration Factor]]= "Basis Mismatch", "Basis Mismatch", IF(Table111318[[#This Row],[Concentration Factor]]= "Missing Basis", "Missing Basis", IF((Table111318[[#This Row],[Concentration Factor]])="Basis Mismatch", "Basis Mismatch", IF((Table111318[[#This Row],[Concentration Factor]])="Missing Original Sample", "Missing Originial Sample", IF(ISBLANK(Table111318[[#This Row],[Sample Reference '# ('# required to enable calculations))]]),"", IF(ISBLANK(Table111318[[#This Row],[Total % Recovery]]),"Missing Total % Recovery", PRODUCT(Table111318[[#This Row],[Total % Recovery]],Table111318[[#This Row],[Concentration Factor]]))))))) -> 
CC44: =IF(ISBLANK(Table111318[[#This Row],[Sample Reference '# ('# required to enable calculations))]]),"",SUM(Table111318[[#This Row],[La 57]:[Lu 71]])) ->  | CD44: =IF(ISBLANK(Table111318[[#This Row],[Sample Reference '# ('# required to enable calculations))]]),"", Table111318[[#This Row],[REE (ppm)]]+Table111318[[#This Row],[Y 39]]) ->  | CF44: =_xlfn.IFNA(IF(ISBLANK(Table111318[[#This Row],[Sample Reference '# ('# required to enable calculations))]]),"", IF(Table111318[[#This Row],[Dry Mass Basis]]="","Missing Basis", IF(VLOOKUP(Table111318[[#This Row],[Original Field Sample '#]],FieldSampling[],38,FALSE)="","Missing Basis",_xlfn.IFNA(IF((VLOOKUP(Table111318[[#This Row],[Original Field Sample '#]],FieldSampling[],38,FALSE))=Table111318[[#This Row],[Dry Mass Basis]],(Table111318[[#This Row],[REE+Y (ppm)]]/VLOOKUP(Table111318[[#This Row],[Original Field Sample '#]],FieldSampling[],97,FALSE)),"Basis Mismatch"),"")))),"Missing Original Sample") ->  | CG44: =IF(Table111318[[#This Row],[Concentration Factor]]= "Basis Mismatch", "Basis Mismatch", IF(Table111318[[#This Row],[Concentration Factor]]= "Missing Basis", "Missing Basis", IF((Table111318[[#This Row],[Concentration Factor]])="Basis Mismatch", "Basis Mismatch", IF((Table111318[[#This Row],[Concentration Factor]])="Missing Original Sample", "Missing Originial Sample", IF(ISBLANK(Table111318[[#This Row],[Sample Reference '# ('# required to enable calculations))]]),"", IF(ISBLANK(Table111318[[#This Row],[Total % Recovery]]),"Missing Total % Recovery", PRODUCT(Table111318[[#This Row],[Total % Recovery]],Table111318[[#This Row],[Concentration Factor]]))))))) -> 
CC45: =IF(ISBLANK(Table111318[[#This Row],[Sample Reference '# ('# required to enable calculations))]]),"",SUM(Table111318[[#This Row],[La 57]:[Lu 71]])) ->  | CD45: =IF(ISBLANK(Table111318[[#This Row],[Sample Reference '# ('# required to enable calculations))]]),"", Table111318[[#This Row],[REE (ppm)]]+Table111318[[#This Row],[Y 39]]) ->  | CF45: =_xlfn.IFNA(IF(ISBLANK(Table111318[[#This Row],[Sample Reference '# ('# required to enable calculations))]]),"", IF(Table111318[[#This Row],[Dry Mass Basis]]="","Missing Basis", IF(VLOOKUP(Table111318[[#This Row],[Original Field Sample '#]],FieldSampling[],38,FALSE)="","Missing Basis",_xlfn.IFNA(IF((VLOOKUP(Table111318[[#This Row],[Original Field Sample '#]],FieldSampling[],38,FALSE))=Table111318[[#This Row],[Dry Mass Basis]],(Table111318[[#This Row],[REE+Y (ppm)]]/VLOOKUP(Table111318[[#This Row],[Original Field Sample '#]],FieldSampling[],97,FALSE)),"Basis Mismatch"),"")))),"Missing Original Sample") ->  | CG45: =IF(Table111318[[#This Row],[Concentration Factor]]= "Basis Mismatch", "Basis Mismatch", IF(Table111318[[#This Row],[Concentration Factor]]= "Missing Basis", "Missing Basis", IF((Table111318[[#This Row],[Concentration Factor]])="Basis Mismatch", "Basis Mismatch", IF((Table111318[[#This Row],[Concentration Factor]])="Missing Original Sample", "Missing Originial Sample", IF(ISBLANK(Table111318[[#This Row],[Sample Reference '# ('# required to enable calculations))]]),"", IF(ISBLANK(Table111318[[#This Row],[Total % Recovery]]),"Missing Total % Recovery", PRODUCT(Table111318[[#This Row],[Total % Recovery]],Table111318[[#This Row],[Concentration Factor]]))))))) -> 
CC46: =IF(ISBLANK(Table111318[[#This Row],[Sample Reference '# ('# required to enable calculations))]]),"",SUM(Table111318[[#This Row],[La 57]:[Lu 71]])) ->  | CD46: =IF(ISBLANK(Table111318[[#This Row],[Sample Reference '# ('# required to enable calculations))]]),"", Table111318[[#This Row],[REE (ppm)]]+Table111318[[#This Row],[Y 39]]) ->  | CF46: =_xlfn.IFNA(IF(ISBLANK(Table111318[[#This Row],[Sample Reference '# ('# required to enable calculations))]]),"", IF(Table111318[[#This Row],[Dry Mass Basis]]="","Missing Basis", IF(VLOOKUP(Table111318[[#This Row],[Original Field Sample '#]],FieldSampling[],38,FALSE)="","Missing Basis",_xlfn.IFNA(IF((VLOOKUP(Table111318[[#This Row],[Original Field Sample '#]],FieldSampling[],38,FALSE))=Table111318[[#This Row],[Dry Mass Basis]],(Table111318[[#This Row],[REE+Y (ppm)]]/VLOOKUP(Table111318[[#This Row],[Original Field Sample '#]],FieldSampling[],97,FALSE)),"Basis Mismatch"),"")))),"Missing Original Sample") ->  | CG46: =IF(Table111318[[#This Row],[Concentration Factor]]= "Basis Mismatch", "Basis Mismatch", IF(Table111318[[#This Row],[Concentration Factor]]= "Missing Basis", "Missing Basis", IF((Table111318[[#This Row],[Concentration Factor]])="Basis Mismatch", "Basis Mismatch", IF((Table111318[[#This Row],[Concentration Factor]])="Missing Original Sample", "Missing Originial Sample", IF(ISBLANK(Table111318[[#This Row],[Sample Reference '# ('# required to enable calculations))]]),"", IF(ISBLANK(Table111318[[#This Row],[Total % Recovery]]),"Missing Total % Recovery", PRODUCT(Table111318[[#This Row],[Total % Recovery]],Table111318[[#This Row],[Concentration Factor]]))))))) -> 
CC47: =IF(ISBLANK(Table111318[[#This Row],[Sample Reference '# ('# required to enable calculations))]]),"",SUM(Table111318[[#This Row],[La 57]:[Lu 71]])) ->  | CD47: =IF(ISBLANK(Table111318[[#This Row],[Sample Reference '# ('# required to enable calculations))]]),"", Table111318[[#This Row],[REE (ppm)]]+Table111318[[#This Row],[Y 39]]) ->  | CF47: =_xlfn.IFNA(IF(ISBLANK(Table111318[[#This Row],[Sample Reference '# ('# required to enable calculations))]]),"", IF(Table111318[[#This Row],[Dry Mass Basis]]="","Missing Basis", IF(VLOOKUP(Table111318[[#This Row],[Original Field Sample '#]],FieldSampling[],38,FALSE)="","Missing Basis",_xlfn.IFNA(IF((VLOOKUP(Table111318[[#This Row],[Original Field Sample '#]],FieldSampling[],38,FALSE))=Table111318[[#This Row],[Dry Mass Basis]],(Table111318[[#This Row],[REE+Y (ppm)]]/VLOOKUP(Table111318[[#This Row],[Original Field Sample '#]],FieldSampling[],97,FALSE)),"Basis Mismatch"),"")))),"Missing Original Sample") ->  | CG47: =IF(Table111318[[#This Row],[Concentration Factor]]= "Basis Mismatch", "Basis Mismatch", IF(Table111318[[#This Row],[Concentration Factor]]= "Missing Basis", "Missing Basis", IF((Table111318[[#This Row],[Concentration Factor]])="Basis Mismatch", "Basis Mismatch", IF((Table111318[[#This Row],[Concentration Factor]])="Missing Original Sample", "Missing Originial Sample", IF(ISBLANK(Table111318[[#This Row],[Sample Reference '# ('# required to enable calculations))]]),"", IF(ISBLANK(Table111318[[#This Row],[Total % Recovery]]),"Missing Total % Recovery", PRODUCT(Table111318[[#This Row],[Total % Recovery]],Table111318[[#This Row],[Concentration Factor]]))))))) -> 
CC48: =IF(ISBLANK(Table111318[[#This Row],[Sample Reference '# ('# required to enable calculations))]]),"",SUM(Table111318[[#This Row],[La 57]:[Lu 71]])) ->  | CD48: =IF(ISBLANK(Table111318[[#This Row],[Sample Reference '# ('# required to enable calculations))]]),"", Table111318[[#This Row],[REE (ppm)]]+Table111318[[#This Row],[Y 39]]) ->  | CF48: =_xlfn.IFNA(IF(ISBLANK(Table111318[[#This Row],[Sample Reference '# ('# required to enable calculations))]]),"", IF(Table111318[[#This Row],[Dry Mass Basis]]="","Missing Basis", IF(VLOOKUP(Table111318[[#This Row],[Original Field Sample '#]],FieldSampling[],38,FALSE)="","Missing Basis",_xlfn.IFNA(IF((VLOOKUP(Table111318[[#This Row],[Original Field Sample '#]],FieldSampling[],38,FALSE))=Table111318[[#This Row],[Dry Mass Basis]],(Table111318[[#This Row],[REE+Y (ppm)]]/VLOOKUP(Table111318[[#This Row],[Original Field Sample '#]],FieldSampling[],97,FALSE)),"Basis Mismatch"),"")))),"Missing Original Sample") ->  | CG48: =IF(Table111318[[#This Row],[Concentration Factor]]= "Basis Mismatch", "Basis Mismatch", IF(Table111318[[#This Row],[Concentration Factor]]= "Missing Basis", "Missing Basis", IF((Table111318[[#This Row],[Concentration Factor]])="Basis Mismatch", "Basis Mismatch", IF((Table111318[[#This Row],[Concentration Factor]])="Missing Original Sample", "Missing Originial Sample", IF(ISBLANK(Table111318[[#This Row],[Sample Reference '# ('# required to enable calculations))]]),"", IF(ISBLANK(Table111318[[#This Row],[Total % Recovery]]),"Missing Total % Recovery", PRODUCT(Table111318[[#This Row],[Total % Recovery]],Table111318[[#This Row],[Concentration Factor]]))))))) -> 
CC49: =IF(ISBLANK(Table111318[[#This Row],[Sample Reference '# ('# required to enable calculations))]]),"",SUM(Table111318[[#This Row],[La 57]:[Lu 71]])) ->  | CD49: =IF(ISBLANK(Table111318[[#This Row],[Sample Reference '# ('# required to enable calculations))]]),"", Table111318[[#This Row],[REE (ppm)]]+Table111318[[#This Row],[Y 39]]) ->  | CF49: =_xlfn.IFNA(IF(ISBLANK(Table111318[[#This Row],[Sample Reference '# ('# required to enable calculations))]]),"", IF(Table111318[[#This Row],[Dry Mass Basis]]="","Missing Basis", IF(VLOOKUP(Table111318[[#This Row],[Original Field Sample '#]],FieldSampling[],38,FALSE)="","Missing Basis",_xlfn.IFNA(IF((VLOOKUP(Table111318[[#This Row],[Original Field Sample '#]],FieldSampling[],38,FALSE))=Table111318[[#This Row],[Dry Mass Basis]],(Table111318[[#This Row],[REE+Y (ppm)]]/VLOOKUP(Table111318[[#This Row],[Original Field Sample '#]],FieldSampling[],97,FALSE)),"Basis Mismatch"),"")))),"Missing Original Sample") ->  | CG49: =IF(Table111318[[#This Row],[Concentration Factor]]= "Basis Mismatch", "Basis Mismatch", IF(Table111318[[#This Row],[Concentration Factor]]= "Missing Basis", "Missing Basis", IF((Table111318[[#This Row],[Concentration Factor]])="Basis Mismatch", "Basis Mismatch", IF((Table111318[[#This Row],[Concentration Factor]])="Missing Original Sample", "Missing Originial Sample", IF(ISBLANK(Table111318[[#This Row],[Sample Reference '# ('# required to enable calculations))]]),"", IF(ISBLANK(Table111318[[#This Row],[Total % Recovery]]),"Missing Total % Recovery", PRODUCT(Table111318[[#This Row],[Total % Recovery]],Table111318[[#This Row],[Concentration Factor]]))))))) -> 
CC50: =IF(ISBLANK(Table111318[[#This Row],[Sample Reference '# ('# required to enable calculations))]]),"",SUM(Table111318[[#This Row],[La 57]:[Lu 71]])) ->  | CD50: =IF(ISBLANK(Table111318[[#This Row],[Sample Reference '# ('# required to enable calculations))]]),"", Table111318[[#This Row],[REE (ppm)]]+Table111318[[#This Row],[Y 39]]) ->  | CF50: =_xlfn.IFNA(IF(ISBLANK(Table111318[[#This Row],[Sample Reference '# ('# required to enable calculations))]]),"", IF(Table111318[[#This Row],[Dry Mass Basis]]="","Missing Basis", IF(VLOOKUP(Table111318[[#This Row],[Original Field Sample '#]],FieldSampling[],38,FALSE)="","Missing Basis",_xlfn.IFNA(IF((VLOOKUP(Table111318[[#This Row],[Original Field Sample '#]],FieldSampling[],38,FALSE))=Table111318[[#This Row],[Dry Mass Basis]],(Table111318[[#This Row],[REE+Y (ppm)]]/VLOOKUP(Table111318[[#This Row],[Original Field Sample '#]],FieldSampling[],97,FALSE)),"Basis Mismatch"),"")))),"Missing Original Sample") ->  | CG50: =IF(Table111318[[#This Row],[Concentration Factor]]= "Basis Mismatch", "Basis Mismatch", IF(Table111318[[#This Row],[Concentration Factor]]= "Missing Basis", "Missing Basis", IF((Table111318[[#This Row],[Concentration Factor]])="Basis Mismatch", "Basis Mismatch", IF((Table111318[[#This Row],[Concentration Factor]])="Missing Original Sample", "Missing Originial Sample", IF(ISBLANK(Table111318[[#This Row],[Sample Reference '# ('# required to enable calculations))]]),"", IF(ISBLANK(Table111318[[#This Row],[Total % Recovery]]),"Missing Total % Recovery", PRODUCT(Table111318[[#This Row],[Total % Recovery]],Table111318[[#This Row],[Concentration Factor]]))))))) -> 
CC51: =IF(ISBLANK(Table111318[[#This Row],[Sample Reference '# ('# required to enable calculations))]]),"",SUM(Table111318[[#This Row],[La 57]:[Lu 71]])) ->  | CD51: =IF(ISBLANK(Table111318[[#This Row],[Sample Reference '# ('# required to enable calculations))]]),"", Table111318[[#This Row],[REE (ppm)]]+Table111318[[#This Row],[Y 39]]) ->  | CF51: =_xlfn.IFNA(IF(ISBLANK(Table111318[[#This Row],[Sample Reference '# ('# required to enable calculations))]]),"", IF(Table111318[[#This Row],[Dry Mass Basis]]="","Missing Basis", IF(VLOOKUP(Table111318[[#This Row],[Original Field Sample '#]],FieldSampling[],38,FALSE)="","Missing Basis",_xlfn.IFNA(IF((VLOOKUP(Table111318[[#This Row],[Original Field Sample '#]],FieldSampling[],38,FALSE))=Table111318[[#This Row],[Dry Mass Basis]],(Table111318[[#This Row],[REE+Y (ppm)]]/VLOOKUP(Table111318[[#This Row],[Original Field Sample '#]],FieldSampling[],97,FALSE)),"Basis Mismatch"),"")))),"Missing Original Sample") ->  | CG51: =IF(Table111318[[#This Row],[Concentration Factor]]= "Basis Mismatch", "Basis Mismatch", IF(Table111318[[#This Row],[Concentration Factor]]= "Missing Basis", "Missing Basis", IF((Table111318[[#This Row],[Concentration Factor]])="Basis Mismatch", "Basis Mismatch", IF((Table111318[[#This Row],[Concentration Factor]])="Missing Original Sample", "Missing Originial Sample", IF(ISBLANK(Table111318[[#This Row],[Sample Reference '# ('# required to enable calculations))]]),"", IF(ISBLANK(Table111318[[#This Row],[Total % Recovery]]),"Missing Total % Recovery", PRODUCT(Table111318[[#This Row],[Total % Recovery]],Table111318[[#This Row],[Concentration Factor]]))))))) -> 
CC52: =IF(ISBLANK(Table111318[[#This Row],[Sample Reference '# ('# required to enable calculations))]]),"",SUM(Table111318[[#This Row],[La 57]:[Lu 71]])) ->  | CD52: =IF(ISBLANK(Table111318[[#This Row],[Sample Reference '# ('# required to enable calculations))]]),"", Table111318[[#This Row],[REE (ppm)]]+Table111318[[#This Row],[Y 39]]) ->  | CF52: =_xlfn.IFNA(IF(ISBLANK(Table111318[[#This Row],[Sample Reference '# ('# required to enable calculations))]]),"", IF(Table111318[[#This Row],[Dry Mass Basis]]="","Missing Basis", IF(VLOOKUP(Table111318[[#This Row],[Original Field Sample '#]],FieldSampling[],38,FALSE)="","Missing Basis",_xlfn.IFNA(IF((VLOOKUP(Table111318[[#This Row],[Original Field Sample '#]],FieldSampling[],38,FALSE))=Table111318[[#This Row],[Dry Mass Basis]],(Table111318[[#This Row],[REE+Y (ppm)]]/VLOOKUP(Table111318[[#This Row],[Original Field Sample '#]],FieldSampling[],97,FALSE)),"Basis Mismatch"),"")))),"Missing Original Sample") ->  | CG52: =IF(Table111318[[#This Row],[Concentration Factor]]= "Basis Mismatch", "Basis Mismatch", IF(Table111318[[#This Row],[Concentration Factor]]= "Missing Basis", "Missing Basis", IF((Table111318[[#This Row],[Concentration Factor]])="Basis Mismatch", "Basis Mismatch", IF((Table111318[[#This Row],[Concentration Factor]])="Missing Original Sample", "Missing Originial Sample", IF(ISBLANK(Table111318[[#This Row],[Sample Reference '# ('# required to enable calculations))]]),"", IF(ISBLANK(Table111318[[#This Row],[Total % Recovery]]),"Missing Total % Recovery", PRODUCT(Table111318[[#This Row],[Total % Recovery]],Table111318[[#This Row],[Concentration Factor]]))))))) -> 
CC53: =IF(ISBLANK(Table111318[[#This Row],[Sample Reference '# ('# required to enable calculations))]]),"",SUM(Table111318[[#This Row],[La 57]:[Lu 71]])) ->  | CD53: =IF(ISBLANK(Table111318[[#This Row],[Sample Reference '# ('# required to enable calculations))]]),"", Table111318[[#This Row],[REE (ppm)]]+Table111318[[#This Row],[Y 39]]) ->  | CF53: =_xlfn.IFNA(IF(ISBLANK(Table111318[[#This Row],[Sample Reference '# ('# required to enable calculations))]]),"", IF(Table111318[[#This Row],[Dry Mass Basis]]="","Missing Basis", IF(VLOOKUP(Table111318[[#This Row],[Original Field Sample '#]],FieldSampling[],38,FALSE)="","Missing Basis",_xlfn.IFNA(IF((VLOOKUP(Table111318[[#This Row],[Original Field Sample '#]],FieldSampling[],38,FALSE))=Table111318[[#This Row],[Dry Mass Basis]],(Table111318[[#This Row],[REE+Y (ppm)]]/VLOOKUP(Table111318[[#This Row],[Original Field Sample '#]],FieldSampling[],97,FALSE)),"Basis Mismatch"),"")))),"Missing Original Sample") ->  | CG53: =IF(Table111318[[#This Row],[Concentration Factor]]= "Basis Mismatch", "Basis Mismatch", IF(Table111318[[#This Row],[Concentration Factor]]= "Missing Basis", "Missing Basis", IF((Table111318[[#This Row],[Concentration Factor]])="Basis Mismatch", "Basis Mismatch", IF((Table111318[[#This Row],[Concentration Factor]])="Missing Original Sample", "Missing Originial Sample", IF(ISBLANK(Table111318[[#This Row],[Sample Reference '# ('# required to enable calculations))]]),"", IF(ISBLANK(Table111318[[#This Row],[Total % Recovery]]),"Missing Total % Recovery", PRODUCT(Table111318[[#This Row],[Total % Recovery]],Table111318[[#This Row],[Concentration Factor]]))))))) -> 
CC54: =IF(ISBLANK(Table111318[[#This Row],[Sample Reference '# ('# required to enable calculations))]]),"",SUM(Table111318[[#This Row],[La 57]:[Lu 71]])) ->  | CD54: =IF(ISBLANK(Table111318[[#This Row],[Sample Reference '# ('# required to enable calculations))]]),"", Table111318[[#This Row],[REE (ppm)]]+Table111318[[#This Row],[Y 39]]) ->  | CF54: =_xlfn.IFNA(IF(ISBLANK(Table111318[[#This Row],[Sample Reference '# ('# required to enable calculations))]]),"", IF(Table111318[[#This Row],[Dry Mass Basis]]="","Missing Basis", IF(VLOOKUP(Table111318[[#This Row],[Original Field Sample '#]],FieldSampling[],38,FALSE)="","Missing Basis",_xlfn.IFNA(IF((VLOOKUP(Table111318[[#This Row],[Original Field Sample '#]],FieldSampling[],38,FALSE))=Table111318[[#This Row],[Dry Mass Basis]],(Table111318[[#This Row],[REE+Y (ppm)]]/VLOOKUP(Table111318[[#This Row],[Original Field Sample '#]],FieldSampling[],97,FALSE)),"Basis Mismatch"),"")))),"Missing Original Sample") ->  | CG54: =IF(Table111318[[#This Row],[Concentration Factor]]= "Basis Mismatch", "Basis Mismatch", IF(Table111318[[#This Row],[Concentration Factor]]= "Missing Basis", "Missing Basis", IF((Table111318[[#This Row],[Concentration Factor]])="Basis Mismatch", "Basis Mismatch", IF((Table111318[[#This Row],[Concentration Factor]])="Missing Original Sample", "Missing Originial Sample", IF(ISBLANK(Table111318[[#This Row],[Sample Reference '# ('# required to enable calculations))]]),"", IF(ISBLANK(Table111318[[#This Row],[Total % Recovery]]),"Missing Total % Recovery", PRODUCT(Table111318[[#This Row],[Total % Recovery]],Table111318[[#This Row],[Concentration Factor]]))))))) -> 
CC55: =IF(ISBLANK(Table111318[[#This Row],[Sample Reference '# ('# required to enable calculations))]]),"",SUM(Table111318[[#This Row],[La 57]:[Lu 71]])) ->  | CD55: =IF(ISBLANK(Table111318[[#This Row],[Sample Reference '# ('# required to enable calculations))]]),"", Table111318[[#This Row],[REE (ppm)]]+Table111318[[#This Row],[Y 39]]) ->  | CF55: =_xlfn.IFNA(IF(ISBLANK(Table111318[[#This Row],[Sample Reference '# ('# required to enable calculations))]]),"", IF(Table111318[[#This Row],[Dry Mass Basis]]="","Missing Basis", IF(VLOOKUP(Table111318[[#This Row],[Original Field Sample '#]],FieldSampling[],38,FALSE)="","Missing Basis",_xlfn.IFNA(IF((VLOOKUP(Table111318[[#This Row],[Original Field Sample '#]],FieldSampling[],38,FALSE))=Table111318[[#This Row],[Dry Mass Basis]],(Table111318[[#This Row],[REE+Y (ppm)]]/VLOOKUP(Table111318[[#This Row],[Original Field Sample '#]],FieldSampling[],97,FALSE)),"Basis Mismatch"),"")))),"Missing Original Sample") ->  | CG55: =IF(Table111318[[#This Row],[Concentration Factor]]= "Basis Mismatch", "Basis Mismatch", IF(Table111318[[#This Row],[Concentration Factor]]= "Missing Basis", "Missing Basis", IF((Table111318[[#This Row],[Concentration Factor]])="Basis Mismatch", "Basis Mismatch", IF((Table111318[[#This Row],[Concentration Factor]])="Missing Original Sample", "Missing Originial Sample", IF(ISBLANK(Table111318[[#This Row],[Sample Reference '# ('# required to enable calculations))]]),"", IF(ISBLANK(Table111318[[#This Row],[Total % Recovery]]),"Missing Total % Recovery", PRODUCT(Table111318[[#This Row],[Total % Recovery]],Table111318[[#This Row],[Concentration Factor]]))))))) -> 
CC56: =IF(ISBLANK(Table111318[[#This Row],[Sample Reference '# ('# required to enable calculations))]]),"",SUM(Table111318[[#This Row],[La 57]:[Lu 71]])) ->  | CD56: =IF(ISBLANK(Table111318[[#This Row],[Sample Reference '# ('# required to enable calculations))]]),"", Table111318[[#This Row],[REE (ppm)]]+Table111318[[#This Row],[Y 39]]) ->  | CF56: =_xlfn.IFNA(IF(ISBLANK(Table111318[[#This Row],[Sample Reference '# ('# required to enable calculations))]]),"", IF(Table111318[[#This Row],[Dry Mass Basis]]="","Missing Basis", IF(VLOOKUP(Table111318[[#This Row],[Original Field Sample '#]],FieldSampling[],38,FALSE)="","Missing Basis",_xlfn.IFNA(IF((VLOOKUP(Table111318[[#This Row],[Original Field Sample '#]],FieldSampling[],38,FALSE))=Table111318[[#This Row],[Dry Mass Basis]],(Table111318[[#This Row],[REE+Y (ppm)]]/VLOOKUP(Table111318[[#This Row],[Original Field Sample '#]],FieldSampling[],97,FALSE)),"Basis Mismatch"),"")))),"Missing Original Sample") ->  | CG56: =IF(Table111318[[#This Row],[Concentration Factor]]= "Basis Mismatch", "Basis Mismatch", IF(Table111318[[#This Row],[Concentration Factor]]= "Missing Basis", "Missing Basis", IF((Table111318[[#This Row],[Concentration Factor]])="Basis Mismatch", "Basis Mismatch", IF((Table111318[[#This Row],[Concentration Factor]])="Missing Original Sample", "Missing Originial Sample", IF(ISBLANK(Table111318[[#This Row],[Sample Reference '# ('# required to enable calculations))]]),"", IF(ISBLANK(Table111318[[#This Row],[Total % Recovery]]),"Missing Total % Recovery", PRODUCT(Table111318[[#This Row],[Total % Recovery]],Table111318[[#This Row],[Concentration Factor]]))))))) -> 
CC57: =IF(ISBLANK(Table111318[[#This Row],[Sample Reference '# ('# required to enable calculations))]]),"",SUM(Table111318[[#This Row],[La 57]:[Lu 71]])) ->  | CD57: =IF(ISBLANK(Table111318[[#This Row],[Sample Reference '# ('# required to enable calculations))]]),"", Table111318[[#This Row],[REE (ppm)]]+Table111318[[#This Row],[Y 39]]) ->  | CF57: =_xlfn.IFNA(IF(ISBLANK(Table111318[[#This Row],[Sample Reference '# ('# required to enable calculations))]]),"", IF(Table111318[[#This Row],[Dry Mass Basis]]="","Missing Basis", IF(VLOOKUP(Table111318[[#This Row],[Original Field Sample '#]],FieldSampling[],38,FALSE)="","Missing Basis",_xlfn.IFNA(IF((VLOOKUP(Table111318[[#This Row],[Original Field Sample '#]],FieldSampling[],38,FALSE))=Table111318[[#This Row],[Dry Mass Basis]],(Table111318[[#This Row],[REE+Y (ppm)]]/VLOOKUP(Table111318[[#This Row],[Original Field Sample '#]],FieldSampling[],97,FALSE)),"Basis Mismatch"),"")))),"Missing Original Sample") ->  | CG57: =IF(Table111318[[#This Row],[Concentration Factor]]= "Basis Mismatch", "Basis Mismatch", IF(Table111318[[#This Row],[Concentration Factor]]= "Missing Basis", "Missing Basis", IF((Table111318[[#This Row],[Concentration Factor]])="Basis Mismatch", "Basis Mismatch", IF((Table111318[[#This Row],[Concentration Factor]])="Missing Original Sample", "Missing Originial Sample", IF(ISBLANK(Table111318[[#This Row],[Sample Reference '# ('# required to enable calculations))]]),"", IF(ISBLANK(Table111318[[#This Row],[Total % Recovery]]),"Missing Total % Recovery", PRODUCT(Table111318[[#This Row],[Total % Recovery]],Table111318[[#This Row],[Concentration Factor]]))))))) -> 
CC58: =IF(ISBLANK(Table111318[[#This Row],[Sample Reference '# ('# required to enable calculations))]]),"",SUM(Table111318[[#This Row],[La 57]:[Lu 71]])) ->  | CD58: =IF(ISBLANK(Table111318[[#This Row],[Sample Reference '# ('# required to enable calculations))]]),"", Table111318[[#This Row],[REE (ppm)]]+Table111318[[#This Row],[Y 39]]) ->  | CF58: =_xlfn.IFNA(IF(ISBLANK(Table111318[[#This Row],[Sample Reference '# ('# required to enable calculations))]]),"", IF(Table111318[[#This Row],[Dry Mass Basis]]="","Missing Basis", IF(VLOOKUP(Table111318[[#This Row],[Original Field Sample '#]],FieldSampling[],38,FALSE)="","Missing Basis",_xlfn.IFNA(IF((VLOOKUP(Table111318[[#This Row],[Original Field Sample '#]],FieldSampling[],38,FALSE))=Table111318[[#This Row],[Dry Mass Basis]],(Table111318[[#This Row],[REE+Y (ppm)]]/VLOOKUP(Table111318[[#This Row],[Original Field Sample '#]],FieldSampling[],97,FALSE)),"Basis Mismatch"),"")))),"Missing Original Sample") ->  | CG58: =IF(Table111318[[#This Row],[Concentration Factor]]= "Basis Mismatch", "Basis Mismatch", IF(Table111318[[#This Row],[Concentration Factor]]= "Missing Basis", "Missing Basis", IF((Table111318[[#This Row],[Concentration Factor]])="Basis Mismatch", "Basis Mismatch", IF((Table111318[[#This Row],[Concentration Factor]])="Missing Original Sample", "Missing Originial Sample", IF(ISBLANK(Table111318[[#This Row],[Sample Reference '# ('# required to enable calculations))]]),"", IF(ISBLANK(Table111318[[#This Row],[Total % Recovery]]),"Missing Total % Recovery", PRODUCT(Table111318[[#This Row],[Total % Recovery]],Table111318[[#This Row],[Concentration Factor]]))))))) -> 
CC59: =IF(ISBLANK(Table111318[[#This Row],[Sample Reference '# ('# required to enable calculations))]]),"",SUM(Table111318[[#This Row],[La 57]:[Lu 71]])) ->  | CD59: =IF(ISBLANK(Table111318[[#This Row],[Sample Reference '# ('# required to enable calculations))]]),"", Table111318[[#This Row],[REE (ppm)]]+Table111318[[#This Row],[Y 39]]) ->  | CF59: =_xlfn.IFNA(IF(ISBLANK(Table111318[[#This Row],[Sample Reference '# ('# required to enable calculations))]]),"", IF(Table111318[[#This Row],[Dry Mass Basis]]="","Missing Basis", IF(VLOOKUP(Table111318[[#This Row],[Original Field Sample '#]],FieldSampling[],38,FALSE)="","Missing Basis",_xlfn.IFNA(IF((VLOOKUP(Table111318[[#This Row],[Original Field Sample '#]],FieldSampling[],38,FALSE))=Table111318[[#This Row],[Dry Mass Basis]],(Table111318[[#This Row],[REE+Y (ppm)]]/VLOOKUP(Table111318[[#This Row],[Original Field Sample '#]],FieldSampling[],97,FALSE)),"Basis Mismatch"),"")))),"Missing Original Sample") ->  | CG59: =IF(Table111318[[#This Row],[Concentration Factor]]= "Basis Mismatch", "Basis Mismatch", IF(Table111318[[#This Row],[Concentration Factor]]= "Missing Basis", "Missing Basis", IF((Table111318[[#This Row],[Concentration Factor]])="Basis Mismatch", "Basis Mismatch", IF((Table111318[[#This Row],[Concentration Factor]])="Missing Original Sample", "Missing Originial Sample", IF(ISBLANK(Table111318[[#This Row],[Sample Reference '# ('# required to enable calculations))]]),"", IF(ISBLANK(Table111318[[#This Row],[Total % Recovery]]),"Missing Total % Recovery", PRODUCT(Table111318[[#This Row],[Total % Recovery]],Table111318[[#This Row],[Concentration Factor]]))))))) -> 
CC60: =IF(ISBLANK(Table111318[[#This Row],[Sample Reference '# ('# required to enable calculations))]]),"",SUM(Table111318[[#This Row],[La 57]:[Lu 71]])) ->  | CD60: =IF(ISBLANK(Table111318[[#This Row],[Sample Reference '# ('# required to enable calculations))]]),"", Table111318[[#This Row],[REE (ppm)]]+Table111318[[#This Row],[Y 39]]) ->  | CF60: =_xlfn.IFNA(IF(ISBLANK(Table111318[[#This Row],[Sample Reference '# ('# required to enable calculations))]]),"", IF(Table111318[[#This Row],[Dry Mass Basis]]="","Missing Basis", IF(VLOOKUP(Table111318[[#This Row],[Original Field Sample '#]],FieldSampling[],38,FALSE)="","Missing Basis",_xlfn.IFNA(IF((VLOOKUP(Table111318[[#This Row],[Original Field Sample '#]],FieldSampling[],38,FALSE))=Table111318[[#This Row],[Dry Mass Basis]],(Table111318[[#This Row],[REE+Y (ppm)]]/VLOOKUP(Table111318[[#This Row],[Original Field Sample '#]],FieldSampling[],97,FALSE)),"Basis Mismatch"),"")))),"Missing Original Sample") ->  | CG60: =IF(Table111318[[#This Row],[Concentration Factor]]= "Basis Mismatch", "Basis Mismatch", IF(Table111318[[#This Row],[Concentration Factor]]= "Missing Basis", "Missing Basis", IF((Table111318[[#This Row],[Concentration Factor]])="Basis Mismatch", "Basis Mismatch", IF((Table111318[[#This Row],[Concentration Factor]])="Missing Original Sample", "Missing Originial Sample", IF(ISBLANK(Table111318[[#This Row],[Sample Reference '# ('# required to enable calculations))]]),"", IF(ISBLANK(Table111318[[#This Row],[Total % Recovery]]),"Missing Total % Recovery", PRODUCT(Table111318[[#This Row],[Total % Recovery]],Table111318[[#This Row],[Concentration Factor]]))))))) -> 
CC61: =IF(ISBLANK(Table111318[[#This Row],[Sample Reference '# ('# required to enable calculations))]]),"",SUM(Table111318[[#This Row],[La 57]:[Lu 71]])) ->  | CD61: =IF(ISBLANK(Table111318[[#This Row],[Sample Reference '# ('# required to enable calculations))]]),"", Table111318[[#This Row],[REE (ppm)]]+Table111318[[#This Row],[Y 39]]) ->  | CF61: =_xlfn.IFNA(IF(ISBLANK(Table111318[[#This Row],[Sample Reference '# ('# required to enable calculations))]]),"", IF(Table111318[[#This Row],[Dry Mass Basis]]="","Missing Basis", IF(VLOOKUP(Table111318[[#This Row],[Original Field Sample '#]],FieldSampling[],38,FALSE)="","Missing Basis",_xlfn.IFNA(IF((VLOOKUP(Table111318[[#This Row],[Original Field Sample '#]],FieldSampling[],38,FALSE))=Table111318[[#This Row],[Dry Mass Basis]],(Table111318[[#This Row],[REE+Y (ppm)]]/VLOOKUP(Table111318[[#This Row],[Original Field Sample '#]],FieldSampling[],97,FALSE)),"Basis Mismatch"),"")))),"Missing Original Sample") ->  | CG61: =IF(Table111318[[#This Row],[Concentration Factor]]= "Basis Mismatch", "Basis Mismatch", IF(Table111318[[#This Row],[Concentration Factor]]= "Missing Basis", "Missing Basis", IF((Table111318[[#This Row],[Concentration Factor]])="Basis Mismatch", "Basis Mismatch", IF((Table111318[[#This Row],[Concentration Factor]])="Missing Original Sample", "Missing Originial Sample", IF(ISBLANK(Table111318[[#This Row],[Sample Reference '# ('# required to enable calculations))]]),"", IF(ISBLANK(Table111318[[#This Row],[Total % Recovery]]),"Missing Total % Recovery", PRODUCT(Table111318[[#This Row],[Total % Recovery]],Table111318[[#This Row],[Concentration Factor]]))))))) -> 
CC62: =IF(ISBLANK(Table111318[[#This Row],[Sample Reference '# ('# required to enable calculations))]]),"",SUM(Table111318[[#This Row],[La 57]:[Lu 71]])) ->  | CD62: =IF(ISBLANK(Table111318[[#This Row],[Sample Reference '# ('# required to enable calculations))]]),"", Table111318[[#This Row],[REE (ppm)]]+Table111318[[#This Row],[Y 39]]) ->  | CF62: =_xlfn.IFNA(IF(ISBLANK(Table111318[[#This Row],[Sample Reference '# ('# required to enable calculations))]]),"", IF(Table111318[[#This Row],[Dry Mass Basis]]="","Missing Basis", IF(VLOOKUP(Table111318[[#This Row],[Original Field Sample '#]],FieldSampling[],38,FALSE)="","Missing Basis",_xlfn.IFNA(IF((VLOOKUP(Table111318[[#This Row],[Original Field Sample '#]],FieldSampling[],38,FALSE))=Table111318[[#This Row],[Dry Mass Basis]],(Table111318[[#This Row],[REE+Y (ppm)]]/VLOOKUP(Table111318[[#This Row],[Original Field Sample '#]],FieldSampling[],97,FALSE)),"Basis Mismatch"),"")))),"Missing Original Sample") ->  | CG62: =IF(Table111318[[#This Row],[Concentration Factor]]= "Basis Mismatch", "Basis Mismatch", IF(Table111318[[#This Row],[Concentration Factor]]= "Missing Basis", "Missing Basis", IF((Table111318[[#This Row],[Concentration Factor]])="Basis Mismatch", "Basis Mismatch", IF((Table111318[[#This Row],[Concentration Factor]])="Missing Original Sample", "Missing Originial Sample", IF(ISBLANK(Table111318[[#This Row],[Sample Reference '# ('# required to enable calculations))]]),"", IF(ISBLANK(Table111318[[#This Row],[Total % Recovery]]),"Missing Total % Recovery", PRODUCT(Table111318[[#This Row],[Total % Recovery]],Table111318[[#This Row],[Concentration Factor]]))))))) -> 
CC63: =IF(ISBLANK(Table111318[[#This Row],[Sample Reference '# ('# required to enable calculations))]]),"",SUM(Table111318[[#This Row],[La 57]:[Lu 71]])) ->  | CD63: =IF(ISBLANK(Table111318[[#This Row],[Sample Reference '# ('# required to enable calculations))]]),"", Table111318[[#This Row],[REE (ppm)]]+Table111318[[#This Row],[Y 39]]) ->  | CF63: =_xlfn.IFNA(IF(ISBLANK(Table111318[[#This Row],[Sample Reference '# ('# required to enable calculations))]]),"", IF(Table111318[[#This Row],[Dry Mass Basis]]="","Missing Basis", IF(VLOOKUP(Table111318[[#This Row],[Original Field Sample '#]],FieldSampling[],38,FALSE)="","Missing Basis",_xlfn.IFNA(IF((VLOOKUP(Table111318[[#This Row],[Original Field Sample '#]],FieldSampling[],38,FALSE))=Table111318[[#This Row],[Dry Mass Basis]],(Table111318[[#This Row],[REE+Y (ppm)]]/VLOOKUP(Table111318[[#This Row],[Original Field Sample '#]],FieldSampling[],97,FALSE)),"Basis Mismatch"),"")))),"Missing Original Sample") ->  | CG63: =IF(Table111318[[#This Row],[Concentration Factor]]= "Basis Mismatch", "Basis Mismatch", IF(Table111318[[#This Row],[Concentration Factor]]= "Missing Basis", "Missing Basis", IF((Table111318[[#This Row],[Concentration Factor]])="Basis Mismatch", "Basis Mismatch", IF((Table111318[[#This Row],[Concentration Factor]])="Missing Original Sample", "Missing Originial Sample", IF(ISBLANK(Table111318[[#This Row],[Sample Reference '# ('# required to enable calculations))]]),"", IF(ISBLANK(Table111318[[#This Row],[Total % Recovery]]),"Missing Total % Recovery", PRODUCT(Table111318[[#This Row],[Total % Recovery]],Table111318[[#This Row],[Concentration Factor]]))))))) -> 
CC64: =IF(ISBLANK(Table111318[[#This Row],[Sample Reference '# ('# required to enable calculations))]]),"",SUM(Table111318[[#This Row],[La 57]:[Lu 71]])) ->  | CD64: =IF(ISBLANK(Table111318[[#This Row],[Sample Reference '# ('# required to enable calculations))]]),"", Table111318[[#This Row],[REE (ppm)]]+Table111318[[#This Row],[Y 39]]) ->  | CF64: =_xlfn.IFNA(IF(ISBLANK(Table111318[[#This Row],[Sample Reference '# ('# required to enable calculations))]]),"", IF(Table111318[[#This Row],[Dry Mass Basis]]="","Missing Basis", IF(VLOOKUP(Table111318[[#This Row],[Original Field Sample '#]],FieldSampling[],38,FALSE)="","Missing Basis",_xlfn.IFNA(IF((VLOOKUP(Table111318[[#This Row],[Original Field Sample '#]],FieldSampling[],38,FALSE))=Table111318[[#This Row],[Dry Mass Basis]],(Table111318[[#This Row],[REE+Y (ppm)]]/VLOOKUP(Table111318[[#This Row],[Original Field Sample '#]],FieldSampling[],97,FALSE)),"Basis Mismatch"),"")))),"Missing Original Sample") ->  | CG64: =IF(Table111318[[#This Row],[Concentration Factor]]= "Basis Mismatch", "Basis Mismatch", IF(Table111318[[#This Row],[Concentration Factor]]= "Missing Basis", "Missing Basis", IF((Table111318[[#This Row],[Concentration Factor]])="Basis Mismatch", "Basis Mismatch", IF((Table111318[[#This Row],[Concentration Factor]])="Missing Original Sample", "Missing Originial Sample", IF(ISBLANK(Table111318[[#This Row],[Sample Reference '# ('# required to enable calculations))]]),"", IF(ISBLANK(Table111318[[#This Row],[Total % Recovery]]),"Missing Total % Recovery", PRODUCT(Table111318[[#This Row],[Total % Recovery]],Table111318[[#This Row],[Concentration Factor]]))))))) -> 
CC65: =IF(ISBLANK(Table111318[[#This Row],[Sample Reference '# ('# required to enable calculations))]]),"",SUM(Table111318[[#This Row],[La 57]:[Lu 71]])) ->  | CD65: =IF(ISBLANK(Table111318[[#This Row],[Sample Reference '# ('# required to enable calculations))]]),"", Table111318[[#This Row],[REE (ppm)]]+Table111318[[#This Row],[Y 39]]) ->  | CF65: =_xlfn.IFNA(IF(ISBLANK(Table111318[[#This Row],[Sample Reference '# ('# required to enable calculations))]]),"", IF(Table111318[[#This Row],[Dry Mass Basis]]="","Missing Basis", IF(VLOOKUP(Table111318[[#This Row],[Original Field Sample '#]],FieldSampling[],38,FALSE)="","Missing Basis",_xlfn.IFNA(IF((VLOOKUP(Table111318[[#This Row],[Original Field Sample '#]],FieldSampling[],38,FALSE))=Table111318[[#This Row],[Dry Mass Basis]],(Table111318[[#This Row],[REE+Y (ppm)]]/VLOOKUP(Table111318[[#This Row],[Original Field Sample '#]],FieldSampling[],97,FALSE)),"Basis Mismatch"),"")))),"Missing Original Sample") ->  | CG65: =IF(Table111318[[#This Row],[Concentration Factor]]= "Basis Mismatch", "Basis Mismatch", IF(Table111318[[#This Row],[Concentration Factor]]= "Missing Basis", "Missing Basis", IF((Table111318[[#This Row],[Concentration Factor]])="Basis Mismatch", "Basis Mismatch", IF((Table111318[[#This Row],[Concentration Factor]])="Missing Original Sample", "Missing Originial Sample", IF(ISBLANK(Table111318[[#This Row],[Sample Reference '# ('# required to enable calculations))]]),"", IF(ISBLANK(Table111318[[#This Row],[Total % Recovery]]),"Missing Total % Recovery", PRODUCT(Table111318[[#This Row],[Total % Recovery]],Table111318[[#This Row],[Concentration Factor]]))))))) -> 
CC66: =IF(ISBLANK(Table111318[[#This Row],[Sample Reference '# ('# required to enable calculations))]]),"",SUM(Table111318[[#This Row],[La 57]:[Lu 71]])) ->  | CD66: =IF(ISBLANK(Table111318[[#This Row],[Sample Reference '# ('# required to enable calculations))]]),"", Table111318[[#This Row],[REE (ppm)]]+Table111318[[#This Row],[Y 39]]) ->  | CF66: =_xlfn.IFNA(IF(ISBLANK(Table111318[[#This Row],[Sample Reference '# ('# required to enable calculations))]]),"", IF(Table111318[[#This Row],[Dry Mass Basis]]="","Missing Basis", IF(VLOOKUP(Table111318[[#This Row],[Original Field Sample '#]],FieldSampling[],38,FALSE)="","Missing Basis",_xlfn.IFNA(IF((VLOOKUP(Table111318[[#This Row],[Original Field Sample '#]],FieldSampling[],38,FALSE))=Table111318[[#This Row],[Dry Mass Basis]],(Table111318[[#This Row],[REE+Y (ppm)]]/VLOOKUP(Table111318[[#This Row],[Original Field Sample '#]],FieldSampling[],97,FALSE)),"Basis Mismatch"),"")))),"Missing Original Sample") ->  | CG66: =IF(Table111318[[#This Row],[Concentration Factor]]= "Basis Mismatch", "Basis Mismatch", IF(Table111318[[#This Row],[Concentration Factor]]= "Missing Basis", "Missing Basis", IF((Table111318[[#This Row],[Concentration Factor]])="Basis Mismatch", "Basis Mismatch", IF((Table111318[[#This Row],[Concentration Factor]])="Missing Original Sample", "Missing Originial Sample", IF(ISBLANK(Table111318[[#This Row],[Sample Reference '# ('# required to enable calculations))]]),"", IF(ISBLANK(Table111318[[#This Row],[Total % Recovery]]),"Missing Total % Recovery", PRODUCT(Table111318[[#This Row],[Total % Recovery]],Table111318[[#This Row],[Concentration Factor]]))))))) -> 
CC67: =IF(ISBLANK(Table111318[[#This Row],[Sample Reference '# ('# required to enable calculations))]]),"",SUM(Table111318[[#This Row],[La 57]:[Lu 71]])) ->  | CD67: =IF(ISBLANK(Table111318[[#This Row],[Sample Reference '# ('# required to enable calculations))]]),"", Table111318[[#This Row],[REE (ppm)]]+Table111318[[#This Row],[Y 39]]) ->  | CF67: =_xlfn.IFNA(IF(ISBLANK(Table111318[[#This Row],[Sample Reference '# ('# required to enable calculations))]]),"", IF(Table111318[[#This Row],[Dry Mass Basis]]="","Missing Basis", IF(VLOOKUP(Table111318[[#This Row],[Original Field Sample '#]],FieldSampling[],38,FALSE)="","Missing Basis",_xlfn.IFNA(IF((VLOOKUP(Table111318[[#This Row],[Original Field Sample '#]],FieldSampling[],38,FALSE))=Table111318[[#This Row],[Dry Mass Basis]],(Table111318[[#This Row],[REE+Y (ppm)]]/VLOOKUP(Table111318[[#This Row],[Original Field Sample '#]],FieldSampling[],97,FALSE)),"Basis Mismatch"),"")))),"Missing Original Sample") ->  | CG67: =IF(Table111318[[#This Row],[Concentration Factor]]= "Basis Mismatch", "Basis Mismatch", IF(Table111318[[#This Row],[Concentration Factor]]= "Missing Basis", "Missing Basis", IF((Table111318[[#This Row],[Concentration Factor]])="Basis Mismatch", "Basis Mismatch", IF((Table111318[[#This Row],[Concentration Factor]])="Missing Original Sample", "Missing Originial Sample", IF(ISBLANK(Table111318[[#This Row],[Sample Reference '# ('# required to enable calculations))]]),"", IF(ISBLANK(Table111318[[#This Row],[Total % Recovery]]),"Missing Total % Recovery", PRODUCT(Table111318[[#This Row],[Total % Recovery]],Table111318[[#This Row],[Concentration Factor]]))))))) -> 
CC68: =IF(ISBLANK(Table111318[[#This Row],[Sample Reference '# ('# required to enable calculations))]]),"",SUM(Table111318[[#This Row],[La 57]:[Lu 71]])) ->  | CD68: =IF(ISBLANK(Table111318[[#This Row],[Sample Reference '# ('# required to enable calculations))]]),"", Table111318[[#This Row],[REE (ppm)]]+Table111318[[#This Row],[Y 39]]) ->  | CF68: =_xlfn.IFNA(IF(ISBLANK(Table111318[[#This Row],[Sample Reference '# ('# required to enable calculations))]]),"", IF(Table111318[[#This Row],[Dry Mass Basis]]="","Missing Basis", IF(VLOOKUP(Table111318[[#This Row],[Original Field Sample '#]],FieldSampling[],38,FALSE)="","Missing Basis",_xlfn.IFNA(IF((VLOOKUP(Table111318[[#This Row],[Original Field Sample '#]],FieldSampling[],38,FALSE))=Table111318[[#This Row],[Dry Mass Basis]],(Table111318[[#This Row],[REE+Y (ppm)]]/VLOOKUP(Table111318[[#This Row],[Original Field Sample '#]],FieldSampling[],97,FALSE)),"Basis Mismatch"),"")))),"Missing Original Sample") ->  | CG68: =IF(Table111318[[#This Row],[Concentration Factor]]= "Basis Mismatch", "Basis Mismatch", IF(Table111318[[#This Row],[Concentration Factor]]= "Missing Basis", "Missing Basis", IF((Table111318[[#This Row],[Concentration Factor]])="Basis Mismatch", "Basis Mismatch", IF((Table111318[[#This Row],[Concentration Factor]])="Missing Original Sample", "Missing Originial Sample", IF(ISBLANK(Table111318[[#This Row],[Sample Reference '# ('# required to enable calculations))]]),"", IF(ISBLANK(Table111318[[#This Row],[Total % Recovery]]),"Missing Total % Recovery", PRODUCT(Table111318[[#This Row],[Total % Recovery]],Table111318[[#This Row],[Concentration Factor]]))))))) -> 
CC69: =IF(ISBLANK(Table111318[[#This Row],[Sample Reference '# ('# required to enable calculations))]]),"",SUM(Table111318[[#This Row],[La 57]:[Lu 71]])) ->  | CD69: =IF(ISBLANK(Table111318[[#This Row],[Sample Reference '# ('# required to enable calculations))]]),"", Table111318[[#This Row],[REE (ppm)]]+Table111318[[#This Row],[Y 39]]) ->  | CF69: =_xlfn.IFNA(IF(ISBLANK(Table111318[[#This Row],[Sample Reference '# ('# required to enable calculations))]]),"", IF(Table111318[[#This Row],[Dry Mass Basis]]="","Missing Basis", IF(VLOOKUP(Table111318[[#This Row],[Original Field Sample '#]],FieldSampling[],38,FALSE)="","Missing Basis",_xlfn.IFNA(IF((VLOOKUP(Table111318[[#This Row],[Original Field Sample '#]],FieldSampling[],38,FALSE))=Table111318[[#This Row],[Dry Mass Basis]],(Table111318[[#This Row],[REE+Y (ppm)]]/VLOOKUP(Table111318[[#This Row],[Original Field Sample '#]],FieldSampling[],97,FALSE)),"Basis Mismatch"),"")))),"Missing Original Sample") ->  | CG69: =IF(Table111318[[#This Row],[Concentration Factor]]= "Basis Mismatch", "Basis Mismatch", IF(Table111318[[#This Row],[Concentration Factor]]= "Missing Basis", "Missing Basis", IF((Table111318[[#This Row],[Concentration Factor]])="Basis Mismatch", "Basis Mismatch", IF((Table111318[[#This Row],[Concentration Factor]])="Missing Original Sample", "Missing Originial Sample", IF(ISBLANK(Table111318[[#This Row],[Sample Reference '# ('# required to enable calculations))]]),"", IF(ISBLANK(Table111318[[#This Row],[Total % Recovery]]),"Missing Total % Recovery", PRODUCT(Table111318[[#This Row],[Total % Recovery]],Table111318[[#This Row],[Concentration Factor]]))))))) -> 
CC70: =IF(ISBLANK(Table111318[[#This Row],[Sample Reference '# ('# required to enable calculations))]]),"",SUM(Table111318[[#This Row],[La 57]:[Lu 71]])) ->  | CD70: =IF(ISBLANK(Table111318[[#This Row],[Sample Reference '# ('# required to enable calculations))]]),"", Table111318[[#This Row],[REE (ppm)]]+Table111318[[#This Row],[Y 39]]) ->  | CF70: =_xlfn.IFNA(IF(ISBLANK(Table111318[[#This Row],[Sample Reference '# ('# required to enable calculations))]]),"", IF(Table111318[[#This Row],[Dry Mass Basis]]="","Missing Basis", IF(VLOOKUP(Table111318[[#This Row],[Original Field Sample '#]],FieldSampling[],38,FALSE)="","Missing Basis",_xlfn.IFNA(IF((VLOOKUP(Table111318[[#This Row],[Original Field Sample '#]],FieldSampling[],38,FALSE))=Table111318[[#This Row],[Dry Mass Basis]],(Table111318[[#This Row],[REE+Y (ppm)]]/VLOOKUP(Table111318[[#This Row],[Original Field Sample '#]],FieldSampling[],97,FALSE)),"Basis Mismatch"),"")))),"Missing Original Sample") ->  | CG70: =IF(Table111318[[#This Row],[Concentration Factor]]= "Basis Mismatch", "Basis Mismatch", IF(Table111318[[#This Row],[Concentration Factor]]= "Missing Basis", "Missing Basis", IF((Table111318[[#This Row],[Concentration Factor]])="Basis Mismatch", "Basis Mismatch", IF((Table111318[[#This Row],[Concentration Factor]])="Missing Original Sample", "Missing Originial Sample", IF(ISBLANK(Table111318[[#This Row],[Sample Reference '# ('# required to enable calculations))]]),"", IF(ISBLANK(Table111318[[#This Row],[Total % Recovery]]),"Missing Total % Recovery", PRODUCT(Table111318[[#This Row],[Total % Recovery]],Table111318[[#This Row],[Concentration Factor]]))))))) -> 
CC71: =IF(ISBLANK(Table111318[[#This Row],[Sample Reference '# ('# required to enable calculations))]]),"",SUM(Table111318[[#This Row],[La 57]:[Lu 71]])) ->  | CD71: =IF(ISBLANK(Table111318[[#This Row],[Sample Reference '# ('# required to enable calculations))]]),"", Table111318[[#This Row],[REE (ppm)]]+Table111318[[#This Row],[Y 39]]) ->  | CF71: =_xlfn.IFNA(IF(ISBLANK(Table111318[[#This Row],[Sample Reference '# ('# required to enable calculations))]]),"", IF(Table111318[[#This Row],[Dry Mass Basis]]="","Missing Basis", IF(VLOOKUP(Table111318[[#This Row],[Original Field Sample '#]],FieldSampling[],38,FALSE)="","Missing Basis",_xlfn.IFNA(IF((VLOOKUP(Table111318[[#This Row],[Original Field Sample '#]],FieldSampling[],38,FALSE))=Table111318[[#This Row],[Dry Mass Basis]],(Table111318[[#This Row],[REE+Y (ppm)]]/VLOOKUP(Table111318[[#This Row],[Original Field Sample '#]],FieldSampling[],97,FALSE)),"Basis Mismatch"),"")))),"Missing Original Sample") ->  | CG71: =IF(Table111318[[#This Row],[Concentration Factor]]= "Basis Mismatch", "Basis Mismatch", IF(Table111318[[#This Row],[Concentration Factor]]= "Missing Basis", "Missing Basis", IF((Table111318[[#This Row],[Concentration Factor]])="Basis Mismatch", "Basis Mismatch", IF((Table111318[[#This Row],[Concentration Factor]])="Missing Original Sample", "Missing Originial Sample", IF(ISBLANK(Table111318[[#This Row],[Sample Reference '# ('# required to enable calculations))]]),"", IF(ISBLANK(Table111318[[#This Row],[Total % Recovery]]),"Missing Total % Recovery", PRODUCT(Table111318[[#This Row],[Total % Recovery]],Table111318[[#This Row],[Concentration Factor]]))))))) -> 
CC72: =IF(ISBLANK(Table111318[[#This Row],[Sample Reference '# ('# required to enable calculations))]]),"",SUM(Table111318[[#This Row],[La 57]:[Lu 71]])) ->  | CD72: =IF(ISBLANK(Table111318[[#This Row],[Sample Reference '# ('# required to enable calculations))]]),"", Table111318[[#This Row],[REE (ppm)]]+Table111318[[#This Row],[Y 39]]) ->  | CF72: =_xlfn.IFNA(IF(ISBLANK(Table111318[[#This Row],[Sample Reference '# ('# required to enable calculations))]]),"", IF(Table111318[[#This Row],[Dry Mass Basis]]="","Missing Basis", IF(VLOOKUP(Table111318[[#This Row],[Original Field Sample '#]],FieldSampling[],38,FALSE)="","Missing Basis",_xlfn.IFNA(IF((VLOOKUP(Table111318[[#This Row],[Original Field Sample '#]],FieldSampling[],38,FALSE))=Table111318[[#This Row],[Dry Mass Basis]],(Table111318[[#This Row],[REE+Y (ppm)]]/VLOOKUP(Table111318[[#This Row],[Original Field Sample '#]],FieldSampling[],97,FALSE)),"Basis Mismatch"),"")))),"Missing Original Sample") ->  | CG72: =IF(Table111318[[#This Row],[Concentration Factor]]= "Basis Mismatch", "Basis Mismatch", IF(Table111318[[#This Row],[Concentration Factor]]= "Missing Basis", "Missing Basis", IF((Table111318[[#This Row],[Concentration Factor]])="Basis Mismatch", "Basis Mismatch", IF((Table111318[[#This Row],[Concentration Factor]])="Missing Original Sample", "Missing Originial Sample", IF(ISBLANK(Table111318[[#This Row],[Sample Reference '# ('# required to enable calculations))]]),"", IF(ISBLANK(Table111318[[#This Row],[Total % Recovery]]),"Missing Total % Recovery", PRODUCT(Table111318[[#This Row],[Total % Recovery]],Table111318[[#This Row],[Concentration Factor]]))))))) -> 
CC73: =IF(ISBLANK(Table111318[[#This Row],[Sample Reference '# ('# required to enable calculations))]]),"",SUM(Table111318[[#This Row],[La 57]:[Lu 71]])) ->  | CD73: =IF(ISBLANK(Table111318[[#This Row],[Sample Reference '# ('# required to enable calculations))]]),"", Table111318[[#This Row],[REE (ppm)]]+Table111318[[#This Row],[Y 39]]) ->  | CF73: =_xlfn.IFNA(IF(ISBLANK(Table111318[[#This Row],[Sample Reference '# ('# required to enable calculations))]]),"", IF(Table111318[[#This Row],[Dry Mass Basis]]="","Missing Basis", IF(VLOOKUP(Table111318[[#This Row],[Original Field Sample '#]],FieldSampling[],38,FALSE)="","Missing Basis",_xlfn.IFNA(IF((VLOOKUP(Table111318[[#This Row],[Original Field Sample '#]],FieldSampling[],38,FALSE))=Table111318[[#This Row],[Dry Mass Basis]],(Table111318[[#This Row],[REE+Y (ppm)]]/VLOOKUP(Table111318[[#This Row],[Original Field Sample '#]],FieldSampling[],97,FALSE)),"Basis Mismatch"),"")))),"Missing Original Sample") ->  | CG73: =IF(Table111318[[#This Row],[Concentration Factor]]= "Basis Mismatch", "Basis Mismatch", IF(Table111318[[#This Row],[Concentration Factor]]= "Missing Basis", "Missing Basis", IF((Table111318[[#This Row],[Concentration Factor]])="Basis Mismatch", "Basis Mismatch", IF((Table111318[[#This Row],[Concentration Factor]])="Missing Original Sample", "Missing Originial Sample", IF(ISBLANK(Table111318[[#This Row],[Sample Reference '# ('# required to enable calculations))]]),"", IF(ISBLANK(Table111318[[#This Row],[Total % Recovery]]),"Missing Total % Recovery", PRODUCT(Table111318[[#This Row],[Total % Recovery]],Table111318[[#This Row],[Concentration Factor]]))))))) -> 
CC74: =IF(ISBLANK(Table111318[[#This Row],[Sample Reference '# ('# required to enable calculations))]]),"",SUM(Table111318[[#This Row],[La 57]:[Lu 71]])) ->  | CD74: =IF(ISBLANK(Table111318[[#This Row],[Sample Reference '# ('# required to enable calculations))]]),"", Table111318[[#This Row],[REE (ppm)]]+Table111318[[#This Row],[Y 39]]) ->  | CF74: =_xlfn.IFNA(IF(ISBLANK(Table111318[[#This Row],[Sample Reference '# ('# required to enable calculations))]]),"", IF(Table111318[[#This Row],[Dry Mass Basis]]="","Missing Basis", IF(VLOOKUP(Table111318[[#This Row],[Original Field Sample '#]],FieldSampling[],38,FALSE)="","Missing Basis",_xlfn.IFNA(IF((VLOOKUP(Table111318[[#This Row],[Original Field Sample '#]],FieldSampling[],38,FALSE))=Table111318[[#This Row],[Dry Mass Basis]],(Table111318[[#This Row],[REE+Y (ppm)]]/VLOOKUP(Table111318[[#This Row],[Original Field Sample '#]],FieldSampling[],97,FALSE)),"Basis Mismatch"),"")))),"Missing Original Sample") ->  | CG74: =IF(Table111318[[#This Row],[Concentration Factor]]= "Basis Mismatch", "Basis Mismatch", IF(Table111318[[#This Row],[Concentration Factor]]= "Missing Basis", "Missing Basis", IF((Table111318[[#This Row],[Concentration Factor]])="Basis Mismatch", "Basis Mismatch", IF((Table111318[[#This Row],[Concentration Factor]])="Missing Original Sample", "Missing Originial Sample", IF(ISBLANK(Table111318[[#This Row],[Sample Reference '# ('# required to enable calculations))]]),"", IF(ISBLANK(Table111318[[#This Row],[Total % Recovery]]),"Missing Total % Recovery", PRODUCT(Table111318[[#This Row],[Total % Recovery]],Table111318[[#This Row],[Concentration Factor]]))))))) -> 
CC75: =IF(ISBLANK(Table111318[[#This Row],[Sample Reference '# ('# required to enable calculations))]]),"",SUM(Table111318[[#This Row],[La 57]:[Lu 71]])) ->  | CD75: =IF(ISBLANK(Table111318[[#This Row],[Sample Reference '# ('# required to enable calculations))]]),"", Table111318[[#This Row],[REE (ppm)]]+Table111318[[#This Row],[Y 39]]) ->  | CF75: =_xlfn.IFNA(IF(ISBLANK(Table111318[[#This Row],[Sample Reference '# ('# required to enable calculations))]]),"", IF(Table111318[[#This Row],[Dry Mass Basis]]="","Missing Basis", IF(VLOOKUP(Table111318[[#This Row],[Original Field Sample '#]],FieldSampling[],38,FALSE)="","Missing Basis",_xlfn.IFNA(IF((VLOOKUP(Table111318[[#This Row],[Original Field Sample '#]],FieldSampling[],38,FALSE))=Table111318[[#This Row],[Dry Mass Basis]],(Table111318[[#This Row],[REE+Y (ppm)]]/VLOOKUP(Table111318[[#This Row],[Original Field Sample '#]],FieldSampling[],97,FALSE)),"Basis Mismatch"),"")))),"Missing Original Sample") ->  | CG75: =IF(Table111318[[#This Row],[Concentration Factor]]= "Basis Mismatch", "Basis Mismatch", IF(Table111318[[#This Row],[Concentration Factor]]= "Missing Basis", "Missing Basis", IF((Table111318[[#This Row],[Concentration Factor]])="Basis Mismatch", "Basis Mismatch", IF((Table111318[[#This Row],[Concentration Factor]])="Missing Original Sample", "Missing Originial Sample", IF(ISBLANK(Table111318[[#This Row],[Sample Reference '# ('# required to enable calculations))]]),"", IF(ISBLANK(Table111318[[#This Row],[Total % Recovery]]),"Missing Total % Recovery", PRODUCT(Table111318[[#This Row],[Total % Recovery]],Table111318[[#This Row],[Concentration Factor]]))))))) -> 
CC76: =IF(ISBLANK(Table111318[[#This Row],[Sample Reference '# ('# required to enable calculations))]]),"",SUM(Table111318[[#This Row],[La 57]:[Lu 71]])) ->  | CD76: =IF(ISBLANK(Table111318[[#This Row],[Sample Reference '# ('# required to enable calculations))]]),"", Table111318[[#This Row],[REE (ppm)]]+Table111318[[#This Row],[Y 39]]) ->  | CF76: =_xlfn.IFNA(IF(ISBLANK(Table111318[[#This Row],[Sample Reference '# ('# required to enable calculations))]]),"", IF(Table111318[[#This Row],[Dry Mass Basis]]="","Missing Basis", IF(VLOOKUP(Table111318[[#This Row],[Original Field Sample '#]],FieldSampling[],38,FALSE)="","Missing Basis",_xlfn.IFNA(IF((VLOOKUP(Table111318[[#This Row],[Original Field Sample '#]],FieldSampling[],38,FALSE))=Table111318[[#This Row],[Dry Mass Basis]],(Table111318[[#This Row],[REE+Y (ppm)]]/VLOOKUP(Table111318[[#This Row],[Original Field Sample '#]],FieldSampling[],97,FALSE)),"Basis Mismatch"),"")))),"Missing Original Sample") ->  | CG76: =IF(Table111318[[#This Row],[Concentration Factor]]= "Basis Mismatch", "Basis Mismatch", IF(Table111318[[#This Row],[Concentration Factor]]= "Missing Basis", "Missing Basis", IF((Table111318[[#This Row],[Concentration Factor]])="Basis Mismatch", "Basis Mismatch", IF((Table111318[[#This Row],[Concentration Factor]])="Missing Original Sample", "Missing Originial Sample", IF(ISBLANK(Table111318[[#This Row],[Sample Reference '# ('# required to enable calculations))]]),"", IF(ISBLANK(Table111318[[#This Row],[Total % Recovery]]),"Missing Total % Recovery", PRODUCT(Table111318[[#This Row],[Total % Recovery]],Table111318[[#This Row],[Concentration Factor]]))))))) -> 
